Workbook

Sheet Hjem
B1: MERMaid ver 1.0
B4: Kontakt information
B5: For spørgsmål eller kommentarer, venligst kontakt Morten Rebsdorf på Morten.Rebsdorf@aarhusvand.dk med emnet "MERMaid værktøj".
B8: Ansvarsfraskrivelse
B9: Dette værktøj (MERMaid) er udviklet i VUDP projektet: "Den miljøeffektive ressourceanlægsmodel"
B10: Værktøjet er udviklet som demonstration af hvorledes der kan medtages andre faktorer end økonomi ifm. med valg af renseteknologi.
B11: Det er således ikke et komplet værktøj der indeholder alle renseteknologier, men to cases der skal tjene som eksempler for en evt. videreudvikling
B12: Der tages ikke ansvar for anvendelse af data, eller fortolkninger heraf, ej heller opdatering af priser, faktorer eller andet
B19: Rettigheder og kildehenvisning
B20: Værktøjet kan frit downloades fra DTU data repository via dette link: https://figshare.com/s/b4c28481071d42c48f53
B22: Værktøjet er frigivet som open source og kan opdateres og ændres ved korrekt kildehenvisning af det originale arbejde. Licensvilkårene kan findes her: https://creativecommons.org/licenses/by/4.0/
B24: Kildehenvisning:
B25: Faragò, Maria; Rebsdorf, Morten; Nielsen, Per Henrik; Thornberg, Dines; Elise Christoffersen, Julie; Muff, Emilie Simone; Damgaard, Anders; Martin, Rygaard. (2023): MERMaid tool - Den Miljøeffektive ressourceanlægsmodel. Technical University of Denmark. Software. https://doi.org/10.11583/DTU.22439188

Sheet Basis info
A1: Basis information
A4: Vurderingsperiode | C4: år
A5: Indløbsflow | C5: m3/år
A7: Input er muligt for alle blå celler
A8: Røde omkrænsninger markerer manglende obligatoriske input

Sheet Input system 1
A1: Input System 1
A3: Navn:
D6: Teknologi | E6: Materialetype | I6: Dimensioner | L6: "End of life"
B7: Materialvalg/Infrastrukturer | C7: FALSE | D7: Slamlagertank | F7: Forventet levetid | H7: år | I7: Volumen | K7: m3 | L7: Bortskaffelsesmulighed
C8: FALSE | D8: Forfiltrering | I8: Antal filtre | K8: # | L8: Bortskaffelsesmulighed (filtre)
C9: FALSE | D9: Forklaringstank | I9: Volumen | K9: m3 | L9: Bortskaffelsesmulighed
B11: Spildevandsbehandling | C11: FALSE | D11: Forfiltrering | F11: Recipient | I11: Flow volumen | K11: m3 år-1 | L11: Er anlægget forsynet med udrådning (anaerobic digestion, AD)?
C12: FALSE | D12: Forklaringstank | I12: Flow volumen | K12: m3 år-1
B15: Guide: For at beregne påvirkningen af forfiltreringsteknologi ved filtrering, sæt flueben ved C8 og C11
B16: Guide: For at beregne påvirkning af forfiltreringsteknologi ved forklaringstank, sæt flueben ved C9 og C12

Sheet Input system 2
A1: Input System 2
A3: Navn:
D6: Teknologi | E6: Materialetype | I6: Dimensioner | L6: "End of life"
B7: Materialvalg/Infrastrukturer | C7: FALSE | D7: Slamlagertank | F7: Forventet levetid | H7: år | I7: Volumen | K7: m3 | L7: Bortskaffelsesmulighed
C8: FALSE | D8: Forfiltrering | I8: Antal filtre | K8: # | L8: Bortskaffelsesmulighed (filtre)
C9: FALSE | D9: Forklaringstank | I9: Volumen | K9: m3 | L9: Bortskaffelsesmulighed
B11: Spildevandsbehandling | C11: FALSE | D11: Forfiltrering | F11: Recipient | I11: Flow volumen | K11: m3 år-1 | L11: Er anlægget forsynet med udrådning (anaerobic digestion, AD)?
C12: FALSE | D12: Forklaringstank | I12: Flow volumen | K12: m3 år-1
B15: Guide: For at beregne påvirkningen af forfiltreringsteknologi ved filtrering, sæt flueben ved C8 og C11
B16: Guide: For at beregne påvirkning af forfiltreringsteknologi ved forklaringstank, sæt flueben ved C9 og C12

Sheet Baggrundsdata
B1: Baggrundsdata
B2: Data som bør evalueres | F2: System 1 | I2: System 2
B3: Konstant data | D3: Enhed | E3: Default System 1 | F3: Bruger input System 1 | G3: Input til beregninger System 1 | H3: Default System 2 | I3: Bruger input System 2 | J3: Input til beregninger System 2 | K3: Kilde | L3: Link / reference | M3: Kommentar
B4: Er ikke inkluderet, men anbefales inkluderet i fremtidige opdateringer
B6: Generelle antagelser
B7: Transport
B8: Transport | C8: Transport af affald til bortskaffelsesanlæg: (Forbrænding, deponi, genanvendelse) | D8: km | E8: 15 | G8: =IF(F8="",E8,F8) -> 15 | H8: 15 | J8: =IF(I8="",H8,I8) -> 15 | K8: Antaget
B9: Bortskaffelse | C9: Genanvendelsesrate rustfri stål/karbon stål | D9: % | E9: 0.85 | G9: =IF(F9="",E9,F9) -> 0.85 | H9: 0.85 | J9: =IF(I9="",H9,I9) -> 0.85 | K9: Antaget
B10: Bortskaffelse | C10: Anlæggets interne genanvendelse (bla. stål og plastik) | D10: % | E10: 0.7 | G10: 0.7 | H10: 0.7 | J10: 0.7 | K10: Antaget
B11: Bortskaffelse | C11: Genanvendelsesrate, beton | D11: % | E11: 1 | G11: 1 | H11: 1 | J11: 1 | K11: Antaget
B13: Udgifter | C13: Omregningsfaktor EUR til Valuta (default DKK) | D13: EURO - Valuta (default DKK) | E13: =1/E15 -> 7.692307692 | G13: =IF(F13="",E13,F13) -> 7.692307692 | H13: =1/H15 -> 7.692307692 | J13: =IF(F13="",E13,F13) -> 7.692307692
B14: Udgifter | C14: Navn på valuta | D14: - | E14: DKK | G14: =IF(F14="",E14,F14) -> DKK | H14: DKK | J14: =IF(F14="",E14,F14) -> DKK
B15: Udgifter | C15: Omregningsfaktor DKK til EUR | D15: - | E15: 0.13 | G15: 0.13 | H15: 0.13 | J15: =IF(I15="",H15,I15) -> 0.13 | K15: Nuværende valuta kurs (2021) | L15: 1 DKK to EUR - Danish Kroner to Euros Exchange Rate (xe.com)
B16: Udgifter | C16: Omregningsfaktor US dollar til DKK | D16: - | E16: 6.5 | G16: 6.5 | H16: 6.5 | J16: 6.5 | K16: Nuværende valuta kurs (2021) | L16: 1 USD to DKK - US Dollars to Danish Kroner Exchange Rate (xe.com)
B17: Materiale densitet og egenskaber
B18: Materiale | C18: HDPE | D18: kg m-3 | E18: 910 | G18: 910 | H18: 910 | J18: 910 | K18: Engineering toolbox | L18: Density of Selected Solids (engineeringtoolbox.com)
B19: Materiale | C19: Beton | D19: kg m-3 | E19: 2400 | G19: 2400 | H19: 2400 | J19: 2400 | K19: Engineering toolbox | L19: Density of Selected Solids (engineeringtoolbox.com)
B21: Udgifter | C21: Rentesats | D21: % | E21: 0.04 | G21: =IF(F21="",E21,F21) -> 0.04 | H21: 0.04 | J21: =IF(I21="",H21,I21) -> 0.04 | K21: Antaget | M21: Typisk rente til offentlige projekter(3-4%)
B23: Produktion | C23: Biogas produktion | D23: Nm3 / m3 spildevands inløb | E23: 0.11 | G23: =IF(F23="",E23,F23) -> 0.11 | H23: 0.11 | J23: =IF(I23="",H23,I23) -> 0.11 | K23: VARGA/BIOFOS | L23: Faragó et al. (2021)
B24: Produktion | C24: Andel methan i biogas | D24: % | E24: 0.6 | G24: =IF(F24="",E24,F24) -> 0.6 | H24: 0.6 | J24: =IF(I24="",H24,I24) -> 0.6 | K24: VARGA/BIOFOS | L24: Faragó et al. (2021)
B25: Produktion | C25: Methan emissioner fra biogassystem | D25: % | E25: 0.03 | G25: =IF(F25="",E25,F25) -> 0.03 | H25: 0.03 | J25: =IF(I25="",H25,I25) -> 0.03 | K25: VARGA/BIOFOS | L25: Faragó et al. (2021)
B26: Produktion | C26: CH4 udbytte | D26: Nm3 / kg COD | E26: 0.35 | G26: =IF(F26="",E26,F26) -> 0.35 | H26: 0.35 | J26: =IF(I26="",H26,I26) -> 0.35 | K26: VARGA/BIOFOS | L26: Faragó et al. (2021)
B27: Affald til bortskaffelse, afgifter
B28: Udgifter | C28: Deponeringsafgift | D28: DKK t-1 | E28: 475 | G28: =IF(F28="",E28,F28) -> 475 | H28: 475 | J28: =IF(I28="",H28,I28) -> 475 | K28: Wastewater operator, BIOFOS
B29: Udgifter | C29: Forbrændingsafgift | D29: DKK t-1 | E29: 350 | G29: 350 | H29: 350 | J29: 350 | K29: Vestforbrænding - COWI Business case - Avedøre
B30: Udgifter | C30: Tranport til deponeringssanlæg | D30: DKK t-1 | E30: 50 | G30: 50 | H30: 50 | J30: 50 | K30: Vestforbrænding - COWI Business case - Avedøre
B31: Udgifter | C31: Kulstofafgift - CO2-ækv. Kvote | D31: DKK t-1 | E31: =25/$G$15 -> 192.3076923 | G31: 192.3076923 | H31: =25/$J$15 -> 192.3076923 | J31: 192.3076923 | L31: EU emissions allowance prices in the context of the ECB’s climate change action plan (europa.eu)
B32: Udgifter | C32: Slamkomposterings pris | D32: DKK t-1 | E32: 50 | G32: 50 | H32: 50 | J32: 50
B33: Udgifter | C33: Slam til brug på landjord | D33: DKK t-1 våd slam | E33: 250 | G33: 250 | H33: 250 | J33: 250 | L33: Jensen, D.M., Tychsen, P., Thomsen, M., Martinsen, L., Hasler, B., 2015. Baeredygtig udnyttelse af fosfor fra spildevand.
B34: Vand Udgifter
B35: Udgifter | C35: Drikkevand, pris | D35: DKK m-3 | E35: =1.21/0.13 -> 9.307692308 | G35: =IF(F35="",E35,F35) -> 9.307692308 | H35: =1.21/0.13 -> 9.307692308 | J35: =IF(I35="",H35,I35) -> 9.307692308 | K35: VARGA/BIOFOS | L35: Faragó et al. (2021) | M35: Drikkevandspriser for Hvidovre kommune i årene 2016-2019
B36: Energi
B37: Udgifter | C37: Elektricitet | D37: DKK kWh-1 | E37: =0.077/0.13 -> 0.5923076923 | G37: =IF(F37="",E37,F37) -> 0.5923076923 | H37: =0.077/0.13 -> 0.5923076923 | J37: =IF(I37="",H37,I37) -> 0.5923076923 | K37: VARGA/BIOFOS | L37: Faragó et al. (2021) | M37: Spildevandsoperatør, BIOFOS, gennemsnit, minimum og maksimum pris betalt i årene 2016-2018
B38: Udgifter | C38: Varmeforbrug | D38: DKK kWh-1 | E38: =0.044/0.13 -> 0.3384615385 | G38: =IF(F38="",E38,F38) -> 0.3384615385 | H38: =0.044/0.13 -> 0.3384615385 | J38: =IF(I38="",H38,I38) -> 0.3384615385 | K38: VARGA/BIOFOS | L38: Faragó et al. (2021) | M38: Spildevandsoperatør, BIOFOS, gennemsnit, minimum og maksimum pris betalt i årene 2016-2019
B39: Udgifter | C39: Olie, brændsel | D39: DKK L-1 | E39: =1.25/0.13 -> 9.615384615 | G39: =IF(F39="",E39,F39) -> 9.615384615 | H39: =1.25/0.13 -> 9.615384615 | J39: =IF(I39="",H39,I39) -> 9.615384615 | K39: VARGA/BIOFOS | L39: Faragó et al. (2021)
B40: Udgifter | C40: Diesel | D40: DKK L-1 | E40: =1.4/0.13 -> 10.76923077 | G40: =IF(F40="",E40,F40) -> 10.76923077 | H40: =1.4/0.13 -> 10.76923077 | J40: =IF(I40="",H40,I40) -> 10.76923077 | K40: VARGA/BIOFOS | L40: Faragó et al. (2021)
B41: Kemikalier
B42: Udgifter | C42: Jern(III)klorid (PIX-118) | D42: DKK t-1 | E42: =156/0.13 -> 1200 | G42: =IF(F42="",E42,F42) -> 1200 | H42: =156/0.13 -> 1200 | J42: =IF(I42="",H42,I42) -> 1200 | K42: general market price source: Jesper Berner (Kemira)
B43: Udgifter | C43: Polymer flocculant | D43: DKK t-1 | E43: =3636/0.13 -> 27969.23077 | G43: 27969.23077 | H43: =3636/0.13 -> 27969.23077 | J43: 27969.23077 | K43: general market price found in chembid.com and alibaba
B44: Omsætning
B45: Udgifter | C45: Bio-methan, solgt | D45: kr. Nm-3 | E45: =0.72/$G$15 -> 5.538461538 | G45: =IF(F45="",E45,F45) -> 5.538461538 | H45: =0.72/$J$15 -> 5.538461538 | J45: =IF(I45="",H45,I45) -> 5.538461538 | K45: VARGA/BIOFOS | L45: Faragó et al. (2021) | M45: Fra flere danske studier, siden biomethan prisen fra BIOFOS er fortrolig
B46: Spildevand, indløbskoncentration
B47: Drift | C47: TP | D47: mg / L | E47: =178000000/25180000 -> 7.069102462 | G47: =IF(F47="",E47,F47) -> 7.069102462 | H47: =178000000/25180000 -> 7.069102462 | J47: =IF(I47="",H47,I47) -> 7.069102462 | K47: VARGA/BIOFOS | L47: Faragó et al. (2021)
B48: Drift | C48: TN | D48: mg / L | E48: =1199000000/25180000 -> 47.61715647 | G48: 47.61715647 | H48: =1199000000/25180000 -> 47.61715647 | J48: 47.61715647 | K48: VARGA/BIOFOS | L48: Faragó et al. (2021)
B49: Drift | C49: COD | D49: mg / L | E49: =14949000000/25180000 -> 593.6854647 | G49: 593.6854647 | H49: =14949000000/25180000 -> 593.6854647 | J49: 593.6854647 | K49: VARGA/BIOFOS | L49: Faragó et al. (2021)
B50: Drift | C50: COD i slam omdannet til biogas (konventionel AD) | D50: % | E50: 0.34 | G50: 0.34 | H50: 0.34 | J50: 0.34 | K50: VARGA/BIOFOS | L50: Faragó et al. (2021)
B51: Spildevand, udløbskoncentration
B52: Drift | C52: TP | D52: mg / L | E52: =12160000/($G$55*25180000) -> 0.5000157077 | G52: 0.5000157077 | H52: =12160000/($J$55*25180000) -> 0.5000157077 | J52: 0.5000157077 | K52: VARGA/BIOFOS | L52: Faragó et al. (2021)
B53: Drift | C53: TN | D53: mg / L | E53: =97277000/($G$55*25180000) -> 4.000002303 | G53: 4.000002303 | H53: =97277000/($J$55*25180000) -> 4.000002303 | J53: 4.000002303 | K53: VARGA/BIOFOS | L53: Faragó et al. (2021)
B54: Drift | C54: COD | D54: mg / L | E54: =569070000/($G$55*25180000) -> 23.39999497 | G54: 23.39999497 | H54: =569070000/($J$55*25180000) -> 23.39999497 | J54: 23.39999497 | K54: VARGA/BIOFOS | L54: Faragó et al. (2021)
B55: Drift | C55: Volumen udløb / indløb | D55: % | E55: =24319236/25180000 -> 0.9658155679 | G55: =IF(F55="",E55,F55) -> 0.9658155679 | H55: =24319236/25180000 -> 0.9658155679 | J55: =IF(I55="",H55,I55) -> 0.9658155679 | K55: VARGA/BIOFOS | L55: Faragó et al. (2021)
B56: Drift | C56: TP i slam (brugt på land / forbrænding) | D56: % | E56: =(($G$47*'Input system 1'!$J$11-($G$52*$G$55*'Input system 1'!$J$11))/('Input system 1'!$J$11*Baggrundsdata!$G$47)) ->  | H56: =(($J$47*'Input system 2'!$J$11-($J$52*$J$55*'Input system 2'!$J$11))/('Input system 2'!$J$11*Baggrundsdata!$J$47)) ->  | K56: VARGA/BIOFOS | L56: Faragó et al. (2021)
B57: Drift | C57: TN i slam (brugt på land / forbrænding) | D57: % | E57: =($G$48*'Input system 1'!$J$11-($G$53*$G$55*'Input system 1'!$J$11))/('Input system 1'!$J$11*Baggrundsdata!$G$48)-1.6%-77% ->  | H57: =($J$48*'Input system 2'!$J$11-($J$53*$J$55*'Input system 2'!$J$11))/('Input system 2'!$J$11*Baggrundsdata!$J$48)-1.6%-77% ->  | K57: VARGA/BIOFOS | L57: Faragó et al. (2021)
B60: Slamlagertank: Rustfri stål
C61: Type: cylinder
B62: Tank, dimensioner | C62: Diameter | D62: m m-3 | E62: =13.92/1087 -> 0.01280588776 | G62: =IF(F62="",E62,F62) -> 0.01280588776 | H62: =13.92/1087 -> 0.01280588776 | J62: =IF(I62="",H62,I62) -> 0.01280588776 | L62: VCS - Ejby Mølle - Per Henrik Nielsen
B63: Tank, dimensioner | C63: Areal | D63: m2 m-3 | E63: =(($G$62*'Input system 1'!$J$7/2)^2)*PI()/'Input system 1'!$J$7 ->  | H63: =(($J$62*'Input system 2'!$J$7/2)^2)*PI()/'Input system 2'!$J$7 ->  | K63: Estimeret
B64: Materialer | C64: Rustfri stål | D64: kg m-3 | E64: 4.5 | G64: 4.5 | H64: 4.5 | J64: 4.5 | K64: Ægte sag | L64: VCS - Ejby Mølle - Per Henrik Nielsen
B65: Materialer | C65: Karbon stål | D65: kg m-3 | E65: 24.8 | G65: 24.8 | H65: 24.8 | J65: 24.8 | K65: Ægte sag | L65: VCS - Ejby Mølle - Per Henrik Nielsen
B66: Materialer | C66: Zinkbelægning | D66: m2 m-3 | E66: 0.6 | G66: 0.6 | H66: 0.6 | J66: 0.6 | K66: Estimeret | L66: VCS - Ejby Mølle - Per Henrik Nielsen
B67: Levetid | C67: Zinkbelægning levetid | D67: år | E67: 30 | G67: 30 | H67: 30 | J67: 30 | L67: VCS - Ejby Mølle - Per Henrik Nielsen
B68: Transport | C68: Afstand fra produktion til installationslokation | D68: km | E68: 600 | G68: 600 | H68: 600 | J68: 600 | K68: Estimeret | L68: VCS - Ejby Mølle - Per Henrik Nielsen
B69: Udgifter | C69: CAPEX | D69: DKK m-3 | G69: 0 | J69: 0 | L69: VCS - Ejby Mølle - Per Henrik Nielsen | M69: Anlægsudgifter, et tilbud indhentet. Udgifter er eksklusiv fundament, eksklusiv isolering, inkl. omrører. Tanken opføres i rustfri stål plader. Levetid minimum 25 år.
B70: Drift | C70: Ekstra biogasproduktion pga. tanken | D70: % | E70: =AVERAGE(8%,14%) -> 0.11 | G70: 0.11 | H70: =AVERAGE(8%,14%) -> 0.11 | J70: 0.11 | K70: Taget fra | L70: Banebrydende slamlagertank i stål udvinder gas og genvinder varme | Krüger A/S (kruger.dk)
C72: Andre miljøindikatorer
B73: Drift | C73: 3) C genindvinding (som COD) | D73: kg COD/m3 spildevands indløb | E73: =$G$70*$G$23/$G$26 -> 0.03457142857 | G73: =IF(F73="",E73,F73) -> 0.03457142857 | H73: =$J$70*$J$23/$J$26 -> 0.03457142857 | J73: =IF(I73="",H73,I73) -> 0.03457142857 | K73: Estimeret
C75: Netto Vand Genindvinding
B76: Drift | C76: Genindvundet vand | D76: m3 år-1 | E76: 0 | G76: =IF(F76="",E76,F76) -> 0 | H76: 0 | J76: =IF(I76="",H76,I76) -> 0
B77: Drift | C77: Brugt vand | D77: m3 år-1 | E77: 0 | G77: =IF(F77="",E77,F77) -> 0 | H77: 0 | J77: =IF(I77="",H77,I77) -> 0
C79: Andre direkte luftemissioner, eksklusiv drivhusgasser | D79: - | E79: Ikke sandsynligt | G79: Ikke sandsynligt | H79: Ikke sandsynligt | J79: =IF(I79="",H79,I79) -> Ikke sandsynligt
B80: Drift | C80: Potentielle lugtgener | D80: - | E80: 1.Fysisk proces | G80: =IF(E80="1.Fysisk proces",1,IF(E80="2.Kemisk proces",2,IF(E80="3.Biologisk proces",3,IF(E80="4.Thermisk proces",4,"NaN")))) -> 1 | H80: 1.Fysisk proces | J80: =IF(H80="1.Fysisk proces",1,IF(H80="2.Kemisk proces",2,IF(H80="3.Biologisk proces",3,IF(H80="4.Thermisk proces",4,"NaN")))) -> 1
B81: Drift | C81: Støj potentiale | D81: dB niveau | E81: 10 | G81: 10 | H81: 10 | J81: 10 | K81: Antaget | M81: Mellem 0 og 120
B83: Udgifter | C83: 1) Potentiale for ekstern finansiering og tilskud | D83: # år-1 | E83: 1 | G83: =IF(F83="",E83,F83) -> 1 | H83: 1 | J83: =IF(I83="",H83,I83) -> 1 | K83: VCS - Per Henrik Nielsen | M83: – tanken indgår i et MUDP støttet projekt
B84: Udgifter | C84: 2) Servicediversificeringspotentiale
B85: Udgifter | C85: Antal ekstra services til rådighed | D85: # | E85: 0 | G85: 0 | H85: 0 | J85: 0
C87: Input til sociale indikatorer
B88: Antaget | C88: Forventet antal nye fuldtidsjobs | D88: # | E88: 0 | G88: =IF(F88="",E88,F88) -> 0 | H88: 0 | J88: =IF(I88="",H88,I88) -> 0 | K88: Antaget
B89: Antaget | C89: Forventet antal undervisninger i skoler og universiteter | D89: #/år | E89: 1 | G89: 1 | H89: 1 | J89: 1 | K89: Antaget | M89: Potentiale for 'public outreach' / Ja – via ARES projektet
B90: Antaget | C90: Forventet samarbejdspotentiale | D90: # ekstra samarbejdsinstitutioner | E90: 3 | G90: 3 | H90: 3 | J90: 3 | K90: Antaget
B91: Antaget | C91: Forventet risici for uheld og infektioner | D91: - | E91: Ingen | G91: Ingen | H91: Ingen | J91: Ingen | K91: Antaget | M91: Sikkerhed - Marginalt bedre sikkerhed på grund af mindre metan udslip
B92: Antaget | C92: Forventet eksport af viden og markedspotentiale | D92: - | E92: Ingen | G92: =IF(F92="",E92,F92) -> Ingen | H92: Ingen | J92: Ingen | K92: Antaget
B95: Slamlagertank: Beton
C96: Type: cylinder
B97: Tank, dimensioner | C97: Diameter | D97: m m-3 | E97: =14/1000 -> 0.014 | G97: =IF(F97="",E97,F97) -> 0.014 | H97: =14/1000 -> 0.014 | J97: =IF(I97="",H97,I97) -> 0.014 | K97: Ægte sag | L97: VCS - Ejby Mølle - Per Henrik Nielsen
B98: Tank, dimensioner | C98: Areal | D98: m2 m-3 | E98: =(($G$97*'Input system 1'!$J$7/2)^2)*PI()/'Input system 1'!$J$7 ->  | G98: =IF(F98="",E98,F98) ->  | H98: =(($J$97*'Input system 2'!$J$7/2)^2)*PI()/'Input system 2'!$J$7 ->  | J98: =IF(I98="",H98,I98) ->  | K98: Estimeret
B99: Materialer | C99: Beton | D99: DKK m-3 | E99: 215 | G99: =IF(F99="",E99,F99) -> 215 | H99: 215 | J99: =IF(I99="",H99,I99) -> 215 | K99: Ægte sag | L99: VCS - Ejby Mølle - Per Henrik Nielsen
B100: Materialer | C100: PE-membran | D100: DKK m-3 | E100: 1.68 | G100: 1.68 | H100: 1.68 | J100: 1.68 | K100: Estimeret
B101: Transport | C101: Afstand fra produktion til installationslokation | D101: km | E101: 150 | G101: 150 | H101: 150 | J101: 150 | K101: Ægte sag | L101: VCS - Ejby Mølle - Per Henrik Nielsen
B102: Transport | C102: Transport af affald til bortskaffelsesanlæg | D102: km | E102: 15 | G102: 15 | H102: 15 | J102: 15 | K102: Antaget
B103: Udgifter | C103: CAPEX | D103: DKK m-3 | G103: =IF(F103="",E103,F103) -> 0 | J103: =IF(I103="",H103,I103) -> 0 | L103: VCS - Ejby Mølle - Per Henrik Nielsen | M103: Anlægsudgifter er indhentet ved overslag.Udgifter er eksl. fundament, eksl. isolering, eksl. omrører. Levetid minimum 25 år.
B104: Drift | C104: Ekstra biogasproduktion pga. tanken | D104: % | E104: =AVERAGE(8%,14%) -> 0.11 | G104: =IF(F104="",E104,F104) -> 0.11 | H104: =AVERAGE(8%,14%) -> 0.11 | J104: =IF(I104="",H104,I104) -> 0.11 | K104: Taget fra | L104: Banebrydende slamlagertank i stål udvinder gas og genvinder varme | Krüger A/S (kruger.dk)
C106: Andre direkte luftemissioner, eksklusiv drivhusgasser | D106: - | E106: Ikke sandsynligt | G106: =IF(F106="",E106,F106) -> Ikke sandsynligt | H106: Ikke sandsynligt | J106: =IF(I106="",H106,I106) -> Ikke sandsynligt | K106: Antaget
B107: Forurening | C107: Potentielle lugtgener | D107: - | E107: 1.Fysisk proces | G107: =IF(E107="1.Fysisk proces",1,IF(E107="2.Kemisk proces",2,IF(E107="3.Biologisk proces",3,IF(E107="4.Thermisk proces",4,"NaN")))) -> 1 | H107: 1.Fysisk proces | J107: =IF(H107="1.Fysisk proces",1,IF(H107="2.Kemisk proces",2,IF(H107="3.Biologisk proces",3,IF(H107="4.Thermisk proces",4,"NaN")))) -> 1 | K107: Antaget
B108: Forurening | C108: Støj potentiale | D108: dB niveau | E108: 10 | F108: 0 | G108: 0 | H108: 10 | I108: 0 | J108: 0 | K108: Antaget | M108: mellem 0 og 120
C110: Andre miljøindikatorer
B111: Drift | C111: 3) C genindvinding (som COD) | D111: kg COD/m3 wastewater inlet | E111: =$G$70*$G$23/$G$26 -> 0.03457142857 | G111: =IF(F111="",E111,F111) -> 0.03457142857 | H111: =$J$70*$J$23/$J$26 -> 0.03457142857 | J111: =IF(I111="",H111,I111) -> 0.03457142857 | K111: Estimeret
C113: Netto Vand Genindvinding
B114: Drift | C114: Genindvundet vand | D114: m3 år-1 | E114: 0 | G114: =IF(F114="",E114,F114) -> 0 | H114: 0 | J114: =IF(I114="",H114,I114) -> 0 | K114: Antaget
B115: Drift | C115: Brugt vand | D115: m3 år-1 | E115: 0 | G115: =IF(F115="",E115,F115) -> 0 | H115: 0 | J115: 0 | K115: Antaget
B117: Antaget | C117: 1) Potentiale for ekstern finansiering og tilskud | D117: # år-1 | E117: 1 | G117: 1 | H117: 1 | J117: 1 | K117: VCS - Per Henrik Nielsen
B118: Antaget | C118: 2) Servicediversificeringspotentiale
C119: Antal ekstra services til rådighed | D119: # | E119: 0 | G119: =IF(F119="",E119,F119) -> 0 | H119: 0 | J119: =IF(I119="",H119,I119) -> 0 | K119: Antaget
C121: Input til sociale indikatorer
B122: Antaget | C122: Forventet antal nye fuldtidsjobs | D122: # | E122: 0 | G122: =IF(F122="",E122,F122) -> 0 | H122: 0 | J122: =IF(I122="",H122,I122) -> 0 | K122: Antaget
B123: Antaget | C123: Forventet antal undervisninger i skoler og universiteter | D123: #/år | E123: 1 | G123: 1 | H123: 1 | J123: 1 | K123: Antaget | M123: Potentiale for 'public outreach' / Ja – via ARES projektet
B124: Antaget | C124: Forventet samarbejdspotentiale | D124: # ekstra samarbejdsinstitutioner | E124: 3 | G124: 3 | H124: 3 | J124: 3 | K124: Antaget | M124: Potentiale for samarbejde - Ja via ARES – der er ikke forskel på de to tanktyper
B125: Antaget | C125: Forventet risici for uheld og infektioner | D125: - | E125: Ingen | G125: Ingen | H125: Ingen | J125: Ingen | K125: Antaget | M125: Sikkerhed - Marginalt bedre sikkerhed på grund af mindre metan udslip
B126: Antaget | C126: Forventet eksport af viden og markedspotentiale | D126: - | E126: Ingen | G126: Ingen | H126: Ingen | J126: Ingen | K126: Antaget
B130: Forfiltrering: Salsnes filter
B131: Materialer | C131: # af pre-filtre | D131: # | E131: =ROUND('Input system 1'!J11*'Basis info'!$B$4/(Baggrundsdata!$G$133*'Basis info'!$B$4*24*365),0)*1.6 ->  | G131: =IF(F131="",E131,F131) ->  | H131: =ROUND('Input system 2'!$J11*'Basis info'!$B$4/(Baggrundsdata!$J133*'Basis info'!$B$4*24*365),0)*1.6 ->  | J131: =IF(I131="",H131,I131) ->  | K131: VARGA/BIOFOS | L131: Faragó et al. (2021) | M131: x sikkerheds faktor i tilfælde af yderligere flow
B132: Materialer | C132: Total vægt - 1 filter (baseret på Slasnes SF6000) | D132: kg /1 filter | E132: =1230 -> 1230 | G132: =IF(F132="",E132,F132) -> 1230 | H132: =1230 -> 1230 | J132: 1230 | K132: VARGA/BIOFOS | L132: Faragó et al. (2021) | M132: SF6000
B133: Drift | C133: Gennemsnitlig behandlet flow gennem filter (baseret på Salsnes SF6000) | D133: m3 h-1 | E133: 325 | G133: 325 | H133: 325 | J133: 325 | K133: VARGA/BIOFOS | L133: Faragó et al. (2021) | M133: Salsnes
B134: Materialer | C134: Filterramme: Rustfri stål | D134: kg / år | E134: =60%*$G$132*'Input system 1'!$J$8*(1/Baggrundsdata!$G$151)*$G$135 -> 0 | G134: =IF(F134="",E134,F134) -> 0 | H134: =60%*J132*'Input system 2'!$J$8*(1/Baggrundsdata!$J$151)*J135 -> 0 | J134: 0 | K134: VARGA/BIOFOS | L134: Faragó et al. (2021)
B135: Antagelser | C135: Øvrige fittings | D135: - | E135: 1.4 | G135: 1.4 | H135: 1.4 | J135: 1.4 | K135: VARGA/BIOFOS | L135: Faragó et al. (2021)
B136: Materialer | C136: Filterdug: PE | D136: kg / år | E136: =32%*$G$132*'Input system 1'!$J$8*(1/Baggrundsdata!$G$150)*$G$135 -> 0 | G136: 0 | H136: =32%*$J$132*'Input system 2'!$J$8*(1/Baggrundsdata!$J$150)*$J$135 -> 0 | J136: 0 | K136: VARGA/BIOFOS | L136: Faragó et al. (2021)
B137: Materialer | C137: Kontrolpanel: plastik + elektronik: PE | D137: kg / år | E137: =1%*$G$132*'Input system 1'!$J$8*(1/$G$149)*1.4 -> 0 | G137: 0 | H137: =1%*$J$132*'Input system 2'!$J$8*(1/$J$149)*1.4 -> 0 | J137: 0 | K137: VARGA/BIOFOS | L137: Faragó et al. (2021)
B138: Materialer | C138: Anlægsdesign: beton til konstruktion | D138: kg / år | E138: ='Input system 1'!$J$8/8*((24*12*4)-((24-0.3)*(12-0.3)*(4-0.3)))*$G$19*(1/Baggrundsdata!$G$148) -> 0 | G138: 0 | H138: ='Input system 2'!$J$8/8*((24*12*4)-((24-0.3)*(12-0.3)*(4-0.3)))*$J$19*(1/Baggrundsdata!$J$148) -> 0 | J138: 0 | K138: VARGA/BIOFOS | L138: Faragó et al. (2021) | M138: area dimensions for 8 filters
B139: Transport | C139: Afstand fra filterproducent til anlæg | D139: km | E139: 1287 | G139: 1287 | H139: 1287 | J139: 1287 | K139: VARGA/BIOFOS | L139: Faragó et al. (2021) | M139: Norway
B140: Drift | C140: Elforbrug: Forfiltrering | D140: kWh m-3 | E140: 0.012 | G140: 0.012 | H140: 0.012 | J140: 0.012 | K140: VARGA/BIOFOS | L140: Faragó et al. (2021)
B141: Drift | C141: Kemikalier: Polymer forbrug | D141: g m-3 | E141: 3 | G141: 3 | H141: 3 | J141: 3 | K141: VARGA/BIOFOS | L141: Faragó et al. (2021)
B142: Drift | C142: Kemikalier: Jernklorid | D142: g m-3 | E142: =359*1000000/27300000 -> 13.15018315 | G142: 13.15018315 | H142: =359*1000000/27300000 -> 13.15018315 | J142: 13.15018315 | K142: VARGA/BIOFOS | L142: Faragó et al. (2021) | M142: 0,015 liter / kg SS
B143: Drift | C143: Vandforbrug: Rent vand til rengøring af filter | D143: m3 /dag /1 filter | E143: =(2/4) -> 0.5 | G143: 0.5 | H143: =(2/4) -> 0.5 | J143: 0.5 | K143: VARGA/BIOFOS | L143: Faragó et al. (2021)
B144: Drift | C144: Genbrugt vand | D144: m3/m3 indløb | E144: 0 | G144: 0 | H144: 0 | J144: 0
B146: Transport | C146: Afstand fra anlæg til genbrugsstation | D146: km | E146: 30 | G146: 30 | H146: 30 | J146: =IF(I146="",H146,I146) -> 30 | K146: VARGA/BIOFOS | L146: Faragó et al. (2021)
B148: Levetid | C148: Levetid, filterbygning | D148: år | E148: 50 | G148: 50 | H148: 50 | J148: =IF(I148="",H148,I148) -> 50
B149: Levetid | C149: Kontrolpanel | D149: år | E149: 10 | G149: 10 | H149: 10 | J149: =IF(I149="",H149,I149) -> 10 | K149: VARGA/BIOFOS | L149: Faragó et al. (2021)
B150: Levetid | C150: Filterdug | D150: år | E150: 2 | G150: 2 | H150: 2 | J150: =IF(I150="",H150,I150) -> 2 | K150: VARGA/BIOFOS | L150: Faragó et al. (2021)
B151: Levetid | C151: Levetid, filterramme | D151: år | E151: 5 | G151: 5 | H151: 5 | J151: =IF(I151="",H151,I151) -> 5 | K151: VARGA/BIOFOS | L151: Faragó et al. (2021)
B153: Areal | C153: Forfiltrering (estimeret fra Slasnes filter) | D153: - | E153: =1/10 -> 0.1 | G153: 0.1 | H153: =1/10 -> 0.1 | J153: =IF(I153="",H153,I153) -> 0.1 | K153: VARGA/BIOFOS | L153: Faragó et al. (2021) | M153: 1 / 10 af arealbehov for forklaringstank (source: Salsnes website)
B154: Areal | C154: Forfiltrering (estimeret fra Slasnes filter) | D154: m2 / 1 filter | E154: =(12*12)/8 -> 18 | G154: 18 | H154: =(12*12)/8 -> 18 | J154: =IF(I154="",H154,I154) -> 18 | K154: VARGA/BIOFOS | L154: Faragó et al. (2021)
B155: Areal | C155: Forfiltrering (estimeret fra Slasnes filter) | D155: m2 / m3 | E155: =G154*16/27300000 -> 1.054945055e-05 | G155: 1.054945055e-05 | H155: =J154*16/27300000 -> 1.054945055e-05 | J155: =IF(I155="",H155,I155) -> 1.054945055e-05 | K155: Beregnet
B156: Areal | C156: Forklaringstank | D156: m2 / filter | E156: =G154/$G$153 -> 180 | G156: 180 | H156: =J154/$J$153 -> 180 | J156: =IF(I156="",H156,I156) -> 180 | K156: Beregnet | L156: calculated
B158: Udgifter | C158: CAPEX: one-time Udgifters | D158: DKK / 1 filter | E158: =(2197000/0.13)/4 -> 4225000 | G158: =IF(F158="",E158,F158) -> 4225000 | H158: =(2197000/0.13)/4 -> 4225000 | J158: =IF(I158="",H158,I158) -> 4225000 | K158: VARGA/BIOFOS | L158: Faragó et al. (2021) | M158: Det inkluderer konstruktionen af bygningen
B159: Udgifter | C159: CAPEX: reinvestment - filter net | D159: DKK /1 filter net | E159: =3250/0.13 -> 25000 | G159: =IF(F159="",E159,F159) -> 25000 | H159: =3250/0.13 -> 25000 | J159: =IF(I159="",H159,I159) -> 25000 | K159: VARGA/BIOFOS | L159: Faragó et al. (2021)
B162: Drift | C162: Øget biogas produktion | D162: Nm3 m-3 spildevand | E162: =619285/27300000 -> 0.02268443223 | G162: 0.02268443223 | H162: =619285/27300000 -> 0.02268443223 | J162: =IF(I162="",H162,I162) -> 0.02268443223 | K162: VARGA/BIOFOS | L162: Faragó et al. (2021) | M162: Effekt af anaerob udrådning
B163: Drift | C163: Besparelser: Elektricitet til iltning | D163: kWh m-3 | E163: =-221000/27300000 -> -0.008095238095 | G163: =IF(F163="",E163,F163) -> -0.008095238095 | H163: =-221000/27300000 -> -0.008095238095 | J163: =IF(I163="",H163,I163) -> -0.008095238095 | K163: VARGA/BIOFOS | L163: Faragó et al. (2021)
B166: Drift | C166: Yderligere COD-genindvundet som energi | D166: t m-3 | E166: =((16484*42%-16484*34%))/27300000 -> 4.83047619e-05 | G166: =IF(F166="",E166,F166) -> 4.83047619e-05 | H166: =((16484*42%-16484*34%))/27300000 -> 4.83047619e-05 | J166: =IF(I166="",H166,I166) -> 4.83047619e-05 | K166: VARGA/BIOFOS | L166: Faragó et al. (2021)
B168: Forurening | C168: Andre direkte luftemissioner, eksklusiv drivhusgasser | D168: - | E168: Noget sandsynligt | G168: Noget sandsynligt | H168: Noget sandsynligt | J168: =IF(I168="",H168,I168) -> Noget sandsynligt | K168: Antaget
B169: Forurening | C169: Potentielle lugtgener | D169: - | E169: 1.Fysisk proces | G169: =IF(E169="1.Fysisk proces",1,IF(E169="2.Kemisk proces",2,IF(E169="3.Biologisk proces",3,IF(E169="4.Thermisk proces",4,"NaN")))) -> 1 | H169: 1.Fysisk proces | J169: =IF(H169="1.Fysisk proces",1,IF(H169="2.Kemisk proces",2,IF(H169="3.Biologisk proces",3,IF(H169="4.Thermisk proces",4,"NaN")))) -> 1 | K169: Antaget | M169: it is in between physical and chemical?
B170: Forurening | C170: Støj potentiale | D170: dB niveau | E170: 63 | G170: =IF(F170="",E170,F170) -> 63 | H170: 63 | J170: 63 | K170: Antaget | M170: CST's dewatering device for disposal issues - Filtration + Separation (filtsep.com)
B172: Antaget | C172: 1) Potentiale for ekstern finansiering og tilskud | D172: # år-1 | E172: 1 | G172: =IF(F172="",E172,F172) -> 1 | H172: 1 | J172: =IF(I172="",H172,I172) -> 1 | K172: Antaget | M172: kan beregnes som antal potentiel finanserings ansøgninger som skal skrives
B173: Antaget | C173: 2) Servicediversificeringspotentiale
C174: Antal ekstra services til rådighed | D174: # | E174: 1 | G174: =IF(F174="",E174,F174) -> 1 | H174: 1 | J174: =IF(I174="",H174,I174) -> 1 | K174: Antaget
C176: Input til sociale indikatorer
B177: Antaget | C177: Forventet antal nye fuldtidsjobs | D177: # | E177: 1 | G177: =IF(F177="",E177,F177) -> 1 | H177: 1 | J177: =IF(I177="",H177,I177) -> 1 | K177: Antaget | M177: Det er linket til vedligeholdeldse: Pre-filtre behøver mere vedligeholdelse.
B178: Antaget | C178: Forventet antal undervisninger i skoler og universiteter | D178: #/år | E178: 2 | G178: 2 | H178: 2 | J178: =IF(I178="",H178,I178) -> 2 | K178: Antaget
B179: Antaget | C179: Forventet samarbejdspotentiale | D179: # ekstra samarbejdsinstitutioner | E179: 3 | G179: 3 | H179: 3 | J179: =IF(I179="",H179,I179) -> 3 | K179: Antaget | M179: Potentielle samarbejdspartnere med andre organisationer
B180: Antaget | C180: Forventet risici for uheld og infektioner | D180: - | E180: Ingen | G180: Ingen | H180: Ingen | J180: =IF(I180="",H180,I180) -> Ingen | K180: Antaget
B181: Antaget | C181: Forventet eksport af viden og markedspotentiale | D181: - | E181: Ingen | G181: Ingen | H181: Ingen | J181: =IF(I181="",H181,I181) -> Ingen | K181: Antaget
C183: Tekniske indikatorer
B184: Antaget | C184: Sandsynlighed for fejl | D184: % | E184: 0.2 | G184: =IF(F184="",E184,F184) -> 0.2 | H184: 0.2 | J184: =IF(I184="",H184,I184) -> 0.2 | K184: Antaget | L184: reliability is 1- probability of failure
B185: Antaget | C185: Fleksibilitet - justerbarhed af systemet | D185: % | E185: 0.6 | G185: 0.6 | H185: 0.6 | J185: =IF(I185="",H185,I185) -> 0.6 | K185: Antaget | M185: operativt spænd, håndtering af store udsving; Mulighed for at tilpasse syemet og ændre/substiturerer komponenter
B187: Forklaringstank: Beton
B188: Materialer | C188: Mængde beton | D188: m3 beton / m3 tank volume | E188: 0.18 | G188: =IF(F188="",E188,F188) -> 0.18 | H188: 0.18 | J188: =IF(I188="",H188,I188) -> 0.18 | K188: Morten Rebsdorf (Aarhus Vand) | M188: Beregning refererer til en tank med volumen på 1000 m3
B189: Volumen forhold | C189: Forhold ml. udgravnings volumen/tank volumen | D189: - | E189: 1.3 | G189: 1.3 | H189: 1.3 | J189: =IF(I189="",H189,I189) -> 1.3 | K189: Antaget
B190: Transport | C190: Transport: Produktion til konstruktion lokation | D190: km | E190: 150 | G190: 150 | H190: 150 | J190: =IF(I190="",H190,I190) -> 150 | K190: Antaget | M190: Antaget Denmark som produktionsland
B191: Levetid | C191: Levetid, tank | D191: år | E191: 50 | G191: 50 | H191: 50 | J191: =IF(I191="",H191,I191) -> 50 | K191: Antaget
C193: Netto Vand Genindvundet
B194: Drift | C194: Genindvundet vand | D194: m3 vand / dag / m3 spildevand indløb | E194: 0 | G194: =IF(F194="",E194,F194) -> 0 | H194: 0 | J194: =IF(I194="",H194,I194) -> 0 | K194: Antaget
B195: Drift | C195: Brugt vand | D195: m3 vand / dag / m3 spildevand indløb | E195: 0 | G195: 0 | H195: 0 | J195: =IF(I195="",H195,I195) -> 0 | K195: Antaget
B197: Forurening | C197: Andre direkte luftemissioner, eksklusiv drivhusgasser | D197: - | E197: Ikke sandsynligt | G197: =IF(F197="",E197,F197) -> Ikke sandsynligt | H197: Ikke sandsynligt | J197: =IF(I197="",H197,I197) -> Ikke sandsynligt | K197: Antaget
B198: Forurening | C198: Potentielle lugtgener | D198: - | E198: 1.Fysisk proces | G198: =IF(E198="1.Fysisk proces",1,IF(E198="2.Kemisk proces",2,IF(E198="3.Biologisk proces",3,IF(E198="4.Thermisk proces",4,"NaN")))) -> 1 | H198: 1.Fysisk proces | J198: =IF(H198="1.Fysisk proces",1,IF(H198="2.Kemisk proces",2,IF(H198="3.Biologisk proces",3,IF(H198="4.Thermisk proces",4,"NaN")))) -> 1 | K198: Antaget
B199: Forurening | C199: Støj potentiale | D199: dB | E199: 63 | G199: 63 | H199: 63 | J199: 63 | K199: Antaget
C201: Grundareal
B202: Areal | C202: Forklaringstank | D202: m2 m-3 spildevands inløb | E202: =$G$155/$G$153 -> 0.0001054945055 | G202: =IF(F202="",E202,F202) -> 0.0001054945055 | H202: =$J$155/$J$153 -> 0.0001054945055 | J202: =IF(I202="",H202,I202) -> 0.0001054945055 | K202: Beregnet | L202: Beregnet
B204: Udgifter | C204: CAPEX | D204: US$ m-3 | E204: =AVERAGE(200,350) -> 275 | G204: =IF(F204="",E204,F204) -> 275 | H204: =AVERAGE(200,350) -> 275 | J204: =IF(I204="",H204,I204) -> 275 | K204: Handbook Biological Waste Water Treatment - Design and Optimisation of activated sludge systems | L204: Handbook Biological Waste Water Treatment - Design and Optimisation of ... - Google Books | M204: prisniveau 2006
B205: Udgifter | C205: CAPEX | D205: DKK / m3 | E205: =$G$158*16/27300000/G206 -> 3.537414966 | G205: =IF(F205="",E205,F205) -> 3.537414966 | H205: =$J$158*16/27300000/J206 -> 3.537414966 | J205: =IF(I205="",H205,I205) -> 3.537414966
B206: Udgifter | C206: CAPEX | D206: DKK / m3 | E206: 0.7 | G206: 0.7 | H206: 0.7 | J206: 0.7 | K206: Salsnes filtre har 30-60% lavere CAPEX end forklaringstank | L206: salsnes-detailer_2016_lr.pdf
B208: Antaget | C208: Forventet risici for uheld og infektioner | D208: - | E208: Moderat | G208: =IF(F208="",E208,F208) -> Moderat | H208: Moderat | J208: =IF(I208="",H208,I208) -> Moderat | K208: Antaget
B209: Antaget | C209: Forventet eksport af viden og markedspotentiale | D209: - | E209: Lav | G209: Lav | H209: Lav | J209: Lav | K209: Antaget
C211: Tekniske indikatorer
B212: Antaget | C212: Sandsynlighed for fejl | D212: % | E212: 0.1 | G212: =IF(F212="",E212,F212) -> 0.1 | H212: 0.3 | J212: =IF(I212="",H212,I212) -> 0.3 | K212: Antaget | L212: reliability is 1- probability of failure
B213: Antaget | C213: Fleksibilitet - justerbarhed af systemet | D213: % | E213: 0.3 | G213: 0.3 | H213: 0.3 | J213: 0.3 | K213: Antaget | M213: operative range, handling big fluctuations; possiblity to adjust the system and change/substitute components

Sheet Faktorbibliotek (hidden)
B2: LCIA Metode: Attributional
B4: Kort navn | C4: Procesnavn (De engelske navne fra kilderne) | D4: Kilde | E4: Karbon fodaftryk | F4: Marin Eutrofiering | G4: Ferskvandseutrofiering
E5: kg CO2-ækv. | F5: kg N-ækv. | G5: kg P-ækv.
B6: Karbon stål produktion | C6: reinforcing steel,reinforcing steel production,RER (carbon steel, unalloyed steel) [kg] | D6: Ecoinvent | E6: 2.299313633 | F6: 0.001980984769 | G6: 9.246256741e-05 | H6: Tjek v.3.8 updatering
B7: Rustfri stål produktion | C7: steel, chromium steel 18/8, hot rolled,steel production, chromium steel 18/8, hot rolled,RER [kg] | D7: Ecoinvent | E7: ='Værdier - Påvirkningskategorier'!D54 -> 4.835544802 | F7: ='Værdier - Påvirkningskategorier'!N54 -> 0.005152753928 | G7: ='Værdier - Påvirkningskategorier'!M54 -> 0.000186572444 | H7: Tjek v.3.8 updatering
B8: Zinkbelægning | C8: zinc coat, pieces, adjustment per micro-m,zinc coating, pieces, adjustment per micro-m,RER [m2] | D8: Ecoinvent | E8: 0.04732533079 | F8: 0.0001047785131 | G8: 5.379230449e-06 | H8: Tjek v.3.8 updatering
B9: Zinkbelægning - rettet 100 um lag | C9: zinc coat, pieces, adjustment per micro-m,zinc coating, pieces, adjustment per micro-m,RER - corrected for a 100 um zinc layer [m2] | D9: Ecoinvent | E9: =E8*1.53*100 -> 7.240775611 | F9: 0.01603111251 | G9: 0.0008230222587 | H9: Tjek v.3.8 updatering
B10: Beton | C10: concrete block,concrete block production,DE [kg] | D10: EASETECH | E10: 0.133740032 | F10: 0.0001551473162 | G10: 2.78468062e-06 | H10: Tjek v.3.8 updatering
B11: Transport - Motorvej | C11: Truck, 28t-32t, Euro6, highway [kg.km] | D11: EASETECH | E11: 5.347860241e-05 | F11: 2.124583017e-08 | G11: 4.543098555e-11 | H11: Tjek v.3.8 updatering
B12: Transport - Urban trafik | C12: Truck, 28t-32t, Euro6, urban traffic [kg.km] | D12: EASETECH | E12: 9.07393979e-05 | F12: 3.647834028e-08 | G12: 7.717044121e-11 | H12: Tjek v.3.8 updatering
B13: HDPE | C13: Polyethylene high density granulate (PE-HD), 1999, RER, ELCD [kg] | D13: EASETECH/ELCD | E13: 2.038744306 | F13: 0.001260638618 | G13: 7.382727e-07 | H13: Tjek v.3.8 updatering
B14: Stål, genanvendelse | C14: Steel recycling, Europe based on Rigamonti | D14: EASETECH | E14: 0.1212 | F14: ='Værdier - Påvirkningskategorier'!$N$5 -> 0.0001630003554 | G14: ='Værdier - Påvirkningskategorier'!$M$5 -> 1.844227999e-06 | H14: Tjek v.3.8 updatering | I14: ME, FE faktorer bør opdateres ved at køre easetech (v.3.3.7) igen
B15: Deponering - skrot af rustfri stål | C15: Waste treatment_landfill of metals | D15: EASETECH | E15: 0.01527 | F15: ='Værdier - Påvirkningskategorier'!$N$13 -> 4.367479675e-05 | G15: ='Værdier - Påvirkningskategorier'!$M$13 -> 4.33929144e-08 | H15: Tjek v.3.8 updatering | I15: ME, FE faktorer bør opdateres ved at køre easetech (v.3.3.7) igen
C16: Substitution steel, market ratio 100% | D16: EASETECH | E16: -4.007344514 | F16: =-0.85*F7 -> -0.004379840839 | G16: =-0.85*G7 -> -0.0001585865774 | H16: Tjek v.3.8 updatering
B17: Deponering - skrot af rustfri stål | C17: Waste treatment_landfill of metals | D17: EASETECH | E17: 0.01527 | F17: =F15 -> 4.367479675e-05 | G17: 1.6210508e-07 | H17: Tjek v.3.8 updatering | I17: ME, FE faktorer bør opdateres ved at køre easetech (v.3.3.7) igen
C18: Substitution steel, market ratio 100% | D18: EASETECH | E18: =-0.85*E6 -> -1.954416588 | F18: -0.04193596182 | G18: -0.001957363205 | H18: Tjek v.3.8 updatering | I18: ME, FE faktorer bør opdateres ved at køre easetech (v.3.3.7) igen
B19: Beton genanvendelse | C19: Concrete reuse [kg] | D19: EASETECH | E19: ='Værdier - Påvirkningskategorier'!D46 -> 0.0004014239344 | F19: 7.572478217e-06 | G19: -2.55032244e-07 | H19: Tjek v.3.8 updatering
B20: PE genanvendelse | C20: PE to granulate | D20: EASETECH | E20: 0.285 | F20: 0.000259 | G20: 7.65e-06
B21: Forbrænding plastik | C21: Waste incineration of plastics (unspecified) in MSW, 2006, EU-27, ELCD | D21: EASETECH/ELCD | E21: 0.676 | F21: -0.0009 | G21: -2.46e-06
B23: Electricitets mix 2025 | C23: El mix 2025 - DK [kWh] | D23: mix of ecoinvent processes v.3.5 | E23: 0.255 | F23: 0.000287 | G23: 1.002e-05
B24: Fe(III)Cl | C24: iron (III) chloride, without water, in 40% solution state,iron (III) chloride production, product in 40% solution state,CH [kg] - corrected | D24: Ecoinvent v. 3.5 | E24: =0.4*0.5812 -> 0.23248 | F24: =0.000644048920457066*0.4 -> 0.0002576195682 | G24: =0.000150542604828367*0.4 -> 6.021704193e-05
B25: Polymer | C25: polyacrylamide,polyacrylamide production,GLO [kg] | D25: Ecoinvent v. 3.5 | E25: 2.8 | F25: 0.009713339674 | G25: 0.0001061876236
B26: Drikkevand | C26: Drinking water from groundwater, RER, 2005, ELCD [kg] | D26: EASETECH | E26: 0.000579 | F26: 5.859590592e-07 | G26: 4.50364134e-10
B28: Deponering - beton | C28: treatment of waste concrete, intert material landfill, Europe wo CH | D28: Ecoinvent v.3.5 | E28: 0.005426 | F28: 1.715e-05 | G28: 9.881e-08
B29: Deponering - polyethylene | C29: ecoinvent: treatment of waste polyethylene, sanitary landfill, RoW | D29: Ecoinvent v.3.5 | E29: 0.049569 | F29: 5.629e-05 | G29: 2.761e-07
B30: Forbrænding - skrot af rustfri stål | C30: treatment of scrap steel, municipal incineration, Europe wo CH | D30: Ecoinvent v.3.5 | E30: 0.053344 | F30: 8.3011e-05 | G30: 2.4825e-06 | H30: IMPORT PROCESS FRA ECOINVENT TIL EASETECH
B32: Beton genanvendelse/genbrug | C32: MSWIBA aggregate in Road soil subgrade as part of the technoshere | D32: EASETECH | E32: =3.692/6038 -> 0.0006114607486 | F32: -4.990083947e-07 | G32: -5.857686583e-09
B34: CH4 emissioner | C34: GWP-CH4 | D34: IPCC 2013 | E34: 28 | F34: 0 | G34: 0
B35: Naturgas produktion + forbrænding | C35: Natural gas substitution [Nm3] | D35: EASETECH | E35: 3.44 | F35: 0.0001701098101 | G35: 1.165000495e-08
B36: Udgravning | C36: excavation, hydraulic digger, RER [m3] | D36: ecoinvent v.3.5 | E36: 0.5466 | F36: 0.002373 | G36: 6.604e-06
B38: omregningsfaktor: kg til ton | C38: =1/1000 -> 0.001
B39: Fra decimal til % | C39: 100

Sheet Mellemregning 1 (hidden)
B2: LCA Miljøpåvirkninger | BA2: Andre LCA kategorier
D3: Klimaforandringer | E3: Marin eutrofiering | F3: Ferskvand eutrofiering | G3: 1) Behandlingseffektivitet - Total Nitrogen | H3: 2) Behandlingseffektivitet - Total Phosphor | I3: 3) Behandlingseffektivitet- COD | J3: 4) Marine eutrophication potential | K3: 5) Freshwater eutrophication potential | L3: 6) ENEI (?) maybe it could be included | M3: Karbon fodaftryk | N3: 1) P genindvinding | O3: 2) N genindvinding | P3: 3) C genindvinding (som COD) | Q3: 4) Restaffald | R3: Net Vand Geninvundet | S3: Andre direkte emissioner til luft, eksklusiv drivhusgasser | T3: Odourgene potentiale | U3: Støj potentiale | V3: Areal behov | X3: Indikatorer | Y3: 1) Totale omkostninger | Z3: 2) Tilbagebetalingsperiode | AA3: OPEX (uden andre udgifter) | AB3: CAPEX | AC3: Indtægter | AD3: 1) Afgifter: Udledningsafgifter/beskatning | AE3: 2) Afgifter: Deponeringsafgifter | AF3: 3) Afgifter: forbrændingsafgift | AG3: 4) Karbon skat/afgift | AH3: 1) Pontentiale for ekstern finansering og tilskud | AI3: 2) Servicediversificeringspotentiale | AK3: Indikatorer | AL3: Antal nye fuldtidsjobs | AM3: Antal undervisninger i skoler og universiteter | AN3: Samarbejdspotentiale | AO3: Forventet risici for uheld og infektioner | AP3: Markedspotentiale | AR3: Indikatorer | AS3: Overordnet pålidelighed | AT3: Evne til at justerer systemet
D4: [kg CO2-ækv.] | E4: [kg N-ækv.] | F4: [kg P-ækv.] | G4: [% TN reduktion] | H4: [% TP reduktion] | I4: [% COD reduktion] | N4: [% genindvundet P] | O4: [% genindvundet N] | P4: [% genindvundet COD] | Q4: [kg år-1] | R4: [m3 år-1] | S4: - | T4: - | U4: [dB] | V4: [m2] | Y4: [DKK år-1] | Z4: [år] | AA4: [DKK år-1] | AB4: [DKK år-1] | AC4: [DKK år-1] | AD4: [DKK år-1] | AE4: [DKK år-1] | AF4: [DKK år-1] | AG4: [DKK år-1] | AH4: [#/år]
C5: Slamlagertank: rustfri stål
C6: Materialegenerering | D6: =(D7+D8+D9)/'Basis info'!$B$4 ->  | E6: =(E7+E8+E9)/'Basis info'!$B$4 ->  | F6: =(F7+F8+F9)/'Basis info'!$B$4 -> 
C7: Rustfri stål | D7: =Baggrundsdata!$G$64*Faktorbibliotek!E$7*'Input system 1'!$J$7*('Basis info'!$B$4/'Input system 1'!$G$7) ->  | E7: =Baggrundsdata!$G$64*Faktorbibliotek!F$7*'Input system 1'!$J$7*('Basis info'!$B$4/'Input system 1'!$G$7) ->  | F7: =Baggrundsdata!$G$64*Faktorbibliotek!G$7*'Input system 1'!$J$7*('Basis info'!$B$4/'Input system 1'!$G$7) -> 
C8: Karbon stål | D8: =Baggrundsdata!$G$65*Faktorbibliotek!E$6*'Input system 1'!$J$7*('Basis info'!$B$4/'Input system 1'!$G$7) ->  | E8: =Baggrundsdata!$G$65*Faktorbibliotek!F$6*'Input system 1'!$J$7*('Basis info'!$B$4/'Input system 1'!$G$7) ->  | F8: =Baggrundsdata!$G$65*Faktorbibliotek!G$6*'Input system 1'!$J$7*('Basis info'!$B$4/'Input system 1'!$G$7) -> 
C9: Zinkbelægning | D9: =Baggrundsdata!$G$66*Faktorbibliotek!E$9*'Input system 1'!$J$7*('Basis info'!$B$4/Baggrundsdata!$G$67) -> 0 | E9: =Baggrundsdata!$G$66*Faktorbibliotek!F$9*'Input system 1'!$J$7*('Basis info'!$B$4/Baggrundsdata!$G$67) -> 0 | F9: =Baggrundsdata!$G$66*Faktorbibliotek!G$9*'Input system 1'!$J$7*('Basis info'!$B$4/Baggrundsdata!$G$67) -> 0
C10: Transport | D10: =(D11+D12)/'Basis info'!$B$4 ->  | E10: =(E11+E12)/'Basis info'!$B$4 ->  | F10: =(F11+F12)/'Basis info'!$B$4 -> 
C11: Transport fra produktion til anlægslokationen | D11: =Baggrundsdata!$G$68*(Baggrundsdata!$G$64+Baggrundsdata!$G$65)*'Input system 1'!$J$7*Faktorbibliotek!E$11*('Basis info'!$B$4/'Input system 1'!$G$7) ->  | E11: =Baggrundsdata!$G$68*(Baggrundsdata!$G$64+Baggrundsdata!$G$65)*'Input system 1'!$J$7*Faktorbibliotek!F$11*('Basis info'!$B$4/'Input system 1'!$G$7) ->  | F11: =Baggrundsdata!$G$68*(Baggrundsdata!$G$64+Baggrundsdata!$G$65)*'Input system 1'!$J$7*Faktorbibliotek!G$11*('Basis info'!$B$4/'Input system 1'!$G$7) -> 
C12: Transport af affald til bortskaffelsesanlæg | D12: ='Input system 1'!$J$7*(Baggrundsdata!$G$64+Baggrundsdata!$G$65)*Baggrundsdata!$G$8*Faktorbibliotek!E$12*('Basis info'!$B$4/'Input system 1'!$G$7) ->  | E12: ='Input system 1'!$J$7*(Baggrundsdata!$G$64+Baggrundsdata!$G$65)*Baggrundsdata!$G$8*Faktorbibliotek!F$12*('Basis info'!$B$4/'Input system 1'!$G$7) ->  | F12: ='Input system 1'!$J$7*(Baggrundsdata!$G$64+Baggrundsdata!$G$65)*Baggrundsdata!$G$8*Faktorbibliotek!G$12*('Basis info'!$B$4/'Input system 1'!$G$7) -> 
C13: Konstruktiont | D13: 0 | E13: 0 | F13: 0
C14: Drift | D14: 0 | E14: 0 | F14: 0
C15: Bortskaffelse/Nedrivning | D15: =(D16+D19+D22)/'Basis info'!$B$4 ->  | E15: =(E16+E19+E22)/'Basis info'!$B$4 ->  | F15: =(F16+F19+F22)/'Basis info'!$B$4 -> 
C16: Genanvendelse | D16: =(D17+D18) -> 0 | E16: =(E17+E18) -> 0 | F16: =(F17+F18) -> 0
C17: Genanvendelse rustfri stål | D17: =IF('Input system 1'!$M$7="Genanvendelse",Baggrundsdata!$G$64*(Faktorbibliotek!E$14-Baggrundsdata!$G$9*Faktorbibliotek!E$7*1+Faktorbibliotek!E$17*(1-Baggrundsdata!$G$9))*'Input system 1'!$J$7*('Basis info'!$B$4/'Input system 1'!$G$7), 0) -> 0 | E17: =IF('Input system 1'!$M$7="Genanvendelse",Baggrundsdata!$G$64*(Faktorbibliotek!F$14-Baggrundsdata!$G$9*Faktorbibliotek!F$7*1+Faktorbibliotek!F$17*(1-Baggrundsdata!$G$9))*'Input system 1'!$J$7*('Basis info'!$B$4/'Input system 1'!$G$7),0) -> 0 | F17: =IF('Input system 1'!$M$7="Genanvendelse",Baggrundsdata!$G$64*(Faktorbibliotek!G$14-Baggrundsdata!$G$9*Faktorbibliotek!G$7*1+Faktorbibliotek!G$17*(1-Baggrundsdata!$G$9))*'Input system 1'!$J$7*('Basis info'!$B$4/'Input system 1'!$G$7),0) -> 0 | Q17: =((1-Baggrundsdata!$G$9*Baggrundsdata!$G$10)*(Baggrundsdata!$G$64)*'Input system 1'!$J$7*('Basis info'!$B$4/'Input system 1'!$G$7))/'Basis info'!$B$4 -> 
C18: Genanvendelse karbon stål | D18: =IF('Input system 1'!$M$7="Genanvendelse",Baggrundsdata!$G$65*(Faktorbibliotek!E$14-Baggrundsdata!$G$9*Faktorbibliotek!E$6*1+Faktorbibliotek!E$17*(1-Baggrundsdata!$G$9))*'Input system 1'!$J$7*('Basis info'!$B$4/'Input system 1'!$G$7),0) -> 0 | E18: =IF('Input system 1'!$M$7="Genanvendelse",Baggrundsdata!$G$65*(Faktorbibliotek!F$14-Baggrundsdata!$G$9*Faktorbibliotek!F$6*1+Faktorbibliotek!F$17*(1-Baggrundsdata!$G$9))*'Input system 1'!$J$7*('Basis info'!$B$4/'Input system 1'!$G$7),0) -> 0 | F18: =IF('Input system 1'!$M$7="Genanvendelse",Baggrundsdata!$G$65*(Faktorbibliotek!G$14-Baggrundsdata!$G$9*Faktorbibliotek!G$6*1+Faktorbibliotek!G$17*(1-Baggrundsdata!$G$9))*'Input system 1'!$J$7*('Basis info'!$B$4/'Input system 1'!$G$7),0) -> 0 | Q18: =((1-Baggrundsdata!$G$9*Baggrundsdata!$G$10)*(Baggrundsdata!$G$65)*'Input system 1'!$J$7*('Basis info'!$B$4/'Input system 1'!$G$7))/'Basis info'!$B$4 -> 
C19: Deponering | D19: =D20+D21 -> 0 | E19: =E20+E21 -> 0 | F19: 0
C20: Deponering rustfri stål | D20: =IF('Input system 1'!$M$7="Deponering",Baggrundsdata!$G$64*Faktorbibliotek!$E$17*'Input system 1'!$J$7*('Basis info'!$B$4/'Input system 1'!$G$7),0) -> 0 | E20: =IF('Input system 1'!$M$7="Deponering",Baggrundsdata!$G$64*Faktorbibliotek!$F$17*'Input system 1'!$J$7*('Basis info'!$B$4/'Input system 1'!$G$7),0) -> 0 | F20: =IF('Input system 1'!$M$7="Deponering",Baggrundsdata!$G$64*Faktorbibliotek!$G$17*'Input system 1'!$J$7*('Basis info'!$B$4/'Input system 1'!$G$7),0) -> 0 | Q20: =((Baggrundsdata!$G$64)*'Input system 1'!$J$7*('Basis info'!$B$4/'Input system 1'!$G$7))/'Basis info'!$B$4 -> 
C21: Deponering karbon stål | D21: =IF('Input system 1'!$M$7="Deponering", Baggrundsdata!$G$65*Faktorbibliotek!$E$17*'Input system 1'!$J$7*('Basis info'!$B$4/'Input system 1'!$G$7),0) -> 0 | E21: =IF('Input system 1'!$M$7="Deponering", Baggrundsdata!$G$65*Faktorbibliotek!$F$17*'Input system 1'!$J$7*('Basis info'!$B$4/'Input system 1'!$G$7),0) -> 0 | F21: =IF('Input system 1'!$M$7="Deponering", Baggrundsdata!$G$65*Faktorbibliotek!$G$17*'Input system 1'!$J$7*('Basis info'!$B$4/'Input system 1'!$G$7),0) -> 0 | Q21: =((Baggrundsdata!$G$65)*'Input system 1'!$J$7*('Basis info'!$B$4/'Input system 1'!$G$7))/'Basis info'!$B$4 -> 
C22: Forbrænding | D22: =D23+D24 -> 0 | E22: =E23+E24 -> 0 | F22: 0
C23: Forbrænding rustfrit stål | D23: =IF('Input system 1'!$M$7="Forbrænding",Baggrundsdata!$G$64*Faktorbibliotek!E$30*'Input system 1'!$J$7*('Basis info'!$B$4/'Input system 1'!$G$7),0) -> 0 | E23: =IF('Input system 1'!$M$7="Forbrænding",Baggrundsdata!$G$64*Faktorbibliotek!F$30*'Input system 1'!$J$7*('Basis info'!$B$4/'Input system 1'!$G$7),0) -> 0 | F23: =IF('Input system 1'!$M$7="Forbrænding",Baggrundsdata!$G$64*Faktorbibliotek!G$30*'Input system 1'!$J$7*('Basis info'!$B$4/'Input system 1'!$G$7),0) -> 0 | Q23: =((Baggrundsdata!$G$64)*'Input system 1'!$J$7*('Basis info'!$B$4/'Input system 1'!$G$7))/'Basis info'!$B$4 -> 
C24: Forbrænding karbon stål | D24: =IF('Input system 1'!$M$7="Forbrænding", Baggrundsdata!$G$65*Faktorbibliotek!E$30*'Input system 1'!$J$7*('Basis info'!$B$4/'Input system 1'!$G$7),0) -> 0 | E24: =IF('Input system 1'!$M$7="Forbrænding", Baggrundsdata!$G$65*Faktorbibliotek!F$30*'Input system 1'!$J$7*('Basis info'!$B$4/'Input system 1'!$G$7),0) -> 0 | F24: =IF('Input system 1'!$M$7="Forbrænding", Baggrundsdata!$G$65*Faktorbibliotek!G$30*'Input system 1'!$J$7*('Basis info'!$B$4/'Input system 1'!$G$7),0) -> 0 | Q24: =((+Baggrundsdata!$G$65)*'Input system 1'!$J$7*('Basis info'!$B$4/'Input system 1'!$G$7))/'Basis info'!$B$4 -> 
C26: OPEX | P26: =(Baggrundsdata!$G$49*Baggrundsdata!$G$50+Baggrundsdata!$G$73*1000)/Baggrundsdata!$G$49 -> 0.3982318932
C27: Naturgas substitution/Omsætning, salg af biomethan | D27: =-Baggrundsdata!$G$23*'Input system 1'!$J$11*Baggrundsdata!$G$70*Faktorbibliotek!$E$35*(1-Baggrundsdata!$G$25) -> 0 | E27: =-Baggrundsdata!$G$23*'Input system 1'!$J$11*Baggrundsdata!$G$70*Faktorbibliotek!$F$35*(1-Baggrundsdata!$G$25) -> 0 | F27: =-Baggrundsdata!$G$23*'Input system 1'!$J$11*Baggrundsdata!$G$70*Faktorbibliotek!$G$35*(1-Baggrundsdata!$G$25) -> 0 | AC27: =Baggrundsdata!$G$23*'Input system 1'!$J$11*Baggrundsdata!$G$70*Baggrundsdata!$G$45*(1-Baggrundsdata!$G$25) -> 0
C30: Netto påvirkning - Rustfri stål tank | D30: =D15+D14+D13+D10+D6 ->  | E30: =E15+E14+E13+E10+E6 ->  | F30: =F15+F14+F13+F10+F6 ->  | G30: Ikke Relevant | H30: Ikke Relevant | I30: Ikke Relevant | N30: Ikke Relevant | O30: Ikke Relevant | P30: Ikke relevant | Q30: =IF('Input system 1'!$M$7="Genanvendelse", Q17+Q18, IF('Input system 1'!$M$7="Deponering",Q20+Q21,IF('Input system 1'!$M$7="Forbrænding",Q23+Q24,"NA"))) -> NA | R30: =Baggrundsdata!$G$76-Baggrundsdata!$G$77 -> 0 | S30: =Baggrundsdata!$G$79 -> Ikke sandsynligt | T30: =Baggrundsdata!$G$80 -> 1 | U30: =Baggrundsdata!$G$81 -> 10 | V30: =Baggrundsdata!$G$63*'Input system 1'!$J$7 ->  | Y30: =(AA30+AB30+AD30+AE30+AF30+AG30)-AC30 ->  | Z30: =IF($AC$30=0,0,IF(($AC$30-($AA$30+$AD$30+$AE$30+$AF$30+$AG$30))<0,0,(Baggrundsdata!$G$69*'Input system 1'!$J$7)/($AC$30-($AA$30+$AD$30+$AE$30+$AF$30+$AG$30)))) -> 0 | AB30: =-PMT(Baggrundsdata!$G$21,'Basis info'!$B$4,Baggrundsdata!$G$69*'Input system 1'!$J$7*('Basis info'!$B$4/'Input system 1'!$G$7)) ->  | AC30: 0 | AH30: =Baggrundsdata!$G$83 -> 1 | AI30: =Baggrundsdata!$G$85 -> 0 | AL30: =Baggrundsdata!$G$88 -> 0 | AM30: =Baggrundsdata!$G$89 -> 1 | AN30: =Baggrundsdata!$G$90 -> 3 | AO30: =Baggrundsdata!$G$91 -> Ingen | AP30: =Baggrundsdata!$G$92 -> Ingen | AS30: Ikke Relevant | AT30: Ikke Relevant
C33: Slamlagertank: beton
C34: Materialegenerering | D34: =(D35+D36)/'Basis info'!$B$4 ->  | E34: =(E35+E36)/'Basis info'!$B$4 ->  | F34: =(F35+F36)/'Basis info'!$B$4 -> 
C35: Beton | D35: =Baggrundsdata!$G$99*Faktorbibliotek!E$10*('Basis info'!$B$4/'Input system 1'!$G$7)*'Input system 1'!$J$7 ->  | E35: =Baggrundsdata!$G$99*Faktorbibliotek!F$10*('Basis info'!$B$4/'Input system 1'!$G$7)*'Input system 1'!$J$7 ->  | F35: =Baggrundsdata!$G$99*Faktorbibliotek!G$10*('Basis info'!$B$4/'Input system 1'!$G$7)*'Input system 1'!$J$7 -> 
C36: PE | D36: =Baggrundsdata!$G$100*Faktorbibliotek!E$13*('Basis info'!$B$4/'Input system 1'!$G$7)*'Input system 1'!$J$7 ->  | E36: =Baggrundsdata!$G$100*Faktorbibliotek!F$13*('Basis info'!$B$4/'Input system 1'!$G$7)*'Input system 1'!$J$7 ->  | F36: =Baggrundsdata!$G$100*Faktorbibliotek!G$13*('Basis info'!$B$4/'Input system 1'!$G$7)*'Input system 1'!$J$7 -> 
C38: Transport | D38: =(D39+D40)/'Basis info'!$B$4 ->  | E38: =(E39+E40)/'Basis info'!$B$4 ->  | F38: =(F39+F40)/'Basis info'!$B$4 -> 
C39: Transport fra produktion til anlægslokationen | D39: ='Input system 1'!$J$7*(Baggrundsdata!$G$101*(Baggrundsdata!$G$99+Baggrundsdata!$G$100)*Faktorbibliotek!E$11*('Basis info'!$B$4/'Input system 1'!$G$7)) ->  | E39: ='Input system 1'!$J$7*(Baggrundsdata!$G$101*(Baggrundsdata!$G$99+Baggrundsdata!$G$100)*Faktorbibliotek!F$11*('Basis info'!$B$4/'Input system 1'!$G$7)) ->  | F39: ='Input system 1'!$J$7*(Baggrundsdata!$G$101*(Baggrundsdata!$G$99+Baggrundsdata!$G$100)*Faktorbibliotek!G$11*('Basis info'!$B$4/'Input system 1'!$G$7)) -> 
C40: Transport af affald til bortskaffelsesanlæg | D40: ='Input system 1'!$J$7*(Baggrundsdata!$G$102*(Baggrundsdata!$G$99+Baggrundsdata!$G$100)*Faktorbibliotek!E$12*('Basis info'!$B$4/'Input system 1'!$G$7)) ->  | E40: ='Input system 1'!$J$7*(Baggrundsdata!$G$102*(Baggrundsdata!$G$99+Baggrundsdata!$G$100)*Faktorbibliotek!F$12*('Basis info'!$B$4/'Input system 1'!$G$7)) ->  | F40: ='Input system 1'!$J$7*(Baggrundsdata!$G$102*(Baggrundsdata!$G$99+Baggrundsdata!$G$100)*Faktorbibliotek!G$12*('Basis info'!$B$4/'Input system 1'!$G$7)) -> 
C41: Konstruktiont | D41: 0 | E41: 0 | F41: 0
C42: Drift | D42: 0 | E42: 0 | F42: 0
C43: Bortskaffelse/Nedrivning | D43: =(D45+D48)/'Basis info'!$B$4 ->  | E43: =(E45+E48)/'Basis info'!$B$4 ->  | F43: =(F45+F48)/'Basis info'!$B$4 -> 
C44: Genanvendelse
C45: Genbrug beton | D45: =IF('Input system 1'!$M$7="Genanvendelse",'Input system 1'!$J$7*(Baggrundsdata!$G$99*Baggrundsdata!$G$11*Faktorbibliotek!$E$19*('Basis info'!$B$4/'Input system 1'!$G$7)),0) -> 0 | E45: =IF('Input system 1'!$M$7="Genanvendelse",'Input system 1'!$J$7*(Baggrundsdata!$G$99*Baggrundsdata!$G$11*Faktorbibliotek!$F$19*('Basis info'!$B$4/'Input system 1'!$G$7)),0) -> 0 | F45: =IF('Input system 1'!$M$7="Genanvendelse",'Input system 1'!$J$7*(Baggrundsdata!$G$99*Baggrundsdata!$G$11*Faktorbibliotek!$G$19*('Basis info'!$B$4/'Input system 1'!$G$7)),0) -> 0
C46: Genanvendelse PE
C47: Deponering
C48: Deponering beton | D48: =IF('Input system 1'!$M$7="Deponering",'Input system 1'!$J$7*(Baggrundsdata!$G$99*Faktorbibliotek!E28*('Basis info'!$B$4/'Input system 1'!$G$7)),0) -> 0 | E48: =IF('Input system 1'!$M$7="Deponering",'Input system 1'!$J$7*(Baggrundsdata!$G$99*Faktorbibliotek!F28*('Basis info'!$B$4/'Input system 1'!$G$7)),0) -> 0 | F48: =IF('Input system 1'!$M$7="Deponering",'Input system 1'!$J$7*(Baggrundsdata!$G$99*Faktorbibliotek!G28*('Basis info'!$B$4/'Input system 1'!$G$7)),0) -> 0
C49: Deponering PE
C51: OPEX | P51: =(Baggrundsdata!$G$49*Baggrundsdata!$G$50+Baggrundsdata!$G$111*1000)/Baggrundsdata!$G$49 -> 0.3982318932
A52: Naturgas substitution/Omsætning, salg af biomethan | D52: =-Baggrundsdata!$G$23*'Input system 1'!$J$11*Baggrundsdata!$G$104*Faktorbibliotek!$E$35*(1-Baggrundsdata!$G$25) -> 0 | E52: =-Baggrundsdata!$G$23*'Input system 1'!$J$11*Baggrundsdata!$G$104*Faktorbibliotek!$F$35*(1-Baggrundsdata!$G$25) -> 0 | F52: =-Baggrundsdata!$G$23*'Input system 1'!$J$11*Baggrundsdata!$G$104*Faktorbibliotek!$G$35*(1-Baggrundsdata!$G$25) -> 0 | AC52: =Baggrundsdata!$G$23*'Input system 1'!$J$11*Baggrundsdata!$G$70*Baggrundsdata!$G$45*(1-Baggrundsdata!$G$25) -> 0
C54: Netto påvirkning | D54: =D43+D41+D42+D38+D34 ->  | E54: =E43+E41+E42+E38+E34 ->  | F54: =F43+F41+F42+F38+F34 ->  | G54: Ikke Relevant | H54: Ikke Relevant | I54: Ikke Relevant | N54: Ikke Relevant | O54: Ikke Relevant | P54: Ikke relevant | Q54: =(IF('Input system 1'!$M$7="Genanvendelse",((Baggrundsdata!$G$99)-Baggrundsdata!$G$11*(Baggrundsdata!$G$99))*'Input system 1'!$J$7*('Basis info'!$B$4/'Input system 1'!$G$7),IF('Input system 1'!M7="Ingen","NA",(Baggrundsdata!$G$99)*'Input system 1'!$J$7*('Basis info'!$B$4/'Input system 1'!$G$7))))/'Basis info'!$B$4 ->  | R54: =Baggrundsdata!$G$114-Baggrundsdata!$G$115 -> 0 | S54: =Baggrundsdata!$G$106 -> Ikke sandsynligt | T54: =Baggrundsdata!$G$107 -> 1 | U54: =Baggrundsdata!$G$108 -> 0 | V54: =Baggrundsdata!$G$98*'Input system 1'!$J$7*('Basis info'!$B$4/'Input system 1'!$G$7) ->  | Y54: =(AA54+AB54+AD54+AE54+AF54+AG54)-AC54 ->  | Z54: =IF(AC54=0,0,IF((AC54-(AA54+AD54+AE54+AF54+AG54))<0,0,(Baggrundsdata!$G$103*'Input system 1'!$J$7)/(AC54-(AA54+AD54+AE54+AF54+AG54)))) -> 0 | AB54: =-PMT(Baggrundsdata!$G$21,'Basis info'!$B$4,Baggrundsdata!$G$103*'Input system 1'!$J$7) ->  | AC54: 0 | AH54: =Baggrundsdata!$G$117 -> 1 | AI54: =Baggrundsdata!$G$119 -> 0 | AL54: =Baggrundsdata!$G$122 -> 0 | AM54: =Baggrundsdata!$G$123 -> 1 | AN54: =Baggrundsdata!$G$124 -> 3 | AO54: =Baggrundsdata!$G$125 -> Ingen | AP54: =Baggrundsdata!$G$126 -> Ingen | AS54: Ikke Relevant | AT54: Ikke Relevant
D56: Klimaforandringer | E56: Marin Eutrofiering | F56: Ferskvand Eutrofiering
C57: Forfiltrering: infrastruktur | D57: [kg CO2-ækv./år] | E57: [kg N-ækv./år] | F57: [kg P-ækv./år]
C58: Materialegenerering | D58: =D59+D60+D61 -> 0 | E58: =E59+E60+E61 -> 0 | F58: 0
B59: remove 1/2 in the final version | C59: Beton | D59: =1/2*(Baggrundsdata!$G$138*Faktorbibliotek!E$10) -> 0 | E59: =1/2*(Baggrundsdata!$G$138*Faktorbibliotek!F$10) -> 0 | F59: =1/2*(Baggrundsdata!$G$138*Faktorbibliotek!G$10) -> 0
C60: PE | D60: =(Baggrundsdata!$G$136+Baggrundsdata!$G$137)*Faktorbibliotek!E$13 -> 0 | E60: =(Baggrundsdata!$G$136+Baggrundsdata!$G$137)*Faktorbibliotek!F$13 -> 0 | F60: =(Baggrundsdata!$G$136+Baggrundsdata!$G$137)*Faktorbibliotek!G$13 -> 0
C61: Rustfrit stål | D61: =Baggrundsdata!$G$134*Faktorbibliotek!E$7 -> 0 | E61: =Baggrundsdata!$G$134*Faktorbibliotek!F$7 -> 0 | F61: =Baggrundsdata!$G$134*Faktorbibliotek!G$7 -> 0
C62: Transport | D62: =D63+D64 -> 0 | E62: =E63+E64 -> 0 | F62: 0
C63: Transport fra produktion til anlægslokationen | D63: =(Baggrundsdata!$G$134+Baggrundsdata!$G$136+Baggrundsdata!$G$137+Baggrundsdata!$G$138)*Baggrundsdata!$G$139*Faktorbibliotek!E$11 -> 0 | E63: =(Baggrundsdata!$G$134+Baggrundsdata!$G$136+Baggrundsdata!$G$137+Baggrundsdata!$G$138)*Baggrundsdata!$G$139*Faktorbibliotek!F$11 -> 0 | F63: =(Baggrundsdata!$G$134+Baggrundsdata!$G$136+Baggrundsdata!$G$137+Baggrundsdata!$G$138)*Baggrundsdata!$G$139*Faktorbibliotek!G$11 -> 0
C64: Transport af affald til bortskaffelsesanlæg | D64: =(Baggrundsdata!$G$134+Baggrundsdata!$G$136+Baggrundsdata!$G$137+Baggrundsdata!$G$138)*Baggrundsdata!$G$146*Faktorbibliotek!E$11 -> 0 | E64: =(Baggrundsdata!$G$134+Baggrundsdata!$G$136+Baggrundsdata!$G$137+Baggrundsdata!$G$138)*Baggrundsdata!$G$146*Faktorbibliotek!F$11 -> 0 | F64: =(Baggrundsdata!$G$134+Baggrundsdata!$G$136+Baggrundsdata!$G$137+Baggrundsdata!$G$138)*Baggrundsdata!$G$146*Faktorbibliotek!G$11 -> 0
C65: Konstruktiont | D65: 0 | E65: 0 | F65: 0
C66: Drift | D66: =D76 ->  | E66: =E76 ->  | F66: =F76 -> 
C67: Bortskaffelse/Nedrivning | D67: =(D68+D69+D70+D72+D73) -> 0 | E67: =(E68+E69+E70+E72+E73) -> 0 | F67: 0
C68: Genbrug beton | D68: =Faktorbibliotek!E$32*Baggrundsdata!$G$138 -> 0 | E68: =Faktorbibliotek!F$32*Baggrundsdata!$G$138 -> 0 | F68: =Faktorbibliotek!G$32*Baggrundsdata!$G$138 -> 0 | Q68: 0
C69: Genanvendelse af PE | D69: =IF('Input system 1'!$M$8="Genanvendelse", (Baggrundsdata!$G$136+Baggrundsdata!$G$137)*(Faktorbibliotek!$E$20-Baggrundsdata!$G$9*Faktorbibliotek!$E$13*Baggrundsdata!$G$10+Faktorbibliotek!$E$21*(1-Baggrundsdata!$G$9*Baggrundsdata!$G$10)),0) -> 0 | E69: =IF('Input system 1'!$M$8="Genanvendelse",(Baggrundsdata!$G$136+Baggrundsdata!$G$137)*(Faktorbibliotek!F$20-Baggrundsdata!$G$9*Faktorbibliotek!F$13*Baggrundsdata!$G$10+Faktorbibliotek!F$21*(1-Baggrundsdata!$G$9*Baggrundsdata!$G$10)),0) -> 0 | F69: =(Baggrundsdata!$G$136+Baggrundsdata!$G$137)*(Faktorbibliotek!G$20-Baggrundsdata!$G$9*Faktorbibliotek!G$13*Baggrundsdata!$G$10+Faktorbibliotek!G$21*(1-Baggrundsdata!$G$9*Baggrundsdata!$G$10)) -> 0 | Q69: =(1-Baggrundsdata!$G$10*Baggrundsdata!$G$9)*(Baggrundsdata!$G$136+Baggrundsdata!$G$137) -> 0
C70: Genanvendelse af rustfrit stål | D70: =Baggrundsdata!$G$134*(Faktorbibliotek!$E$14-Baggrundsdata!$G$9*Faktorbibliotek!$E$7*Baggrundsdata!$G$10+Faktorbibliotek!$E$17*(1-Baggrundsdata!$G$9*Baggrundsdata!$G$10)) -> 0 | E70: =Baggrundsdata!$G$134*(Faktorbibliotek!F$14-Baggrundsdata!$G$9*Faktorbibliotek!F$7*Baggrundsdata!$G$10+Faktorbibliotek!F$17*(1-Baggrundsdata!$G$9*Baggrundsdata!$G$10)) -> 0 | F70: =Baggrundsdata!$G$134*(Faktorbibliotek!G$14-Baggrundsdata!$G$9*Faktorbibliotek!G$7*Baggrundsdata!$G$10+Faktorbibliotek!G$17*(1-Baggrundsdata!$G$9*Baggrundsdata!$G$10)) -> 0 | Q70: =(1-Baggrundsdata!$G$9*Baggrundsdata!$G$10)*Baggrundsdata!$G$134 -> 0
C72: Deponering, filtre | D72: =IF('Input system 1'!$M$8="Deponering",(Baggrundsdata!$G$136+Baggrundsdata!$G$137)*Faktorbibliotek!E29,0) -> 0 | E72: =IF('Input system 1'!$M$8="Deponering",(Baggrundsdata!$G$136+Baggrundsdata!$G$137)*Faktorbibliotek!F29,0) -> 0 | F72: =IF('Input system 1'!$M$8="Deponering",(Baggrundsdata!$G$136+Baggrundsdata!$G$137)*Faktorbibliotek!G29,0) -> 0
C73: Forbrænding af filtre | D73: =IF('Input system 1'!$M$8="Forbrænding",(Baggrundsdata!$G$136+Baggrundsdata!$G$137)*Faktorbibliotek!$E$21,0) -> 0 | E73: =IF('Input system 1'!$M$8="Forbrænding",(Baggrundsdata!$G$136+Baggrundsdata!$G$137)*Faktorbibliotek!$F$21,0) -> 0 | F73: =IF('Input system 1'!$M$8="Forbrænding",(Baggrundsdata!$G$136+Baggrundsdata!$G$137)*Faktorbibliotek!$G$21,0) -> 0
C76: Forfiltrering: Drift | D76: =D77+D83 ->  | E76: =E77+E83 -> 
C77: Positiv påvirkning fra udrådning (AD) | D77: =SUM(D78:D82) ->  | E77: =SUM(E78:E82) ->  | F77: =SUM(F78:F82) -> 
C78: Elektricitetsforbrug | D78: =Baggrundsdata!$G$140*'Input system 1'!$J$11*Faktorbibliotek!E$23 -> 0 | E78: =Baggrundsdata!$G$140*'Input system 1'!$J$11*Faktorbibliotek!F$23 -> 0 | F78: =Baggrundsdata!$G$140*'Input system 1'!$J$11*Faktorbibliotek!G$23 -> 0 | AA78: =Baggrundsdata!$G$140*'Input system 1'!$J$11*Baggrundsdata!$G$37 -> 0
C79: Polymer | D79: =(Baggrundsdata!$G$141/1000)*'Input system 1'!$J$11*Faktorbibliotek!E$25 -> 0 | E79: =(Baggrundsdata!$G$141/1000)*'Input system 1'!$J$11*Faktorbibliotek!F$25 -> 0 | F79: =(Baggrundsdata!$G$141/1000)*'Input system 1'!$J$11*Faktorbibliotek!G$25 -> 0 | AA79: =(Baggrundsdata!$G$141/1000000)*'Input system 1'!$J$11*Baggrundsdata!$G$43 -> 0
C80: Jernklorid | D80: =(Baggrundsdata!$G$142/1000)*'Input system 1'!$J$11*Faktorbibliotek!E$24 -> 0 | E80: =(Baggrundsdata!$G$142/1000)*'Input system 1'!$J$11*Faktorbibliotek!F$24 -> 0 | F80: =(Baggrundsdata!$G$142/1000)*'Input system 1'!$J$11*Faktorbibliotek!G$24 -> 0 | AA80: =(Baggrundsdata!$G$142/1000000)*'Input system 1'!$J$11*Baggrundsdata!$G$42 -> 0
C81: Drikkevand | D81: =(Baggrundsdata!$G$143*1000*Baggrundsdata!$G$131*365)*Faktorbibliotek!E$26 ->  | E81: =(Baggrundsdata!$G$143*1000*Baggrundsdata!$G$131*365)*Faktorbibliotek!F$26 ->  | F81: =(Baggrundsdata!$G$143*1000*Baggrundsdata!$G$131*365)*Faktorbibliotek!G$26 ->  | R81: =Baggrundsdata!$G$144-Baggrundsdata!$G$143*Baggrundsdata!$G$131*365 ->  | AA81: =(Baggrundsdata!$G$143*'Input system 1'!$J$8*365)*Baggrundsdata!$G$35 -> 0
C82: Yderligere CH4 emissioner | D82: =IF('Input system 1'!$M$11="Ja",Baggrundsdata!$G$162*'Input system 1'!$J$11*Baggrundsdata!$G$25*0.6*Faktorbibliotek!E$34,0) -> 0 | E82: =IF('Input system 1'!$M$11="Ja",Baggrundsdata!$G$162*'Input system 1'!$J$11*Baggrundsdata!$G$25*0.6*Faktorbibliotek!F$34,0) -> 0 | F82: =IF('Input system 1'!$M$11="Ja",Baggrundsdata!$G$162*'Input system 1'!$J$11*Baggrundsdata!$G$25*0.6*Faktorbibliotek!G$34,0) -> 0 | AG82: =D82*Baggrundsdata!G31/1000 -> 0
C83: Negative påvirkninger | D83: =D84+D85 -> 0 | E83: =E84+E85 -> 0 | F83: 0
C84: Elektricitetbesparelses | D84: =Baggrundsdata!$G$163*'Input system 1'!$J$11*Faktorbibliotek!E$23 -> 0 | E84: =Baggrundsdata!$G$163*'Input system 1'!$J$11*Faktorbibliotek!F$23 -> 0 | F84: =Baggrundsdata!$G$163*'Input system 1'!$J$11*Faktorbibliotek!G$23 -> 0 | AC84: =Baggrundsdata!$G$163*'Input system 1'!$J$11*Baggrundsdata!$G$37 -> 0
C85: Eksporteret biomethan - naturgas substitution | D85: =IF('Input system 1'!$M$11="Ja",-Baggrundsdata!$G$162*Baggrundsdata!$G$24*'Input system 1'!$J$11*Faktorbibliotek!E$35,0) -> 0 | E85: =IF('Input system 1'!$M$11="Ja",-Baggrundsdata!$G$162*Baggrundsdata!$G$24*'Input system 1'!$J$11*Faktorbibliotek!F$35,0) -> 0 | F85: =IF('Input system 1'!$M$11="Ja",-Baggrundsdata!$G$162*Baggrundsdata!$G$24*'Input system 1'!$J$11*Faktorbibliotek!G$35,0) -> 0 | AC85: =IF('Input system 1'!$M$11="Ja",-Baggrundsdata!$G$162*Baggrundsdata!$G$24*'Input system 1'!$J$11*Baggrundsdata!$G$45,0) -> 0
C87: Netto påvirkning | D87: =D67+D65+D66+D62+D58 ->  | E87: =E67+E65+E66+E62+E58 ->  | F87: =F67+F65+F66+F62+F58 ->  | G87: =1-Baggrundsdata!$G$52*('Input system 1'!$J$11*Baggrundsdata!$G$55)/('Input system 1'!$J$11*Baggrundsdata!$G$47) ->  | H87: =1-Baggrundsdata!$G$53*('Input system 1'!$J$11*Baggrundsdata!$G$55)/('Input system 1'!$J$11*Baggrundsdata!$G$48) ->  | I87: =1-Baggrundsdata!$G$54*('Input system 1'!$J$11*Baggrundsdata!$G$55)/('Input system 1'!$J$11*Baggrundsdata!$G$49) ->  | N87: =Baggrundsdata!$G$56 ->  | O87: =Baggrundsdata!$G$57 ->  | P87: =(Baggrundsdata!$G$166*1000000+Baggrundsdata!$G$49*Baggrundsdata!$G$50)/Baggrundsdata!$G$49 -> 0.421364232 | Q87: =Q70+Q69+Q68 -> 0 | R87: =R81 ->  | S87: =Baggrundsdata!G168 -> Noget sandsynligt | T87: =Baggrundsdata!G169 -> 1 | U87: =Baggrundsdata!G170 -> 63 | V87: =Baggrundsdata!$G$154*Baggrundsdata!$G$131 ->  | Y87: =(AA87+AB87+AD87+AE87+AF87+AG87)-AC87 ->  | Z87: =IF(AC87>AA87,(Baggrundsdata!G158*'Input system 1'!$J$8+(Baggrundsdata!G159*'Input system 1'!$J$8*('Basis info'!$B$4/Baggrundsdata!$G$150)))/(AC87+AA87),0) -> 0 | AA87: =AA78+AA79+AA80+AA81+AA82 -> 0 | AB87: =-PMT(Baggrundsdata!$G$21,'Basis info'!$B$4,Baggrundsdata!$G$158*'Input system 1'!$J$8)-PMT(Baggrundsdata!$G$21,'Basis info'!$B$4,(Baggrundsdata!$G$159*'Input system 1'!$J$8)*'Basis info'!$B$4/Baggrundsdata!$G$150) ->  | AC87: =-(AC84+AC85) -> 0 | AG87: =SUM(AG78:AG86) -> 0 | AH87: =Baggrundsdata!$G$172 -> 1 | AI87: =Baggrundsdata!$G$174 -> 1 | AL87: =Baggrundsdata!$G$177 -> 1 | AM87: =Baggrundsdata!$G$178 -> 2 | AN87: =Baggrundsdata!$G$179 -> 3 | AO87: =Baggrundsdata!$G$180 -> Ingen | AP87: =Baggrundsdata!$G$181 -> Ingen | AS87: =1-Baggrundsdata!$G$184 -> 0.8 | AT87: =Baggrundsdata!G185 -> 0.6
P88: Dette afhænger af Inventory data input, og ikke Input system 1
C89: Forklaringstank | D89: Klimaforandringer | E89: Marin Eutrofiering | F89: Ferskvand Eutrofiering
C90: Materialegenerering | D90: =D91 -> 0 | E90: =E91 -> 0 | F90: 0
C91: Beton | D91: =Baggrundsdata!$G$188*('Input system 1'!$J$9)*(Baggrundsdata!$G$19*Faktorbibliotek!$E$10)*('Basis info'!$B$4/Baggrundsdata!$G$191) -> 0 | E91: =Baggrundsdata!$G$188*('Input system 1'!$J$9)*(Baggrundsdata!$G$19*Faktorbibliotek!$F$10)*('Basis info'!$B$4/Baggrundsdata!$G$191) -> 0 | F91: =Baggrundsdata!$G$188*('Input system 1'!$J$9)*(Baggrundsdata!$G$19*Faktorbibliotek!$G$10)*('Basis info'!$B$4/Baggrundsdata!$G$191) -> 0
C94: Transport | D94: =D95+D96 -> 0 | E94: =E95+E96 -> 0 | F94: 0
C95: Transport fra produktion til anlægslokationen | D95: =Baggrundsdata!$G$188*('Input system 1'!$J$9)*(Baggrundsdata!$G$19*Baggrundsdata!$G$190*Faktorbibliotek!E11)*('Basis info'!$B$4/Baggrundsdata!$G$191) -> 0 | E95: =Baggrundsdata!$G$188*('Input system 1'!$J$9)*(Baggrundsdata!$G$19*Baggrundsdata!$G$190*Faktorbibliotek!F11)*('Basis info'!$B$4/Baggrundsdata!$G$191) -> 0 | F95: =Baggrundsdata!$G$188*('Input system 1'!$J$9)*(Baggrundsdata!$G$19*Baggrundsdata!$G$190*Faktorbibliotek!G11)*('Basis info'!$B$4/Baggrundsdata!$G$191) -> 0
C96: Transport af affald til bortskaffelsesanlæg | D96: =Baggrundsdata!$G$188*('Input system 1'!$J$9)*(Baggrundsdata!$G$19*Baggrundsdata!$G$8*Faktorbibliotek!E11)*('Basis info'!$B$4/Baggrundsdata!$G$191) -> 0 | E96: =Baggrundsdata!$G$188*('Input system 1'!$J$9)*(Baggrundsdata!$G$19*Baggrundsdata!$G$8*Faktorbibliotek!F11)*('Basis info'!$B$4/Baggrundsdata!$G$191) -> 0 | F96: =Baggrundsdata!$G$188*('Input system 1'!$J$9)*(Baggrundsdata!$G$19*Baggrundsdata!$G$8*Faktorbibliotek!G11)*('Basis info'!$B$4/Baggrundsdata!$G$191) -> 0
C97: Konstruktion | D97: =D98 -> 0 | E97: =E98 -> 0 | F97: 0
C98: Udgravning | D98: ='Input system 1'!$J$9*Baggrundsdata!$G$189*Faktorbibliotek!E36*('Basis info'!$B$4/Baggrundsdata!$G$191) -> 0 | E98: ='Input system 1'!$J$9*Baggrundsdata!$G$189*Faktorbibliotek!F36*('Basis info'!$B$4/Baggrundsdata!$G$191) -> 0 | F98: ='Input system 1'!$J$9*Baggrundsdata!$G$189*Faktorbibliotek!G36*('Basis info'!$B$4/Baggrundsdata!$G$191) -> 0
C99: Drift
C100: Bortskaffelse/Nedrivning | D100: =D101+D105 -> 0 | E100: =E101+E105 -> 0 | F100: 0
C101: Genbrug af beton | D101: =IF('Input system 1'!$M$9="Genanvendelse",Baggrundsdata!$G$188*('Input system 1'!$J$9)*(Baggrundsdata!$G$19*Faktorbibliotek!$E$32)*('Basis info'!$B$4/Baggrundsdata!$G$191),0) -> 0 | E101: =IF('Input system 1'!$M$9="Genanvendelse",Baggrundsdata!$G$188*('Input system 1'!$J$9)*(Baggrundsdata!$G$19*Faktorbibliotek!F32)*('Basis info'!$B$4/Baggrundsdata!$G$191),0) -> 0 | F101: =IF('Input system 1'!$M$9="Genanvendelse",Baggrundsdata!$G$188*('Input system 1'!$J$9)*(Baggrundsdata!$G$19*Faktorbibliotek!G32)*('Basis info'!$B$4/Baggrundsdata!$G$191),0) -> 0 | Q101: =(('Input system 1'!$J$9*Baggrundsdata!$G$188-'Input system 1'!$J$9*Baggrundsdata!$G$188*Baggrundsdata!$G$11)*Baggrundsdata!$G$19*('Basis info'!$B$4/Baggrundsdata!$G$191))/'Basis info'!$B$4 -> 
C103: Deponering
C105: Deponering af beton | D105: =IF('Input system 1'!$M$9="Deponering",Baggrundsdata!$G$188*('Input system 1'!$J$9)*(Baggrundsdata!$G$19*Faktorbibliotek!$E$28)*('Basis info'!$B$4/Baggrundsdata!$G$191),0) -> 0 | E105: =IF('Input system 1'!$M$9="Deponering",Baggrundsdata!$G$188*('Input system 1'!$J$9)*(Baggrundsdata!$G$19*Faktorbibliotek!$F$28)*('Basis info'!$B$4/Baggrundsdata!$G$191),0) -> 0 | F105: =IF('Input system 1'!$M$9="Deponering",Baggrundsdata!$G$188*('Input system 1'!$J$9)*(Baggrundsdata!$G$19*Faktorbibliotek!$G$28)*('Basis info'!$B$4/Baggrundsdata!$G$191),0) -> 0 | Q105: =(('Input system 1'!$J$9*Baggrundsdata!$G$188*Baggrundsdata!$G$19)*('Basis info'!$B$4/Baggrundsdata!$G$191))/'Basis info'!$B$4 -> 
C108: Netto påvirkning | D108: =+D94+D90+D97+D100 -> 0 | E108: =+E94+E90+E97+E100 -> 0 | F108: =+F94+F90+F97+F100 -> 0 | G108: =1-Baggrundsdata!$G$52*('Input system 1'!$J$11*Baggrundsdata!$G$55)/('Input system 1'!$J$11*Baggrundsdata!$G$47) ->  | H108: =1-Baggrundsdata!$G$53*('Input system 1'!$J$11*Baggrundsdata!$G$55)/('Input system 1'!$J$11*Baggrundsdata!$G$48) ->  | I108: =1-Baggrundsdata!$G$54*('Input system 1'!$J$11*Baggrundsdata!$G$55)/('Input system 1'!$J$11*Baggrundsdata!$G$49) ->  | N108: =Baggrundsdata!$G$56 ->  | O108: =Baggrundsdata!$G$57 ->  | P108: =(+Baggrundsdata!$G$49*Baggrundsdata!$G$50)/Baggrundsdata!$G$49 -> 0.34 | Q108: =IF('Input system 1'!$M$9="Deponering",'Mellemregning 1'!$Q$105,'Mellemregning 1'!$Q$101) ->  | R108: =(Baggrundsdata!G195-Baggrundsdata!G194)*365*'Basis info'!B5 -> 0 | S108: =Baggrundsdata!$G$197 -> Ikke sandsynligt | T108: =Baggrundsdata!$G$198 -> 1 | U108: =Baggrundsdata!$G$199 -> 63 | V108: =Baggrundsdata!$G$202*'Input system 1'!$J$12 -> 0 | Y108: =(AA108+AB108+AD108+AE108+AG108+AF108)-AC108 ->  | Z108: =IF(AC108=0,0,IF((AC108-(AA108+AD108+AE108+AF108+AG108))<0,0,(Baggrundsdata!$G$205*'Input system 1'!$J$12)/(AC108-(AA108+AD108+AE108+AF108+AG108)))) -> 0 | AA108: 0 | AB108: =-PMT(Baggrundsdata!$G$21,'Basis info'!$B$4,Baggrundsdata!$G$205*'Input system 1'!$J$12) ->  | AC108: 0 | AD108: 0 | AE108: 0 | AF108: 0 | AG108: 0 | AH108: 0 | AI108: 0 | AL108: 0 | AM108: 0 | AN108: 0 | AO108: =Baggrundsdata!$G$208 -> Moderat | AP108: =Baggrundsdata!$G$209 -> Lav | AS108: =1-Baggrundsdata!$G$212 -> 0.9 | AT108: =Baggrundsdata!$G$213 -> 0.3
AB109: =-PMT(Baggrundsdata!$G$21,'Basis info'!$B$4,Baggrundsdata!$G$204*'Basis info'!$B$5*Baggrundsdata!$G$16) -> 

Sheet Output-Beregnede værdier 1 (hidden)
B2: Miljøpåvirkninger | C2: Karbon fodaftryk | D2: 1) Behandlingseffektivitet - Total Nitrogen | E2: 2) Behandlingseffektivitet - Total Phosphor | F2: 3) Behandlingseffektivitet- COD | G2: 4) Marin Eutrofieringspotentiale | H2: 5) Ferskvands Eutrofieringspotentiale | J2: Karbon fodaftryk | K2: 1) P gendinvinding | L2: 2) N genindvinding | M2: 3) C geninvinding (som COD) | N2: 4) Restaffald | O2: Netto Vandgenindvinding | P2: Andre emissioner til luft, eksklusiv drivhusgasser | Q2: Lugtgener | R2: Støj potentiale | S2: Areal behov
C3: [kg CO2-ækv. år-1] | D3: [% TN reduktion] | E3: [% TP reduktion] | F3: [% COD reduktion] | G3: [kg N-ækv.] | H3: [kg P-ækv.] | J3: [kg CO2-ækv. år-1] | K3: ='Mellemregning 1'!N4 -> [% genindvundet P] | L3: ='Mellemregning 1'!O4 -> [% genindvundet N] | M3: ='Mellemregning 1'!P4 -> [% genindvundet COD] | N3: ='Mellemregning 1'!Q4 -> [kg år-1] | O3: ='Mellemregning 1'!R4 -> [m3 år-1] | P3: ='Mellemregning 1'!S4 -> - | Q3: ='Mellemregning 1'!T4 -> - | R3: ='Mellemregning 1'!U4 -> [dB] | S3: ='Mellemregning 1'!V4 -> [m2]
B4: Slamlagertank: rustfri stål | C4: =IF(AND('Input system 1'!$E$7="Rustfri stål",'Input system 1'!$C$7=TRUE),'Mellemregning 1'!$D$30,"-") -> - | D4: =IF(AND('Input system 1'!$E$7="Rustfri stål",'Input system 1'!$C$7=TRUE),'Mellemregning 1'!$G$30,"-") -> - | E4: =IF(AND('Input system 1'!$E$7="Rustfri stål",'Input system 1'!$C$7=TRUE),'Mellemregning 1'!$H$30,"-") -> - | F4: =IF(AND('Input system 1'!$E$7="Rustfri stål",'Input system 1'!$C$7=TRUE),'Mellemregning 1'!$I$30,"-") -> - | G4: =IF(AND('Input system 1'!$E$7="Rustfri stål", 'Input system 1'!$C$7=TRUE),'Mellemregning 1'!E$30,"-") -> - | H4: =IF(AND('Input system 1'!$E$7="Rustfri stål", 'Input system 1'!$C$7=TRUE),'Mellemregning 1'!F$30,"-") -> - | J4: =C4 -> - | K4: =IF(AND('Input system 1'!$E$7="Rustfri stål", 'Input system 1'!$C$7=TRUE),'Mellemregning 1'!$N$30,"-") -> - | L4: =IF(AND('Input system 1'!$E$7="Rustfri stål", 'Input system 1'!$C$7=TRUE),'Mellemregning 1'!$O$30,"-") -> - | M4: =IF(AND('Input system 1'!$E$7="Rustfri stål", 'Input system 1'!$C$7=TRUE),'Mellemregning 1'!$P$30,"-") -> - | N4: =IF(AND('Input system 1'!$E$7="Rustfri stål", 'Input system 1'!$C$7=TRUE),'Mellemregning 1'!$Q$30,"-") -> - | O4: =IF(AND('Input system 1'!$E$7="Rustfri stål", 'Input system 1'!$C$7=TRUE), 'Mellemregning 1'!$R$30,"-") -> - | P4: =IF(AND('Input system 1'!$E$7="Rustfri stål", 'Input system 1'!$C$7=TRUE),'Mellemregning 1'!$S$30,"-") -> - | Q4: =IF(AND('Input system 1'!$E$7="Rustfri stål", 'Input system 1'!$C$7=TRUE),'Mellemregning 1'!$T$30,"-") -> - | R4: =IF(AND('Input system 1'!$E$7="Rustfri stål", 'Input system 1'!$C$7=TRUE),'Mellemregning 1'!$U$30,0) -> 0 | S4: =IF(AND('Input system 1'!$C$7=TRUE,'Input system 1'!$E$7="Rustfri stål"),'Mellemregning 1'!$V$30,"-") -> -
B5: Slamlagertank: beton | C5: =IF(AND('Input system 1'!$E$7="Beton",'Input system 1'!C7=TRUE),'Mellemregning 1'!$D$54,"-") -> - | D5: =IF(AND('Input system 1'!$E$7="Beton",'Input system 1'!$C$7=TRUE),'Mellemregning 1'!$G$54,"NA") -> NA | E5: =IF(AND('Input system 1'!$E$7="Beton",'Input system 1'!$C$7=TRUE),'Mellemregning 1'!$H$54,"-") -> - | F5: =IF(AND('Input system 1'!$E$7="Beton",'Input system 1'!$C$7=TRUE),'Mellemregning 1'!$I$54,"-") -> - | G5: =IF(AND('Input system 1'!$E$7="Beton",'Input system 1'!C7=TRUE),'Mellemregning 1'!$E$54,"-") -> - | H5: =IF(AND('Input system 1'!$E$7="Beton",'Input system 1'!$C$7=TRUE),'Mellemregning 1'!$F$54,"-") -> - | J5: =C5 -> - | K5: =IF(AND('Input system 1'!$E$7="Beton",'Input system 1'!$C$7=TRUE),'Mellemregning 1'!$N$54,"-") -> - | L5: =IF(AND('Input system 1'!$E$7="Beton",'Input system 1'!$C$7=TRUE),'Mellemregning 1'!$O$54,"-") -> - | M5: =IF(AND('Input system 1'!$E$7="Beton",'Input system 1'!$C$7=TRUE),'Mellemregning 1'!$P$54,"-") -> - | N5: =IF(AND('Input system 1'!$E$7="Beton",'Input system 1'!$C$7=TRUE),'Mellemregning 1'!$Q$54,"-") -> - | O5: =IF(AND('Input system 1'!$E$7="Beton",'Input system 1'!$C$7=TRUE),'Mellemregning 1'!$R$54,"-") -> - | P5: =IF(AND('Input system 1'!$E$7="Beton",'Input system 1'!$C$7=TRUE),'Mellemregning 1'!$S$54,"-") -> - | Q5: =IF(AND('Input system 1'!$E$7="Beton",'Input system 1'!$C$7=TRUE),'Mellemregning 1'!$T$54,"-") -> - | R5: =IF(AND('Input system 1'!$E$7="Beton",'Input system 1'!$C$7=TRUE),'Mellemregning 1'!$U$54,0) -> 0 | S5: =IF(AND('Input system 1'!$E$7="Beton",'Input system 1'!$C$7=TRUE),'Mellemregning 1'!$V$54,"-") -> -
B6: Forfiltrering | C6: =IF(AND('Input system 1'!$C$8=TRUE,'Input system 1'!$C$11=TRUE), 'Mellemregning 1'!$D$87,"-") -> - | D6: =IF(AND('Input system 1'!$C$8=TRUE,'Input system 1'!$C$11=TRUE),'Mellemregning 1'!$G$87,"-") -> - | E6: =IF(AND('Input system 1'!$C$8=TRUE,'Input system 1'!$C$11=TRUE),'Mellemregning 1'!$H$87,"-") -> - | F6: =IF(AND('Input system 1'!$C$8=TRUE,'Input system 1'!$C$11=TRUE),'Mellemregning 1'!$I$87,"-") -> - | G6: =IF(AND('Input system 1'!$C$8=TRUE,'Input system 1'!$C$11=TRUE),'Mellemregning 1'!$E$87,"-") -> - | H6: =IF(AND('Input system 1'!$C$8=TRUE,'Input system 1'!$C$11=TRUE),'Mellemregning 1'!$F$87,"-") -> - | J6: - | K6: =IF(AND('Input system 1'!$C$8=TRUE,'Input system 1'!$C$11=TRUE),'Mellemregning 1'!$N$87,"-") -> - | L6: =IF(AND('Input system 1'!$C$8=TRUE,'Input system 1'!$C$11=TRUE),'Mellemregning 1'!$O$87,"-") -> - | M6: =IF(AND('Input system 1'!$C$8=TRUE,'Input system 1'!$C$11=TRUE),'Mellemregning 1'!$P$87,"-") -> - | N6: =IF(AND('Input system 1'!$C$8=TRUE,'Input system 1'!$C$11=TRUE),'Mellemregning 1'!$Q$87,"-") -> - | O6: =IF(AND('Input system 1'!$C$8=TRUE,'Input system 1'!$C$11=TRUE),'Mellemregning 1'!$R$87,"-") -> - | P6: =IF(AND('Input system 1'!$C$8=TRUE,'Input system 1'!$C$11=TRUE),'Mellemregning 1'!$S$87,"-") -> - | Q6: =IF(AND('Input system 1'!$C$8=TRUE,'Input system 1'!$C$11=TRUE),'Mellemregning 1'!$T$87,"-") -> - | R6: =IF(AND('Input system 1'!$C$8=TRUE,'Input system 1'!$C$11=TRUE),'Mellemregning 1'!$U$87,0) -> 0 | S6: =IF(AND('Input system 1'!$C$8=TRUE,'Input system 1'!$C$11=TRUE),'Mellemregning 1'!$V$87,"-") -> -
B7: Forklaringstank | C7: =IF(AND('Input system 1'!$C$9=TRUE,'Input system 1'!$C$12=TRUE), 'Mellemregning 1'!$D$108,"-") -> - | D7: =IF(AND('Input system 1'!$C$9=TRUE,'Input system 1'!$C$12=TRUE),'Mellemregning 1'!$G$108,"-") -> - | E7: =IF(AND('Input system 1'!$C$9=TRUE,'Input system 1'!$C$12=TRUE),'Mellemregning 1'!$H$108,"-") -> - | F7: =IF(AND('Input system 1'!$C$9=TRUE,'Input system 1'!$C$12=TRUE),'Mellemregning 1'!$I$108,"-") -> - | G7: =IF(AND('Input system 1'!$C$9=TRUE,'Input system 1'!$C$12=TRUE), 'Mellemregning 1'!$E$108,"-") -> - | H7: =IF(AND('Input system 1'!$C$9=TRUE,'Input system 1'!$C$12=TRUE), 'Mellemregning 1'!$F$108,"-") -> - | J7: - | K7: =IF(AND('Input system 1'!$C$9=TRUE,'Input system 1'!$C$12=TRUE), 'Mellemregning 1'!$N$108,"-") -> - | L7: =IF(AND('Input system 1'!$C$9=TRUE,'Input system 1'!$C$12=TRUE), 'Mellemregning 1'!$O$108,"-") -> - | M7: =IF(AND('Input system 1'!$C$9=TRUE,'Input system 1'!$C$12=TRUE), 'Mellemregning 1'!$P$108,"-") -> - | N7: =IF(AND('Input system 1'!$C$9=TRUE,'Input system 1'!$C$12=TRUE),'Mellemregning 1'!$Q$108,"-") -> - | O7: =IF(AND('Input system 1'!$C$9=TRUE,'Input system 1'!$C$12=TRUE),'Mellemregning 1'!$R$108,"-") -> - | P7: =IF(AND('Input system 1'!$C$9=TRUE,'Input system 1'!$C$12=TRUE),'Mellemregning 1'!$S$108,"-") -> - | Q7: =IF(AND('Input system 1'!$C$9=TRUE,'Input system 1'!$C$12=TRUE),'Mellemregning 1'!$T$108,"-") -> - | R7: =IF(AND('Input system 1'!$C$9=TRUE,'Input system 1'!$C$12=TRUE),'Mellemregning 1'!$U$108,0) -> 0 | S7: =IF(AND('Input system 1'!$C$9=TRUE,'Input system 1'!$C$12=TRUE),'Mellemregning 1'!$V$108,"-") -> -
B8: 0
B9: 0
B10: 0
B11: 0
B12: 0
B13: 0
B14: 0
B15: 0
B16: =CONCATENATE("Netto miljøpåvirkning: ",'Input system 1'!$B$3) -> Netto miljøpåvirkning: | C16: =SUM(C4:C7) -> 0 | D16: =AVERAGE(D4:D7) ->  | E16: =AVERAGE(E4:E7) ->  | F16: =AVERAGE(F4:F7) ->  | G16: =SUM(G4:G7) -> 0 | H16: =SUM(H4:H7) -> 0 | I16: =SUM(I4:I7) -> 0 | J16: 0 | K16: =AVERAGE(K4:K7) ->  | L16: =AVERAGE(L4:L7) ->  | M16: =AVERAGE(M4:M7) ->  | N16: =SUM(N4:N7) -> 0 | O16: 0 | P16: =CONCATENATE(" Stål tank: "&P4,CHAR(10)," Beton tank: "&P5, CHAR(10)," Forfiltrering: "&P6,CHAR(10)," Forklaringstank: "& P7) -> Stål tank: - Beton tank: - Forfiltrering: - Forklaringstank: - | Q16: =CONCATENATE(" Stål tank: "&Q4,CHAR(10)," Beton tank: "&Q5, CHAR(10)," Forfiltrering: "&Q6,CHAR(10)," Forklaringstank: "& Q7) -> Stål tank: - Beton tank: - Forfiltrering: - Forklaringstank: - | R16: =IF(AND(R4>0,R5=0),10*LOG(10*(SUM(10^($R$4/10),10^($R$6/10), 10^($R$7/10)))),10*LOG(10*(SUM(10^($R$4/10),10^($R$5/10),10^($R$6/10), 10^($R$7/10))))) -> 16.02059991 | S16: 0
C17: [kg CO2-ækv.] | D17: [% TN reduktion] | E17: [% TP reduktion] | F17: [% COD reduktion] | G17: [kg N-ækv.] | H17: [kg P-ækv.] | O17: Middelværdier: | P17: =IF(AND(P4="-",P5="-",P6="-",P7="-"),"-",AVERAGE(P4:P7)) -> - | Q17: =IF(AND(Q4="-",Q5="-",Q6="-",Q7="-"),"-",AVERAGE(Q4:Q7)) -> - | R17: Metode til beregning af det totale Støj potentiale fra Van schaik et al. 2021
B20: Økonomisk påvirkning | C20: 1) Totale udgifter | D20: 2) Tilbagebetalingsperiode | E20: OPEX (eksklusiv andre udgifter) | F20: CAPEX | G20: Omsætning | H20: 1) Afgifter: Udledningsafgifter | I20: 2) Afgifter: Deponeringsafgifter | J20: 3) Afgifter: Forbrændings afgifter | K20: ='Mellemregning 1'!AG3 -> 4) Karbon skat/afgift | L20: 1) Potentiale for ekstern finansiering og tilskud | M20: 2) Servicediversificeringspotentiale
C21: [DKK år-1] | D21: år | E21: DKK år-1 | F21: DKK år-1 | G21: DKK år-1 | H21: DKK år-1 | I21: DKK år-1 | J21: DKK år-1 | K21: DKK år-1 | L21: - | M21: -
B22: =B4 -> Slamlagertank: rustfri stål | C22: =IF(AND('Input system 1'!$E$7="Rustfri stål",'Input system 1'!$C$7=TRUE),'Mellemregning 1'!$Y$30,"-") -> - | D22: =IF(AND('Input system 1'!$E$7="Rustfri stål",'Input system 1'!$C$7=TRUE),'Mellemregning 1'!$Z$30,"-") -> - | E22: =IF(AND('Input system 1'!$E$7="Rustfri stål",'Input system 1'!$C$7=TRUE),'Mellemregning 1'!$AA$30,"-") -> - | F22: =IF(AND('Input system 1'!$E$7="Rustfri stål",'Input system 1'!$C$7=TRUE),'Mellemregning 1'!$AB$30,"-") -> - | G22: =IF(AND('Input system 1'!$E$7="Rustfri stål",'Input system 1'!$C$7=TRUE),'Mellemregning 1'!$AC$30,"-") -> - | H22: =IF(AND('Input system 1'!$E$7="Rustfri stål",'Input system 1'!$C$7=TRUE),'Mellemregning 1'!$AD$30,"-") -> - | I22: =IF(AND('Input system 1'!$E$7="Rustfri stål",'Input system 1'!$C$7=TRUE),'Mellemregning 1'!$AE$30,"-") -> - | J22: =IF(AND('Input system 1'!$E$7="Rustfri stål",'Input system 1'!$C$7=TRUE),'Mellemregning 1'!AF30,"-") -> - | K22: =IF(AND('Input system 1'!$E$7="Rustfri stål",'Input system 1'!$C$7=TRUE),'Mellemregning 1'!$AG$30,"-") -> - | L22: =IF(AND('Input system 1'!$E$7="Rustfri stål",'Input system 1'!$C$7=TRUE),'Mellemregning 1'!$AH$30,"-") -> - | M22: =IF(AND('Input system 1'!$E$7="Rustfri stål",'Input system 1'!$C$7=TRUE),'Mellemregning 1'!$AI$30,"-") -> -
B23: Slamlagertank: beton | C23: =IF(AND('Input system 1'!$E$7="Beton",'Input system 1'!C7=TRUE),'Mellemregning 1'!$Y$54,"-") -> - | D23: =IF(AND('Input system 1'!$E$7="Beton",'Input system 1'!C7=TRUE),'Mellemregning 1'!$Z$54,"-") -> - | E23: =IF(AND('Input system 1'!$E$7="Beton",'Input system 1'!C7=TRUE),'Mellemregning 1'!$AA$54,"-") -> - | F23: =IF(AND('Input system 1'!$E$7="Beton",'Input system 1'!C7=TRUE),'Mellemregning 1'!$AB$54,"-") -> - | G23: =IF(AND('Input system 1'!$E$7="Beton",'Input system 1'!C7=TRUE),'Mellemregning 1'!$AC$54,"-") -> - | H23: =IF(AND('Input system 1'!$E$7="Beton",'Input system 1'!C7=TRUE),'Mellemregning 1'!$AD$54,"-") -> - | I23: =IF(AND('Input system 1'!$E$7="Beton",'Input system 1'!$C$7=TRUE),'Mellemregning 1'!$AE$54,"-") -> - | J23: =IF(AND('Input system 1'!$E$7="Beton",'Input system 1'!C7=TRUE),'Mellemregning 1'!$AF$54,"-") -> - | K23: =IF(AND('Input system 1'!$E$7="Beton",'Input system 1'!$C$7=TRUE),'Mellemregning 1'!$AG$54,"-") -> - | L23: =IF(AND('Input system 1'!$E$7="Beton",'Input system 1'!C7=TRUE),'Mellemregning 1'!$AH$54,"-") -> - | M23: =IF(AND('Input system 1'!$E$7="Beton",'Input system 1'!C7=TRUE),'Mellemregning 1'!$AI$54,"-") -> -
B24: Forfiltrering | C24: =IF(AND('Input system 1'!$C$8=TRUE,'Input system 1'!$C$11=TRUE), 'Mellemregning 1'!$Y$87,"-") -> - | D24: =IF(AND('Input system 1'!$C$8=TRUE,'Input system 1'!$C$11=TRUE), 'Mellemregning 1'!$Z$87,"-") -> - | E24: =IF(AND('Input system 1'!$C$8=TRUE,'Input system 1'!$C$11=TRUE), 'Mellemregning 1'!$AA$87,"-") -> - | F24: =IF(AND('Input system 1'!$C$8=TRUE,'Input system 1'!$C$11=TRUE), 'Mellemregning 1'!$AB$87,"-") -> - | G24: =IF(AND('Input system 1'!$C$8=TRUE,'Input system 1'!$C$11=TRUE),'Mellemregning 1'!$AC$87,"-") -> - | H24: =IF(AND('Input system 1'!$C$8=TRUE,'Input system 1'!$C$11=TRUE), 'Mellemregning 1'!$AD$87,"-") -> - | I24: =IF(AND('Input system 1'!$C$8=TRUE,'Input system 1'!$C$11=TRUE), 'Mellemregning 1'!$AE$87,"-") -> - | J24: =IF(AND('Input system 1'!$C$8=TRUE,'Input system 1'!$C$11=TRUE), 'Mellemregning 1'!$AF$87,"-") -> - | K24: =IF(AND('Input system 1'!$C$8=TRUE,'Input system 1'!$C$11=TRUE),'Mellemregning 1'!$AG$87,"-") -> - | L24: =IF(AND('Input system 1'!$C$8=TRUE,'Input system 1'!$C$11=TRUE), 'Mellemregning 1'!$AH$87,"-") -> - | M24: =IF(AND('Input system 1'!$C$8=TRUE,'Input system 1'!$C$11=TRUE), 'Mellemregning 1'!$AI$87,"-") -> -
B25: Forklaringstank | C25: =IF(AND('Input system 1'!$C$9=TRUE,'Input system 1'!$C$12=TRUE), 'Mellemregning 1'!Y108,"-") -> - | D25: =IF(AND('Input system 1'!$C$9=TRUE,'Input system 1'!$C$12=TRUE), 'Mellemregning 1'!Z108,"-") -> - | E25: =IF(AND('Input system 1'!$C$9=TRUE,'Input system 1'!$C$12=TRUE), 'Mellemregning 1'!AA108,"-") -> - | F25: =IF(AND('Input system 1'!$C$9=TRUE,'Input system 1'!$C$12=TRUE), 'Mellemregning 1'!AB108,"-") -> - | G25: =IF(AND('Input system 1'!$C$9=TRUE,'Input system 1'!$C$12=TRUE), 'Mellemregning 1'!AC108,"-") -> - | H25: =IF(AND('Input system 1'!$C$9=TRUE,'Input system 1'!$C$12=TRUE), 'Mellemregning 1'!AD108,"-") -> - | I25: =IF(AND('Input system 1'!$C$9=TRUE,'Input system 1'!$C$12=TRUE), 'Mellemregning 1'!AE108,"-") -> - | J25: =IF(AND('Input system 1'!$C$9=TRUE,'Input system 1'!$C$12=TRUE), 'Mellemregning 1'!AF108,"-") -> - | K25: =IF(AND('Input system 1'!$C$9=TRUE,'Input system 1'!$C$12=TRUE), 'Mellemregning 1'!AG108,"-") -> - | L25: =IF(AND('Input system 1'!$C$9=TRUE,'Input system 1'!$C$12=TRUE), 'Mellemregning 1'!AH108,"-") -> - | M25: =IF(AND('Input system 1'!$C$9=TRUE,'Input system 1'!$C$12=TRUE), 'Mellemregning 1'!AI108,"-") -> -
B26: 0
B27: 0
B28: 0
B29: 0
B30: 0
B31: 0
B32: 0
B33: 0
B34: =CONCATENATE("Netto økonomisk påvirkning: ",'Input system 1'!$B$3) -> Netto økonomisk påvirkning: | C34: =SUM(C22:C33) -> 0 | D34: =AVERAGE(D22:D33) ->  | E34: =SUM(E22:E33) -> 0 | F34: =SUM(F22:F33) -> 0 | G34: =SUM(G22:G33) -> 0 | H34: 0 | I34: 0 | J34: 0 | K34: =SUM(K22:K33) -> 0 | L34: =SUM(L22:L33) -> 0 | M34: 0
B36: Sociale påvirkninger | C36: Antal nye fuldtidsjobs | D36: Antal undervisninger i skoler og universiteter | E36: Samarbejdspotentiale | F36: Forventet risici for uheld og infektioner | G36: Markedspotentiale | I36: Forventet risici for uheld og infektioner | J36: Markedspotentiale
I37: - | J37: -
B38: =B22 -> Slamlagertank: rustfri stål | C38: =IF(AND('Input system 1'!$E$7="Rustfri stål",'Input system 1'!$C$7=TRUE),'Mellemregning 1'!$AL$30,"-") -> - | D38: =IF(AND('Input system 1'!$E$7="Rustfri stål",'Input system 1'!$C$7=TRUE),'Mellemregning 1'!$AM$30,"-") -> - | E38: =IF(AND('Input system 1'!$E$7="Rustfri stål",'Input system 1'!$C$7=TRUE),'Mellemregning 1'!$AN$30,"-") -> - | F38: =IF(AND('Input system 1'!$E$7="Rustfri stål",'Input system 1'!$C$7=TRUE),'Mellemregning 1'!$AO$30,"-") -> - | G38: =IF(AND('Input system 1'!$E$7="Rustfri stål",'Input system 1'!$C$7=TRUE),'Mellemregning 1'!$AP$30,"-") -> - | I38: =IF($F$38="Ingen",1,IF($F$38="Høj",0,IF($F$38="Moderat",0.3,0.7))) -> 0.7 | J38: =IF($G$38="Ingen",0,IF($G$38="Høj",1,IF($G$38="Moderat",0.7,0.3))) -> 0.3
B39: Slamlagertank: beton | C39: =IF(AND('Input system 1'!$E$7="Beton",'Input system 1'!C7=TRUE),'Mellemregning 1'!$AL$54,"-") -> - | D39: =IF(AND('Input system 1'!$E$7="Beton",'Input system 1'!C7=TRUE),'Mellemregning 1'!$AM$54,"-") -> - | E39: =IF(AND('Input system 1'!$E$7="Beton",'Input system 1'!C7=TRUE),'Mellemregning 1'!$AN$54,"-") -> - | F39: =IF(AND('Input system 1'!$E$7="Beton",'Input system 1'!C7=TRUE),'Mellemregning 1'!$AO$54,"-") -> - | G39: =IF(AND('Input system 1'!$E$7="Beton",'Input system 1'!C7=TRUE),'Mellemregning 1'!$AP$54,"-") -> - | I39: =IF($F$39="Ingen",1,IF($F$39="Høj",0,IF($F$39="Moderat",0.3,0.7))) -> 0.7 | J39: =IF($G$39="Ingen",0,IF($G$39="Høj",1,IF($G$39="Moderat",0.7,0.3))) -> 0.3
B40: Forfiltrering | C40: =IF(AND('Input system 1'!$C$8=TRUE,'Input system 1'!$C$11=TRUE), 'Mellemregning 1'!$AL$87,"-") -> - | D40: =IF(AND('Input system 1'!$C$8=TRUE,'Input system 1'!$C$11=TRUE), 'Mellemregning 1'!$AM$87,"-") -> - | E40: =IF(AND('Input system 1'!$C$8=TRUE,'Input system 1'!$C$11=TRUE), 'Mellemregning 1'!$AN$87,"-") -> - | F40: =IF(AND('Input system 1'!$C$8=TRUE,'Input system 1'!$C$11=TRUE), 'Mellemregning 1'!$AO$87,"-") -> - | G40: =IF(AND('Input system 1'!$C$8=TRUE,'Input system 1'!$C$11=TRUE), 'Mellemregning 1'!$AP$87,"-") -> - | I40: =IF(Baggrundsdata!$G$180="Ingen",1,IF(Baggrundsdata!$G$180="Høj",0,IF(Baggrundsdata!$G$180="Moderat",0.3,0.7))) -> 1 | J40: =IF(Baggrundsdata!$G$181="Ingen",0,IF(Baggrundsdata!$G$181="Høj",1,IF(Baggrundsdata!$G$181="Moderat",0.7,0.3))) -> 0
B41: Forklaringstank | C41: =IF(AND('Input system 1'!$C$9=TRUE,'Input system 1'!$C$12=TRUE), 'Mellemregning 1'!AL108,"-") -> - | D41: =IF(AND('Input system 1'!$C$9=TRUE,'Input system 1'!$C$12=TRUE), 'Mellemregning 1'!AM108,"-") -> - | E41: =IF(AND('Input system 1'!$C$9=TRUE,'Input system 1'!$C$12=TRUE), 'Mellemregning 1'!AN108,"-") -> - | F41: =IF(AND('Input system 1'!$C$9=TRUE,'Input system 1'!$C$12=TRUE), 'Mellemregning 1'!AO108,"-") -> - | G41: =IF(AND('Input system 1'!$C$9=TRUE,'Input system 1'!$C$12=TRUE), 'Mellemregning 1'!AP108,"-") -> - | I41: =IF($F$41="Ingen",1,IF($F$41="Høj",0,IF($F$41="Moderat",0.3,0.7))) -> 0.7 | J41: =IF($G$41="Ingen",0,IF($G$41="Høj",1,IF($G$41="Moderat",0.7,0.3))) -> 0.3
B42: 0
B43: 0
B44: 0
B45: 0
B46: 0
B47: 0
B48: 0
B49: 0
B50: =CONCATENATE("Netto sociale påvirkninger: ",'Input system 1'!$B$3) -> Netto sociale påvirkninger: | C50: =SUM(C38:C49) -> 0 | D50: =SUM(D38:D49) -> 0 | E50: 0 | F50: =CONCATENATE(" Stål tank: "&F38,CHAR(10)," beton tank: "&F39, CHAR(10)," Forfiltrering: "&F40,CHAR(10)," Forklaringstank: "& F41) -> Stål tank: - beton tank: - Forfiltrering: - Forklaringstank: - | G50: =CONCATENATE(" Stål tank: "&G38,CHAR(10)," beton tank: "&G39, CHAR(10)," Forfiltrering: "&G40,CHAR(10)," Forklaringstank: "& G41) -> Stål tank: - beton tank: - Forfiltrering: - Forklaringstank: - | I50: =AVERAGE(I38:I41) -> 0.775 | J50: =AVERAGE(J38:J41) -> 0.225
B53: Teknisk påvirkning | C53: Overordnet pålidelighed | D53: Evne til at justerer systemet
B54: =B38 -> Slamlagertank: rustfri stål | C54: =IF(AND('Input system 1'!$E$7="Rustfri stål",'Input system 1'!$C$7=TRUE),'Mellemregning 1'!$AS$30,"-") -> - | D54: =IF(AND('Input system 1'!$E$7="Rustfri stål",'Input system 1'!$C$7=TRUE),'Mellemregning 1'!$AT$30,"-") -> -
B55: Slamlagertank: beton | C55: =IF(AND('Input system 1'!$E$7="Beton",'Input system 1'!$C$7=TRUE),'Mellemregning 1'!$AS$54,"-") -> - | D55: =IF(AND('Input system 1'!$E$7="Beton",'Input system 1'!C7=TRUE),'Mellemregning 1'!$AT$54,"-") -> -
B56: Forfiltrering | C56: =IF(AND('Input system 1'!$C$8=TRUE,'Input system 1'!$C$11=TRUE), 'Mellemregning 1'!$AS$87,"-") -> - | D56: =IF(AND('Input system 1'!$C$8=TRUE,'Input system 1'!$C$11=TRUE), 'Mellemregning 1'!$AT$87,"-") -> -
B57: Forklaringstank | C57: =IF(AND('Input system 1'!$C$9=TRUE,'Input system 1'!$C$12=TRUE), 'Mellemregning 1'!AS108,"-") -> - | D57: =IF(AND('Input system 1'!$C$9=TRUE,'Input system 1'!$C$12=TRUE), 'Mellemregning 1'!AT108,"-") -> -
B58: 0
B59: 0
B60: 0
B61: 0
B62: 0
B63: 0
B64: 0
B65: 0
B66: =CONCATENATE("Netto teknisk påvirkning: ",'Input system 1'!$B$3) -> Netto teknisk påvirkning: | C66: =AVERAGE(C54:C65) ->  | D66: =AVERAGE(D54:D65) -> 

Sheet Mellemregning 2 (hidden)
B2: LCA Miljøpåvirkninger | BA2: Andre LCA kategorier
D3: Klimaforandringer | E3: Marin eutrofiering | F3: Ferskvand eutrofiering | G3: 1) Behandlingseffektivitet - Total Nitrogen | H3: 2) Behandlingseffektivitet - Total Phosphor | I3: 3) Behandlingseffektivitet- COD | J3: 4) Marin eutrophication potential | K3: 5) Freshwater eutrophication potential | L3: 6) ENEI (?) maybe it could be included | M3: Karbon fodaftryk | N3: 1) P genindvinding | O3: 2) N genindvinding | P3: 3) C genindvinding (som COD) | Q3: 4) Restaffald | R3: Netto vand Geninvundet | S3: Andre direkte emissioner til luft, eksklusiv drivhusgasser | T3: Lugtgener | U3: Støj potentiale | V3: Areal behov | X3: Indikatorer | Y3: 1) Totale omkostninger | Z3: 2) Tilbagebetalingsperiode | AA3: OPEX (uden andre udgifter) | AB3: CAPEX | AC3: Indtægter | AD3: 1) Afgifter: Udledningsafgifter/beskatning | AE3: 2) Afgifter: Lossepladsafgifter | AF3: 3) Afgifter: forbrændingsafgift | AG3: 4) Karbon skat/afgift | AH3: 1) Pontentiale for ekstern finansering og tilskud | AI3: 2) Servicediversificeringspotentiale | AK3: Indikatorer | AL3: Antal nye fuldtidsjobs | AM3: Antal undervisninger i skoler og universiteter | AN3: Samarbejdspotentiale | AO3: Forventet risici for uheld og infektioner | AP3: Markedspotentiale | AR3: Indikatorer | AS3: Overordnet pålidelighed | AT3: Evne til at justerer systemet
D4: [kg CO2-ækv.] | E4: [kg N-ækv.] | F4: [kg P-ækv.] | G4: [% TN reduktion] | H4: [% TP reduktion] | I4: [% COD reduktion] | N4: [% genindvundet P] | O4: [% genindvundet N] | P4: [% genindvundet COD] | Q4: [kg år-1] | R4: [m3 år-1] | S4: - | T4: - | U4: [dB] | V4: [m2] | Y4: [DKK år-1] | Z4: [år] | AA4: [DKK år-1] | AB4: [DKK år-1] | AC4: [DKK år-1] | AD4: [DKK år-1] | AE4: [DKK år-1] | AF4: [DKK år-1] | AG4: [DKK år-1] | AH4: [#/år]
C5: Slamlagertank: rustfri stål
C6: Materialegenerering | D6: =(D7+D8+D9)/'Basis info'!$B$4 ->  | E6: =(E7+E8+E9)/'Basis info'!$B$4 ->  | F6: =(F7+F8+F9)/'Basis info'!$B$4 -> 
C7: Rustfri stål | D7: =Baggrundsdata!$J$64*Faktorbibliotek!E$7*'Input system 2'!$J$7*('Basis info'!$B$4/'Input system 2'!$G$7) ->  | E7: =Baggrundsdata!$J$64*Faktorbibliotek!F$7*'Input system 2'!$J$7*('Basis info'!$B$4/'Input system 2'!$G$7) ->  | F7: =Baggrundsdata!$J$64*Faktorbibliotek!G$7*'Input system 2'!$J$7*('Basis info'!$B$4/'Input system 2'!$G$7) -> 
C8: Karbon stål | D8: =Baggrundsdata!$J$65*Faktorbibliotek!E$6*'Input system 2'!$J$7*('Basis info'!$B$4/'Input system 2'!$G$7) ->  | E8: =Baggrundsdata!$J$65*Faktorbibliotek!F$6*'Input system 2'!$J$7*('Basis info'!$B$4/'Input system 2'!$G$7) ->  | F8: =Baggrundsdata!$J$65*Faktorbibliotek!G$6*'Input system 2'!$J$7*('Basis info'!$B$4/'Input system 2'!$G$7) -> 
C9: Zink belægning | D9: =Baggrundsdata!$J$66*Faktorbibliotek!E$9*'Input system 2'!$J$7*('Basis info'!$B$4/Baggrundsdata!$J$67) -> 0 | E9: =Baggrundsdata!$J$66*Faktorbibliotek!F$9*'Input system 2'!$J$7*('Basis info'!$B$4/Baggrundsdata!$J$67) -> 0 | F9: =Baggrundsdata!$J$66*Faktorbibliotek!G$9*'Input system 2'!$J$7*('Basis info'!$B$4/Baggrundsdata!$J$67) -> 0
C10: Transport | D10: =(D11+D12)/'Basis info'!$B$4 ->  | E10: =(E11+E12)/'Basis info'!$B$4 ->  | F10: =(F11+F12)/'Basis info'!$B$4 -> 
C11: Transport fra produktion til anlægslokationen | D11: =Baggrundsdata!$J$68*(Baggrundsdata!$J$64+Baggrundsdata!$J$65)*'Input system 2'!$J$7*Faktorbibliotek!E$11*('Basis info'!$B$4/'Input system 2'!$G$7) ->  | E11: =Baggrundsdata!$J$68*(Baggrundsdata!$J$64+Baggrundsdata!$J$65)*'Input system 2'!$J$7*Faktorbibliotek!F$11*('Basis info'!$B$4/'Input system 2'!$G$7) ->  | F11: =Baggrundsdata!$J$68*(Baggrundsdata!$J$64+Baggrundsdata!$J$65)*'Input system 2'!$J$7*Faktorbibliotek!G$11*('Basis info'!$B$4/'Input system 2'!$G$7) -> 
C12: Transport af affald til bortskaffelsesanlæg | D12: ='Input system 2'!$J$7*(Baggrundsdata!$J$64+Baggrundsdata!$J$65)*Baggrundsdata!$J$8*Faktorbibliotek!E$12*('Basis info'!$B$4/'Input system 2'!$G$7) ->  | E12: ='Input system 2'!$J$7*(Baggrundsdata!$J$64+Baggrundsdata!$J$65)*Baggrundsdata!$J$8*Faktorbibliotek!F$12*('Basis info'!$B$4/'Input system 2'!$G$7) ->  | F12: ='Input system 2'!$J$7*(Baggrundsdata!$J$64+Baggrundsdata!$J$65)*Baggrundsdata!$J$8*Faktorbibliotek!G$12*('Basis info'!$B$4/'Input system 2'!$G$7) -> 
C13: Konstruktion | D13: 0 | E13: 0 | F13: 0
C14: Drift | D14: 0 | E14: 0 | F14: 0
C15: Bortskaffelse/Nedrivning | D15: =(D16+D19+D22)/'Basis info'!$B$4 ->  | E15: =(E16+E19+E22)/'Basis info'!$B$4 ->  | F15: =(F16+F19+F22)/'Basis info'!$B$4 -> 
C16: Genanvendelse | D16: =(D17+D18) -> 0 | E16: =(E17+E18) -> 0 | F16: =(F17+F18) -> 0
C17: Genanvendelse rustfri stål | D17: =IF('Input system 2'!$M$7="Genanvendelse",Baggrundsdata!$J$64*(Faktorbibliotek!E$14-Baggrundsdata!$J$9*Faktorbibliotek!E$7*1+Faktorbibliotek!E$17*(1-Baggrundsdata!$J$9))*'Input system 2'!$J$7*('Basis info'!$B$4/'Input system 2'!$G$7), 0) -> 0 | E17: =IF('Input system 2'!$M$7="Genanvendelse",Baggrundsdata!$J$64*(Faktorbibliotek!F$14-Baggrundsdata!$J$9*Faktorbibliotek!F$7*1+Faktorbibliotek!F$17*(1-Baggrundsdata!$J$9))*'Input system 2'!$J$7*('Basis info'!$B$4/'Input system 2'!$G$7),0) -> 0 | F17: =IF('Input system 2'!$M$7="Genanvendelse",Baggrundsdata!$J$64*(Faktorbibliotek!G$14-Baggrundsdata!$J$9*Faktorbibliotek!G$7*1+Faktorbibliotek!G$17*(1-Baggrundsdata!$J$9))*'Input system 2'!$J$7*('Basis info'!$B$4/'Input system 2'!$G$7),0) -> 0 | Q17: =((1-Baggrundsdata!$J$9*Baggrundsdata!$J$10)*(Baggrundsdata!$J$64)*'Input system 2'!$J$7*('Basis info'!$B$4/'Input system 2'!$G$7))/'Basis info'!$B$4 -> 
C18: Genanvendelse karbon stål | D18: =IF('Input system 2'!$M$7="Genanvendelse",Baggrundsdata!$J$65*(Faktorbibliotek!E$14-Baggrundsdata!$J$9*Faktorbibliotek!E$6*1+Faktorbibliotek!E$17*(1-Baggrundsdata!$J$9))*'Input system 2'!$J$7*('Basis info'!$B$4/'Input system 2'!$G$7),0) -> 0 | E18: =IF('Input system 2'!$M$7="Genanvendelse",Baggrundsdata!$J$65*(Faktorbibliotek!F$14-Baggrundsdata!$J$9*Faktorbibliotek!F$6*1+Faktorbibliotek!F$17*(1-Baggrundsdata!$J$9))*'Input system 2'!$J$7*('Basis info'!$B$4/'Input system 2'!$G$7),0) -> 0 | F18: =IF('Input system 2'!$M$7="Genanvendelse",Baggrundsdata!$J$65*(Faktorbibliotek!G$14-Baggrundsdata!$J$9*Faktorbibliotek!G$6*1+Faktorbibliotek!G$17*(1-Baggrundsdata!$J$9))*'Input system 2'!$J$7*('Basis info'!$B$4/'Input system 2'!$G$7),0) -> 0 | Q18: =((1-Baggrundsdata!$J$9*Baggrundsdata!$J$10)*(Baggrundsdata!$J$65)*'Input system 2'!$J$7*('Basis info'!$B$4/'Input system 2'!$G$7))/'Basis info'!$B$4 -> 
C19: Deponering | D19: =D20+D21 -> 0 | E19: =E20+E21 -> 0 | F19: 0
C20: Deponering rustfri stål | D20: =IF('Input system 2'!$M$7="Deponering",Baggrundsdata!$J$64*Faktorbibliotek!$E$17*'Input system 2'!$J$7*('Basis info'!$B$4/'Input system 2'!$G$7),0) -> 0 | E20: =IF('Input system 2'!$M$7="Deponering",Baggrundsdata!$J$64*Faktorbibliotek!$F$17*'Input system 2'!$J$7*('Basis info'!$B$4/'Input system 2'!$G$7),0) -> 0 | F20: =IF('Input system 2'!$M$7="Deponering",Baggrundsdata!$J$64*Faktorbibliotek!$G$17*'Input system 2'!$J$7*('Basis info'!$B$4/'Input system 2'!$G$7),0) -> 0 | Q20: =((Baggrundsdata!$J$64)*'Input system 2'!$J$7*('Basis info'!$B$4/'Input system 2'!$G$7))/'Basis info'!$B$4 -> 
C21: Deponering karbon stål | D21: =IF('Input system 2'!$M$7="Deponering", Baggrundsdata!$J$65*Faktorbibliotek!$E$17*'Input system 2'!$J$7*('Basis info'!$B$4/'Input system 2'!$G$7),0) -> 0 | E21: =IF('Input system 2'!$M$7="Deponering", Baggrundsdata!$J$65*Faktorbibliotek!$F$17*'Input system 2'!$J$7*('Basis info'!$B$4/'Input system 2'!$G$7),0) -> 0 | F21: =IF('Input system 2'!$M$7="Deponering", Baggrundsdata!$J$65*Faktorbibliotek!$G$17*'Input system 2'!$J$7*('Basis info'!$B$4/'Input system 2'!$G$7),0) -> 0 | Q21: =((Baggrundsdata!$J$65)*'Input system 2'!$J$7*('Basis info'!$B$4/'Input system 2'!$G$7))/'Basis info'!$B$4 -> 
C22: Forbrænding | D22: =D23+D24 -> 0 | E22: =E23+E24 -> 0 | F22: 0
C23: Forbrænding rustfrit stål | D23: =IF('Input system 2'!$M$7="Forbrænding",Baggrundsdata!$J$64*Faktorbibliotek!E$30*'Input system 2'!$J$7*('Basis info'!$B$4/'Input system 2'!$G$7),0) -> 0 | E23: =IF('Input system 2'!$M$7="Forbrænding",Baggrundsdata!$J$64*Faktorbibliotek!F$30*'Input system 2'!$J$7*('Basis info'!$B$4/'Input system 2'!$G$7),0) -> 0 | F23: =IF('Input system 2'!$M$7="Forbrænding",Baggrundsdata!$J$64*Faktorbibliotek!G$30*'Input system 2'!$J$7*('Basis info'!$B$4/'Input system 2'!$G$7),0) -> 0 | Q23: =((Baggrundsdata!$J$64)*'Input system 2'!$J$7*('Basis info'!$B$4/'Input system 2'!$G$7))/'Basis info'!$B$4 -> 
C24: Forbrænding karbon stål | D24: =IF('Input system 2'!$M$7="Forbrænding", Baggrundsdata!$J$65*Faktorbibliotek!E$30*'Input system 2'!$J$7*('Basis info'!$B$4/'Input system 2'!$G$7),0) -> 0 | E24: =IF('Input system 2'!$M$7="Forbrænding", Baggrundsdata!$J$65*Faktorbibliotek!F$30*'Input system 2'!$J$7*('Basis info'!$B$4/'Input system 2'!$G$7),0) -> 0 | F24: =IF('Input system 2'!$M$7="Forbrænding", Baggrundsdata!$J$65*Faktorbibliotek!G$30*'Input system 2'!$J$7*('Basis info'!$B$4/'Input system 2'!$G$7),0) -> 0 | Q24: =((+Baggrundsdata!$J$65)*'Input system 2'!$J$7*('Basis info'!$B$4/'Input system 2'!$G$7))/'Basis info'!$B$4 -> 
C26: OPEX | P26: =(Baggrundsdata!$J$49*Baggrundsdata!$J$50+Baggrundsdata!$J$73*1000)/Baggrundsdata!$J$49 -> 0.3982318932
C27: Naturgas substitution/Omsætning, salg af biomethan | D27: =-Baggrundsdata!$J$23*'Input system 2'!$J$11*Baggrundsdata!$J$70*Faktorbibliotek!$E$35*(1-Baggrundsdata!$J$25) -> 0 | E27: =-Baggrundsdata!$J$23*'Input system 2'!$J$11*Baggrundsdata!$J$70*Faktorbibliotek!$F$35*(1-Baggrundsdata!$J$25) -> 0 | F27: =-Baggrundsdata!$J$23*'Input system 2'!$J$11*Baggrundsdata!$J$70*Faktorbibliotek!$G$35*(1-Baggrundsdata!$J$25) -> 0 | AC27: =Baggrundsdata!$J$23*'Input system 2'!$J$11*Baggrundsdata!$J$70*Baggrundsdata!$J$45*(1-Baggrundsdata!$J$25) -> 0
C30: Netto påvirkning - Rustfri stål tank | D30: =D15+D14+D13+D10+D6 ->  | E30: =E15+E14+E13+E10+E6 ->  | F30: =F15+F14+F13+F10+F6 ->  | G30: Ikke Relevant | H30: Ikke Relevant | I30: Ikke Relevant | N30: Ikke Relevant | O30: Ikke Relevant | P30: Ikke relevant | Q30: =IF('Input system 2'!$M$7="Genanvendelse", Q17+Q18, IF('Input system 2'!$M$7="Deponering",Q20+Q21,IF('Input system 2'!$M$7="Forbrænding",Q23+Q24,"NA"))) -> NA | R30: =Baggrundsdata!$J$76-Baggrundsdata!$J$77 -> 0 | S30: =Baggrundsdata!$J$79 -> Ikke sandsynligt | T30: =Baggrundsdata!$J$80 -> 1 | U30: =Baggrundsdata!$J$81 -> 10 | V30: =Baggrundsdata!$J$63*'Input system 2'!$J$7 ->  | Y30: =(AA30+AB30+AD30+AE30+AF30+AG30)-AC30 ->  | Z30: =IF($AC$30=0,0,IF(($AC$30-($AA$30+$AD$30+$AE$30+$AF$30+$AG$30))<0,0,(Baggrundsdata!$J$69*'Input system 2'!$J$7)/($AC$30-($AA$30+$AD$30+$AE$30+$AF$30+$AG$30)))) -> 0 | AB30: =-PMT(Baggrundsdata!$J$21,'Basis info'!$B$4,Baggrundsdata!$J$69*'Input system 2'!$J$7*('Basis info'!$B$4/'Input system 2'!$G$7)) ->  | AC30: 0 | AH30: =Baggrundsdata!$J$83 -> 1 | AI30: =Baggrundsdata!$J$85 -> 0 | AL30: =Baggrundsdata!$J$88 -> 0 | AM30: =Baggrundsdata!$J$89 -> 1 | AN30: =Baggrundsdata!$J$90 -> 3 | AO30: =Baggrundsdata!$J$91 -> Ingen | AP30: =Baggrundsdata!$J$92 -> Ingen | AS30: Ikke Relevant | AT30: Ikke Relevant
C33: Slamlagertank: beton
C34: Materialegenerering | D34: =(D35+D36)/'Basis info'!$B$4 ->  | E34: =(E35+E36)/'Basis info'!$B$4 ->  | F34: =(F35+F36)/'Basis info'!$B$4 -> 
C35: Beton | D35: =Baggrundsdata!$J$99*Faktorbibliotek!E$10*('Basis info'!$B$4/'Input system 2'!$G$7)*'Input system 2'!$J$7 ->  | E35: =Baggrundsdata!$J$99*Faktorbibliotek!F$10*('Basis info'!$B$4/'Input system 2'!$G$7)*'Input system 2'!$J$7 ->  | F35: =Baggrundsdata!$J$99*Faktorbibliotek!G$10*('Basis info'!$B$4/'Input system 2'!$G$7)*'Input system 2'!$J$7 -> 
C36: PE | D36: =Baggrundsdata!$J$100*Faktorbibliotek!E$13*('Basis info'!$B$4/'Input system 2'!$G$7)*'Input system 2'!$J$7 ->  | E36: =Baggrundsdata!$J$100*Faktorbibliotek!F$13*('Basis info'!$B$4/'Input system 2'!$G$7)*'Input system 2'!$J$7 ->  | F36: =Baggrundsdata!$J$100*Faktorbibliotek!G$13*('Basis info'!$B$4/'Input system 2'!$G$7)*'Input system 2'!$J$7 -> 
C38: Transport | D38: =(D39+D40)/'Basis info'!$B$4 ->  | E38: =(E39+E40)/'Basis info'!$B$4 ->  | F38: =(F39+F40)/'Basis info'!$B$4 -> 
C39: Transport fra produktion til anlægslokationen | D39: ='Input system 2'!$J$7*(Baggrundsdata!$J$101*(Baggrundsdata!$J$99+Baggrundsdata!$J$100)*Faktorbibliotek!E$11*('Basis info'!$B$4/'Input system 2'!$G$7)) ->  | E39: ='Input system 2'!$J$7*(Baggrundsdata!$J$101*(Baggrundsdata!$J$99+Baggrundsdata!$J$100)*Faktorbibliotek!F$11*('Basis info'!$B$4/'Input system 2'!$G$7)) ->  | F39: ='Input system 2'!$J$7*(Baggrundsdata!$J$101*(Baggrundsdata!$J$99+Baggrundsdata!$J$100)*Faktorbibliotek!G$11*('Basis info'!$B$4/'Input system 2'!$G$7)) -> 
C40: Transport af affald til bortskaffelsesanlæg | D40: ='Input system 2'!$J$7*(Baggrundsdata!$J$102*(Baggrundsdata!$J$99+Baggrundsdata!$J$100)*Faktorbibliotek!E$12*('Basis info'!$B$4/'Input system 2'!$G$7)) ->  | E40: ='Input system 2'!$J$7*(Baggrundsdata!$J$102*(Baggrundsdata!$J$99+Baggrundsdata!$J$100)*Faktorbibliotek!F$12*('Basis info'!$B$4/'Input system 2'!$G$7)) ->  | F40: ='Input system 2'!$J$7*(Baggrundsdata!$J$102*(Baggrundsdata!$J$99+Baggrundsdata!$J$100)*Faktorbibliotek!G$12*('Basis info'!$B$4/'Input system 2'!$G$7)) -> 
C41: Konstruktion | D41: 0 | E41: 0 | F41: 0
C42: Drift | D42: 0 | E42: 0 | F42: 0
C43: Bortskaffelse/Nedrivning | D43: =(D45+D48)/'Basis info'!$B$4 ->  | E43: =(E45+E48)/'Basis info'!$B$4 ->  | F43: =(F45+F48)/'Basis info'!$B$4 -> 
C44: Genanvendelse
C45: Genbrug beton | D45: =IF('Input system 2'!$M$7="Genanvendelse",'Input system 2'!$J$7*(Baggrundsdata!$J$99*Baggrundsdata!$J$11*Faktorbibliotek!$E$19*('Basis info'!$B$4/'Input system 2'!$G$7)),0) -> 0 | E45: =IF('Input system 2'!$M$7="Genanvendelse",'Input system 2'!$J$7*(Baggrundsdata!$J$99*Baggrundsdata!$J$11*Faktorbibliotek!$F$19*('Basis info'!$B$4/'Input system 2'!$G$7)),0) -> 0 | F45: =IF('Input system 2'!$M$7="Genanvendelse",'Input system 2'!$J$7*(Baggrundsdata!$J$99*Baggrundsdata!$J$11*Faktorbibliotek!$G$19*('Basis info'!$B$4/'Input system 2'!$G$7)),0) -> 0
C46: Genanvendelse PE
C47: Deponering
C48: Deponering beton | D48: =IF('Input system 2'!$M$7="Deponering",'Input system 2'!$J$7*(Baggrundsdata!$J$99*Faktorbibliotek!E28*('Basis info'!$B$4/'Input system 2'!$G$7)),0) -> 0 | E48: =IF('Input system 2'!$M$7="Deponering",'Input system 2'!$J$7*(Baggrundsdata!$J$99*Faktorbibliotek!F28*('Basis info'!$B$4/'Input system 2'!$G$7)),0) -> 0 | F48: =IF('Input system 2'!$M$7="Deponering",'Input system 2'!$J$7*(Baggrundsdata!$J$99*Faktorbibliotek!G28*('Basis info'!$B$4/'Input system 2'!$G$7)),0) -> 0
C49: Deponering PE
C51: OPEX | P51: =(Baggrundsdata!$J$49*Baggrundsdata!$J$50+Baggrundsdata!$J$111*1000)/Baggrundsdata!$J$49 -> 0.3982318932
C52: Naturgas substitution/Omsætning, salg af biomethan | D52: =-Baggrundsdata!$J$23*'Input system 2'!$J$11*Baggrundsdata!$J$104*Faktorbibliotek!$E$35*(1-Baggrundsdata!$J$25) -> 0 | E52: =-Baggrundsdata!$J$23*'Input system 2'!$J$11*Baggrundsdata!$J$104*Faktorbibliotek!$F$35*(1-Baggrundsdata!$J$25) -> 0 | F52: =-Baggrundsdata!$J$23*'Input system 2'!$J$11*Baggrundsdata!$J$104*Faktorbibliotek!$G$35*(1-Baggrundsdata!$J$25) -> 0 | AC52: =Baggrundsdata!$J$23*'Input system 2'!$J$11*Baggrundsdata!$J$70*Baggrundsdata!$J$45*(1-Baggrundsdata!$J$25) -> 0
C54: Netto påvirkning | D54: =D43+D41+D42+D38+D34 ->  | E54: =E43+E41+E42+E38+E34 ->  | F54: =F43+F41+F42+F38+F34 ->  | G54: Ikke Relevant | H54: Ikke Relevant | I54: Ikke Relevant | N54: Ikke Relevant | O54: Ikke Relevant | P54: Ikke relevant | Q54: =(IF('Input system 2'!$M$7="Genanvendelse",((Baggrundsdata!$J$99)-Baggrundsdata!$J$11*(Baggrundsdata!$J$99))*'Input system 2'!$J$7*('Basis info'!$B$4/'Input system 2'!$G$7),IF('Input system 2'!M7="Ingen","NA",(Baggrundsdata!$J$99)*'Input system 2'!$J$7*('Basis info'!$B$4/'Input system 2'!$G$7))))/'Basis info'!$B$4 ->  | R54: =Baggrundsdata!$J$114-Baggrundsdata!$J$115 -> 0 | S54: =Baggrundsdata!$J$106 -> Ikke sandsynligt | T54: =Baggrundsdata!$J$107 -> 1 | U54: =Baggrundsdata!$J$108 -> 0 | V54: =Baggrundsdata!$J$98*'Input system 2'!$J$7*('Basis info'!$B$4/'Input system 2'!$G$7) ->  | Y54: =(AA54+AB54+AD54+AE54+AF54+AG54)-AC54 ->  | Z54: =IF(AC54=0,0,IF((AC54-(AA54+AD54+AE54+AF54+AG54))<0,0,(Baggrundsdata!$J$103*'Input system 2'!$J$7)/(AC54-(AA54+AD54+AE54+AF54+AG54)))) -> 0 | AB54: =-PMT(Baggrundsdata!$J$21,'Basis info'!$B$4,Baggrundsdata!$J$103*'Input system 2'!$J$7) ->  | AC54: 0 | AH54: =Baggrundsdata!$J$117 -> 1 | AI54: =Baggrundsdata!$J$119 -> 0 | AL54: =Baggrundsdata!$J$122 -> 0 | AM54: =Baggrundsdata!$J$123 -> 1 | AN54: =Baggrundsdata!$J$124 -> 3 | AO54: =Baggrundsdata!$J$125 -> Ingen | AP54: =Baggrundsdata!$J$126 -> Ingen | AS54: Ikke Relevant | AT54: Ikke Relevant
D56: Klimaforandringer | E56: Marin Eutrofiering | F56: Ferskvand Eutrofiering
C57: Forfiltrering: infrastruktur | D57: [kg CO2-ækv./år] | E57: [kg N-ækv./år] | F57: [kg P-ækv./år]
C58: Materialegenerering | D58: =D59+D60+D61 -> 0 | E58: =E59+E60+E61 -> 0 | F58: 0
B59: remove 1/2 in the final version | C59: Beton | D59: =1/2*(Baggrundsdata!$J$138*Faktorbibliotek!E$10) -> 0 | E59: =1/2*(Baggrundsdata!$J$138*Faktorbibliotek!F$10) -> 0 | F59: =1/2*(Baggrundsdata!$J$138*Faktorbibliotek!G$10) -> 0
C60: PE | D60: =(Baggrundsdata!$J$136+Baggrundsdata!$J$137)*Faktorbibliotek!E$13 -> 0 | E60: =(Baggrundsdata!$J$136+Baggrundsdata!$J$137)*Faktorbibliotek!F$13 -> 0 | F60: =(Baggrundsdata!$J$136+Baggrundsdata!$J$137)*Faktorbibliotek!G$13 -> 0
C61: Rustfrit stål | D61: =Baggrundsdata!$J$134*Faktorbibliotek!E$7 -> 0 | E61: =Baggrundsdata!$J$134*Faktorbibliotek!F$7 -> 0 | F61: =Baggrundsdata!$J$134*Faktorbibliotek!G$7 -> 0
C62: Transport | D62: =D63+D64 -> 0 | E62: =E63+E64 -> 0 | F62: 0
C63: Transport fra produktion til anlægslokationen | D63: =(Baggrundsdata!$J$134+Baggrundsdata!$J$136+Baggrundsdata!$J$137+Baggrundsdata!$J$138)*Baggrundsdata!$J$139*Faktorbibliotek!E$11 -> 0 | E63: =(Baggrundsdata!$J$134+Baggrundsdata!$J$136+Baggrundsdata!$J$137+Baggrundsdata!$J$138)*Baggrundsdata!$J$139*Faktorbibliotek!F$11 -> 0 | F63: =(Baggrundsdata!$J$134+Baggrundsdata!$J$136+Baggrundsdata!$J$137+Baggrundsdata!$J$138)*Baggrundsdata!$J$139*Faktorbibliotek!G$11 -> 0
C64: Transport af affald til bortskaffelsesanlæg | D64: =(Baggrundsdata!$J$134+Baggrundsdata!$J$136+Baggrundsdata!$J$137+Baggrundsdata!$J$138)*Baggrundsdata!$J$146*Faktorbibliotek!E$11 -> 0 | E64: =(Baggrundsdata!$J$134+Baggrundsdata!$J$136+Baggrundsdata!$J$137+Baggrundsdata!$J$138)*Baggrundsdata!$J$146*Faktorbibliotek!F$11 -> 0 | F64: =(Baggrundsdata!$J$134+Baggrundsdata!$J$136+Baggrundsdata!$J$137+Baggrundsdata!$J$138)*Baggrundsdata!$J$146*Faktorbibliotek!G$11 -> 0
C65: Konstruktion | D65: 0 | E65: 0 | F65: 0
C66: Drift | D66: =D76 ->  | E66: =E76 ->  | F66: =F76 -> 
C67: Bortskaffelse/Nedrivning | D67: =(D68+D69+D70+D72+D73) -> 0 | E67: =(E68+E69+E70+E72+E73) -> 0 | F67: 0
C68: Genbrug beton | D68: =Faktorbibliotek!E$32*Baggrundsdata!$J$138 -> 0 | E68: =Faktorbibliotek!F$32*Baggrundsdata!$J$138 -> 0 | F68: =Faktorbibliotek!G$32*Baggrundsdata!$J$138 -> 0 | Q68: 0
C69: Genanvendelse af PE | D69: =IF('Input system 2'!$M$8="Genanvendelse", (Baggrundsdata!$J$136+Baggrundsdata!$J$137)*(Faktorbibliotek!$E$20-Baggrundsdata!$J$9*Faktorbibliotek!$E$13*Baggrundsdata!$J$10+Faktorbibliotek!$E$21*(1-Baggrundsdata!$J$9*Baggrundsdata!$J$10)),0) -> 0 | E69: =IF('Input system 2'!$M$8="Genanvendelse",(Baggrundsdata!$J$136+Baggrundsdata!$J$137)*(Faktorbibliotek!F$20-Baggrundsdata!$J$9*Faktorbibliotek!F$13*Baggrundsdata!$J$10+Faktorbibliotek!F$21*(1-Baggrundsdata!$J$9*Baggrundsdata!$J$10)),0) -> 0 | F69: =(Baggrundsdata!$J$136+Baggrundsdata!$J$137)*(Faktorbibliotek!G$20-Baggrundsdata!$J$9*Faktorbibliotek!G$13*Baggrundsdata!$J$10+Faktorbibliotek!G$21*(1-Baggrundsdata!$J$9*Baggrundsdata!$J$10)) -> 0 | Q69: =(1-Baggrundsdata!$J$10*Baggrundsdata!$J$9)*(Baggrundsdata!$J$136+Baggrundsdata!$J$137) -> 0
C70: Genanvendelse af rustfrit stål | D70: =Baggrundsdata!$J$134*(Faktorbibliotek!$E$14-Baggrundsdata!$J$9*Faktorbibliotek!$E$7*Baggrundsdata!$J$10+Faktorbibliotek!$E$17*(1-Baggrundsdata!$J$9*Baggrundsdata!$J$10)) -> 0 | E70: =Baggrundsdata!$J$134*(Faktorbibliotek!F$14-Baggrundsdata!$J$9*Faktorbibliotek!F$7*Baggrundsdata!$J$10+Faktorbibliotek!F$17*(1-Baggrundsdata!$J$9*Baggrundsdata!$J$10)) -> 0 | F70: =Baggrundsdata!$J$134*(Faktorbibliotek!G$14-Baggrundsdata!$J$9*Faktorbibliotek!G$7*Baggrundsdata!$J$10+Faktorbibliotek!G$17*(1-Baggrundsdata!$J$9*Baggrundsdata!$J$10)) -> 0 | Q70: =(1-Baggrundsdata!$J$9*Baggrundsdata!$J$10)*Baggrundsdata!$J$134 -> 0
C72: Deponering, filtre | D72: =IF('Input system 2'!$M$8="Deponering",(Baggrundsdata!$J$136+Baggrundsdata!$J$137)*Faktorbibliotek!E29,0) -> 0 | E72: =IF('Input system 2'!$M$8="Deponering",(Baggrundsdata!$J$136+Baggrundsdata!$J$137)*Faktorbibliotek!F29,0) -> 0 | F72: =IF('Input system 2'!$M$8="Deponering",(Baggrundsdata!$J$136+Baggrundsdata!$J$137)*Faktorbibliotek!G29,0) -> 0
C73: Forbrænding af filtre | D73: =IF('Input system 2'!$M$8="Forbrænding",(Baggrundsdata!$J$136+Baggrundsdata!$J$137)*Faktorbibliotek!$E$21,0) -> 0 | E73: =IF('Input system 2'!$M$8="Forbrænding",(Baggrundsdata!$J$136+Baggrundsdata!$J$137)*Faktorbibliotek!$F$21,0) -> 0 | F73: =IF('Input system 2'!$M$8="Forbrænding",(Baggrundsdata!$J$136+Baggrundsdata!$J$137)*Faktorbibliotek!$G$21,0) -> 0
C76: Forfiltrering: Drift | D76: =D77+D83 ->  | E76: =E77+E83 -> 
C77: Positiv påvirkning fra udrådning (AD) | D77: =SUM(D78:D82) ->  | E77: =SUM(E78:E82) ->  | F77: =SUM(F78:F82) -> 
C78: Elektricitetsforbrug | D78: =Baggrundsdata!$J$140*'Input system 2'!$J$11*Faktorbibliotek!E$23 -> 0 | E78: =Baggrundsdata!$J$140*'Input system 2'!$J$11*Faktorbibliotek!F$23 -> 0 | F78: =Baggrundsdata!$J$140*'Input system 2'!$J$11*Faktorbibliotek!G$23 -> 0 | AA78: =Baggrundsdata!$J$140*'Input system 2'!$J$11*Baggrundsdata!$J$37 -> 0
C79: Polymer | D79: =(Baggrundsdata!$J$141/1000)*'Input system 2'!$J$11*Faktorbibliotek!E$25 -> 0 | E79: =(Baggrundsdata!$J$141/1000)*'Input system 2'!$J$11*Faktorbibliotek!F$25 -> 0 | F79: =(Baggrundsdata!$J$141/1000)*'Input system 2'!$J$11*Faktorbibliotek!G$25 -> 0 | AA79: =(Baggrundsdata!$J$141/1000000)*'Input system 2'!$J$11*Baggrundsdata!$J$43 -> 0
C80: Jernklorid | D80: =(Baggrundsdata!$J$142/1000)*'Input system 2'!$J$11*Faktorbibliotek!E$24 -> 0 | E80: =(Baggrundsdata!$J$142/1000)*'Input system 2'!$J$11*Faktorbibliotek!F$24 -> 0 | F80: =(Baggrundsdata!$J$142/1000)*'Input system 2'!$J$11*Faktorbibliotek!G$24 -> 0 | AA80: =(Baggrundsdata!$J$142/1000000)*'Input system 2'!$J$11*Baggrundsdata!$J$42 -> 0
C81: Drikkevand | D81: =(Baggrundsdata!$J$143*1000*Baggrundsdata!$J$131*365)*Faktorbibliotek!E$26 ->  | E81: =(Baggrundsdata!$J$143*1000*Baggrundsdata!$J$131*365)*Faktorbibliotek!F$26 ->  | F81: =(Baggrundsdata!$J$143*1000*Baggrundsdata!$J$131*365)*Faktorbibliotek!G$26 ->  | R81: =Baggrundsdata!$J$144-Baggrundsdata!$J$143*Baggrundsdata!$J$131*365 ->  | AA81: =(Baggrundsdata!$J$143*'Input system 2'!$J$8*365)*Baggrundsdata!$J$35 -> 0
C82: Yderligere CH4 emissioner | D82: =IF('Input system 2'!$M$11="Ja",Baggrundsdata!$J$162*'Input system 2'!$J$11*Baggrundsdata!$J$25*0.6*Faktorbibliotek!E$34,0) -> 0 | E82: =IF('Input system 2'!$M$11="Ja",Baggrundsdata!$J$162*'Input system 2'!$J$11*Baggrundsdata!$J$25*0.6*Faktorbibliotek!F$34,0) -> 0 | F82: =IF('Input system 2'!$M$11="Ja",Baggrundsdata!$J$162*'Input system 2'!$J$11*Baggrundsdata!$J$25*0.6*Faktorbibliotek!G$34,0) -> 0 | AG82: =D82*Baggrundsdata!J31/1000 -> 0
C83: Negative påvirkninger | D83: =D84+D85 -> 0 | E83: =E84+E85 -> 0 | F83: 0
C84: Elektricitetbesparelses | D84: =Baggrundsdata!$J$163*'Input system 2'!$J$11*Faktorbibliotek!E$23 -> 0 | E84: =Baggrundsdata!$J$163*'Input system 2'!$J$11*Faktorbibliotek!F$23 -> 0 | F84: =Baggrundsdata!$J$163*'Input system 2'!$J$11*Faktorbibliotek!G$23 -> 0 | AC84: =Baggrundsdata!$J$163*'Input system 2'!$J$11*Baggrundsdata!$J$37 -> 0
C85: Eksporteret biomethan - naturgas substitution | D85: =IF('Input system 2'!$M$11="Ja",-Baggrundsdata!$J$162*Baggrundsdata!$J$24*'Input system 2'!$J$11*Faktorbibliotek!E$35,0) -> 0 | E85: =IF('Input system 2'!$M$11="Ja",-Baggrundsdata!$J$162*Baggrundsdata!$J$24*'Input system 2'!$J$11*Faktorbibliotek!F$35,0) -> 0 | F85: =IF('Input system 2'!$M$11="Ja",-Baggrundsdata!$J$162*Baggrundsdata!$J$24*'Input system 2'!$J$11*Faktorbibliotek!G$35,0) -> 0 | AC85: =IF('Input system 2'!$M$11="Ja",-Baggrundsdata!$J$162*Baggrundsdata!$J$24*'Input system 2'!$J$11*Baggrundsdata!$J$45,0) -> 0
C87: Netto påvirkning | D87: =D67+D65+D66+D62+D58 ->  | E87: =E67+E65+E66+E62+E58 ->  | F87: =F67+F65+F66+F62+F58 ->  | G87: =1-Baggrundsdata!$J$52*('Input system 2'!$J$11*Baggrundsdata!$J$55)/('Input system 2'!$J$11*Baggrundsdata!$J$47) ->  | H87: =1-Baggrundsdata!$J$53*('Input system 2'!$J$11*Baggrundsdata!$J$55)/('Input system 2'!$J$11*Baggrundsdata!$J$48) ->  | I87: =1-Baggrundsdata!$J$54*('Input system 2'!$J$11*Baggrundsdata!$J$55)/('Input system 2'!$J$11*Baggrundsdata!$J$49) ->  | N87: =Baggrundsdata!$J$56 ->  | O87: =Baggrundsdata!$J$57 ->  | P87: =(Baggrundsdata!$J$166*1000000+Baggrundsdata!$J$49*Baggrundsdata!$J$50)/Baggrundsdata!$J$49 -> 0.421364232 | Q87: =Q70+Q69+Q68 -> 0 | R87: =R81 ->  | S87: =Baggrundsdata!J168 -> Noget sandsynligt | T87: =Baggrundsdata!J169 -> 1 | U87: =Baggrundsdata!J170 -> 63 | V87: =Baggrundsdata!$J$154*Baggrundsdata!$J$131 ->  | Y87: =(AA87+AB87+AD87+AE87+AF87+AG87)-AC87 ->  | Z87: =IF(AC87>AA87,(Baggrundsdata!J158*'Input system 2'!$J$8+(Baggrundsdata!J159*'Input system 2'!$J$8*('Basis info'!$B$4/Baggrundsdata!$J$150)))/(AC87+AA87),0) -> 0 | AA87: =AA78+AA79+AA80+AA81+AA82 -> 0 | AB87: =-PMT(Baggrundsdata!$J$21,'Basis info'!$B$4,Baggrundsdata!$J$158*'Input system 2'!$J$8)-PMT(Baggrundsdata!$J$21,'Basis info'!$B$4,(Baggrundsdata!$J$159*'Input system 2'!$J$8)*'Basis info'!$B$4/Baggrundsdata!$J$150) ->  | AC87: =-(AC84+AC85) -> 0 | AG87: =SUM(AG78:AG86) -> 0 | AH87: =Baggrundsdata!$J$172 -> 1 | AI87: =Baggrundsdata!$J$174 -> 1 | AL87: =Baggrundsdata!$J$177 -> 1 | AM87: =Baggrundsdata!$J$178 -> 2 | AN87: =Baggrundsdata!$J$179 -> 3 | AO87: =Baggrundsdata!$J$180 -> Ingen | AP87: =Baggrundsdata!$J$181 -> Ingen | AS87: =1-Baggrundsdata!$J$184 -> 0.8 | AT87: =Baggrundsdata!J185 -> 0.6
P88: Dette afhænger af Inventory data input, og ikke Input system 2
C89: Forklaringstank | D89: Klimaforandringer | E89: Marin Eutrofiering | F89: Ferskvand Eutrofiering
C90: Materialegenerering | D90: =D91 -> 0 | E90: =E91 -> 0 | F90: 0
C91: Beton | D91: =Baggrundsdata!$J$188*('Input system 2'!$J$9)*(Baggrundsdata!$J$19*Faktorbibliotek!$E$10)*('Basis info'!$B$4/Baggrundsdata!$J$191) -> 0 | E91: =Baggrundsdata!$J$188*('Input system 2'!$J$9)*(Baggrundsdata!$J$19*Faktorbibliotek!$F$10)*('Basis info'!$B$4/Baggrundsdata!$J$191) -> 0 | F91: =Baggrundsdata!$J$188*('Input system 2'!$J$9)*(Baggrundsdata!$J$19*Faktorbibliotek!$G$10)*('Basis info'!$B$4/Baggrundsdata!$J$191) -> 0
C94: Transport | D94: =D95+D96 -> 0 | E94: =E95+E96 -> 0 | F94: 0
C95: Transport fra produktion til anlægslokationen | D95: =Baggrundsdata!$J$188*('Input system 2'!$J$9)*(Baggrundsdata!$J$19*Baggrundsdata!$J$190*Faktorbibliotek!E11)*('Basis info'!$B$4/Baggrundsdata!$J$191) -> 0 | E95: =Baggrundsdata!$J$188*('Input system 2'!$J$9)*(Baggrundsdata!$J$19*Baggrundsdata!$J$190*Faktorbibliotek!F11)*('Basis info'!$B$4/Baggrundsdata!$J$191) -> 0 | F95: =Baggrundsdata!$J$188*('Input system 2'!$J$9)*(Baggrundsdata!$J$19*Baggrundsdata!$J$190*Faktorbibliotek!G11)*('Basis info'!$B$4/Baggrundsdata!$J$191) -> 0
C96: Transport af affald til bortskaffelsesanlæg | D96: =Baggrundsdata!$J$188*('Input system 2'!$J$9)*(Baggrundsdata!$J$19*Baggrundsdata!$J$8*Faktorbibliotek!E11)*('Basis info'!$B$4/Baggrundsdata!$J$191) -> 0 | E96: =Baggrundsdata!$J$188*('Input system 2'!$J$9)*(Baggrundsdata!$J$19*Baggrundsdata!$J$8*Faktorbibliotek!F11)*('Basis info'!$B$4/Baggrundsdata!$J$191) -> 0 | F96: =Baggrundsdata!$J$188*('Input system 2'!$J$9)*(Baggrundsdata!$J$19*Baggrundsdata!$J$8*Faktorbibliotek!G11)*('Basis info'!$B$4/Baggrundsdata!$J$191) -> 0
C97: Konstruktion | D97: =D98 -> 0 | E97: =E98 -> 0 | F97: 0
C98: Udgravning | D98: ='Input system 2'!$J$9*Baggrundsdata!$J$189*Faktorbibliotek!E36*('Basis info'!$B$4/Baggrundsdata!$J$191) -> 0 | E98: ='Input system 2'!$J$9*Baggrundsdata!$J$189*Faktorbibliotek!F36*('Basis info'!$B$4/Baggrundsdata!$J$191) -> 0 | F98: ='Input system 2'!$J$9*Baggrundsdata!$J$189*Faktorbibliotek!G36*('Basis info'!$B$4/Baggrundsdata!$J$191) -> 0
C99: Drift
C100: Bortskaffelse/Nedrivning | D100: =D101+D105 -> 0 | E100: =E101+E105 -> 0 | F100: 0
C101: Genbrug af beton | D101: =IF('Input system 2'!$M$9="Genanvendelse",Baggrundsdata!$J$188*('Input system 2'!$J$9)*(Baggrundsdata!$J$19*Faktorbibliotek!$E$32)*('Basis info'!$B$4/Baggrundsdata!$J$191),0) -> 0 | E101: =IF('Input system 2'!$M$9="Genanvendelse",Baggrundsdata!$J$188*('Input system 2'!$J$9)*(Baggrundsdata!$J$19*Faktorbibliotek!F32)*('Basis info'!$B$4/Baggrundsdata!$J$191),0) -> 0 | F101: =IF('Input system 2'!$M$9="Genanvendelse",Baggrundsdata!$J$188*('Input system 2'!$J$9)*(Baggrundsdata!$J$19*Faktorbibliotek!G32)*('Basis info'!$B$4/Baggrundsdata!$J$191),0) -> 0 | Q101: =(('Input system 2'!$J$9*Baggrundsdata!$J$188-'Input system 2'!$J$9*Baggrundsdata!$J$188*Baggrundsdata!$J$11)*Baggrundsdata!$J$19*('Basis info'!$B$4/Baggrundsdata!$J$191))/'Basis info'!$B$4 -> 
C103: Deponering
C105: Deponering af beton | D105: =IF('Input system 2'!$M$9="Deponering",Baggrundsdata!$J$188*('Input system 2'!$J$9)*(Baggrundsdata!$J$19*Faktorbibliotek!$E$28)*('Basis info'!$B$4/Baggrundsdata!$J$191),0) -> 0 | E105: =IF('Input system 2'!$M$9="Deponering",Baggrundsdata!$J$188*('Input system 2'!$J$9)*(Baggrundsdata!$J$19*Faktorbibliotek!$F$28)*('Basis info'!$B$4/Baggrundsdata!$J$191),0) -> 0 | F105: =IF('Input system 2'!$M$9="Deponering",Baggrundsdata!$J$188*('Input system 2'!$J$9)*(Baggrundsdata!$J$19*Faktorbibliotek!$G$28)*('Basis info'!$B$4/Baggrundsdata!$J$191),0) -> 0 | Q105: =(('Input system 2'!$J$9*Baggrundsdata!$J$188*Baggrundsdata!$J$19)*('Basis info'!$B$4/Baggrundsdata!$J$191))/'Basis info'!$B$4 -> 
C108: Netto påvirkning | D108: =+D94+D90+D97+D100 -> 0 | E108: =+E94+E90+E97+E100 -> 0 | F108: =+F94+F90+F97+F100 -> 0 | G108: =1-Baggrundsdata!$J$52*('Input system 2'!$J$11*Baggrundsdata!$J$55)/('Input system 2'!$J$11*Baggrundsdata!$J$47) ->  | H108: =1-Baggrundsdata!$J$53*('Input system 2'!$J$11*Baggrundsdata!$J$55)/('Input system 2'!$J$11*Baggrundsdata!$J$48) ->  | I108: =1-Baggrundsdata!$J$54*('Input system 2'!$J$11*Baggrundsdata!$J$55)/('Input system 2'!$J$11*Baggrundsdata!$J$49) ->  | N108: =Baggrundsdata!$J$56 ->  | O108: =Baggrundsdata!$J$57 ->  | P108: =(+Baggrundsdata!$J$49*Baggrundsdata!$J$50)/Baggrundsdata!$J$49 -> 0.34 | Q108: =IF('Input system 2'!$M$9="Deponering",'Mellemregning 2'!$Q$105,'Mellemregning 2'!$Q$101) ->  | R108: =(Baggrundsdata!J195-Baggrundsdata!J194)*365*'Basis info'!B5 -> 0 | S108: =Baggrundsdata!$J$197 -> Ikke sandsynligt | T108: =Baggrundsdata!$J$198 -> 1 | U108: =Baggrundsdata!$J$199 -> 63 | V108: =Baggrundsdata!$J$202*'Input system 2'!$J$12 -> 0 | Y108: =(AA108+AB108+AD108+AE108+AG108+AF108)-AC108 ->  | Z108: =IF(AC108=0,0,IF((AC108-(AA108+AD108+AE108+AF108+AG108))<0,0,(Baggrundsdata!$J$205*'Input system 2'!$J$12)/(AC108-(AA108+AD108+AE108+AF108+AG108)))) -> 0 | AA108: 0 | AB108: =-PMT(Baggrundsdata!$J$21,'Basis info'!$B$4,Baggrundsdata!$J$205*'Input system 2'!$J$12) ->  | AC108: 0 | AD108: 0 | AE108: 0 | AF108: 0 | AG108: 0 | AH108: 0 | AI108: 0 | AL108: 0 | AM108: 0 | AN108: 0 | AO108: =Baggrundsdata!$J$208 -> Moderat | AP108: =Baggrundsdata!$J$209 -> Lav | AS108: =1-Baggrundsdata!$J$212 -> 0.7 | AT108: =Baggrundsdata!$J$213 -> 0.3
AB109: =-PMT(Baggrundsdata!$J$21,'Basis info'!$B$4,Baggrundsdata!$J$204*'Basis info'!$B$5*Baggrundsdata!$J$16) -> 

Sheet Output-Beregnede værdier 2 (hidden)
B2: Miljøpåvirkninger | C2: Karbon fodaftryk | D2: 1) Behandlingseffektivitet - Total Nitrogen | E2: 2) Behandlingseffektivitet - Total Phosphor | F2: 3) Behandlingseffektivitet- COD | G2: 4) Marin Eutrofieringspotentiale | H2: 5) Ferskvands Eutrofieringspotentiale | J2: Karbon fodaftryk | K2: 1) P gendinvinding | L2: 2) N genindvinding | M2: 3) C geninvinding (som COD) | N2: 4) Restaffald | O2: Netto Vandgenindvinding | P2: Andre emissioner til luft, eksklusiv drivhusgasser | Q2: Lugtgener | R2: Støj potentiale | S2: Areal behov
C3: [kg CO2-eq yr-1] | D3: [% TN reduction] | E3: [% TP reduction] | F3: [% COD reduction] | G3: [kg N-eq] | H3: [kg P-eq] | J3: [kg CO2-ækv. år-1] | K3: ='Mellemregning 2'!N4 -> [% genindvundet P] | L3: ='Mellemregning 2'!O4 -> [% genindvundet N] | M3: ='Mellemregning 2'!P4 -> [% genindvundet COD] | N3: ='Mellemregning 2'!Q4 -> [kg år-1] | O3: ='Mellemregning 2'!R4 -> [m3 år-1] | P3: ='Mellemregning 2'!S4 -> - | Q3: ='Mellemregning 2'!T4 -> - | R3: ='Mellemregning 2'!U4 -> [dB] | S3: ='Mellemregning 2'!V4 -> [m2]
B4: Slamlagertank: rustfri stål | C4: =IF(AND('Input system 2'!$E$7="Rustfri stål",'Input system 2'!$C$7=TRUE),'Mellemregning 2'!$D$30,"-") -> - | D4: =IF(AND('Input system 2'!$E$7="Rustfri stål",'Input system 2'!$C$7=TRUE),'Mellemregning 2'!$G$30,"-") -> - | E4: =IF(AND('Input system 2'!$E$7="Rustfri stål",'Input system 2'!$C$7=TRUE),'Mellemregning 2'!$H$30,"-") -> - | F4: =IF(AND('Input system 2'!$E$7="Rustfri stål",'Input system 2'!$C$7=TRUE),'Mellemregning 2'!$I$30,"-") -> - | G4: =IF(AND('Input system 2'!$E$7="Rustfri stål", 'Input system 2'!$C$7=TRUE),'Mellemregning 2'!E$30,"-") -> - | H4: =IF(AND('Input system 2'!$E$7="Rustfri stål", 'Input system 2'!$C$7=TRUE),'Mellemregning 2'!F$30,"-") -> - | J4: =C4 -> - | K4: =IF(AND('Input system 2'!$E$7="Rustfri stål", 'Input system 2'!$C$7=TRUE),'Mellemregning 2'!$N$30,"-") -> - | L4: =IF(AND('Input system 2'!$E$7="Rustfri stål", 'Input system 2'!$C$7=TRUE),'Mellemregning 2'!$O$30,"-") -> - | M4: =IF(AND('Input system 2'!$E$7="Rustfri stål", 'Input system 2'!$C$7=TRUE),'Mellemregning 2'!$P$30,"-") -> - | N4: =IF(AND('Input system 2'!$E$7="Rustfri stål", 'Input system 2'!$C$7=TRUE),'Mellemregning 2'!$Q$30,"-") -> - | O4: =IF(AND('Input system 2'!$E$7="Rustfri stål", 'Input system 2'!$C$7=TRUE), 'Mellemregning 2'!$R$30,"-") -> - | P4: =IF(AND('Input system 2'!$E$7="Rustfri stål", 'Input system 2'!$C$7=TRUE),'Mellemregning 2'!$S$30,"-") -> - | Q4: =IF(AND('Input system 2'!$E$7="Rustfri stål", 'Input system 2'!$C$7=TRUE),'Mellemregning 2'!$T$30,"-") -> - | R4: =IF(AND('Input system 2'!$E$7="Rustfri stål", 'Input system 2'!$C$7=TRUE),'Mellemregning 2'!$U$30,0) -> 0 | S4: =IF(AND('Input system 2'!$C$7=TRUE,'Input system 2'!$E$7="Rustfri stål"),'Mellemregning 2'!$V$30,"-") -> -
B5: Slamlagertank: beton | C5: =IF(AND('Input system 2'!$E$7="Beton",'Input system 2'!C7=TRUE),'Mellemregning 2'!$D$54,"-") -> - | D5: =IF(AND('Input system 2'!$E$7="Beton",'Input system 2'!$C$7=TRUE),'Mellemregning 2'!$G$54,"NA") -> NA | E5: =IF(AND('Input system 2'!$E$7="Beton",'Input system 2'!$C$7=TRUE),'Mellemregning 2'!$H$54,"-") -> - | F5: =IF(AND('Input system 2'!$E$7="Beton",'Input system 2'!$C$7=TRUE),'Mellemregning 2'!$I$54,"-") -> - | G5: =IF(AND('Input system 2'!$E$7="Beton",'Input system 2'!C7=TRUE),'Mellemregning 2'!$E$54,"-") -> - | H5: =IF(AND('Input system 2'!$E$7="Beton",'Input system 2'!$C$7=TRUE),'Mellemregning 2'!$F$54,"-") -> - | J5: =C5 -> - | K5: =IF(AND('Input system 2'!$E$7="Beton",'Input system 2'!$C$7=TRUE),'Mellemregning 2'!$N$54,"-") -> - | L5: =IF(AND('Input system 2'!$E$7="Beton",'Input system 2'!$C$7=TRUE),'Mellemregning 2'!$O$54,"-") -> - | M5: =IF(AND('Input system 2'!$E$7="Beton",'Input system 2'!$C$7=TRUE),'Mellemregning 2'!$P$54,"-") -> - | N5: =IF(AND('Input system 2'!$E$7="Beton",'Input system 2'!$C$7=TRUE),'Mellemregning 2'!$Q$54,"-") -> - | O5: =IF(AND('Input system 2'!$E$7="Beton",'Input system 2'!$C$7=TRUE),'Mellemregning 2'!$R$54,"-") -> - | P5: =IF(AND('Input system 2'!$E$7="Beton",'Input system 2'!$C$7=TRUE),'Mellemregning 2'!$S$54,"-") -> - | Q5: =IF(AND('Input system 2'!$E$7="Beton",'Input system 2'!$C$7=TRUE),'Mellemregning 2'!$T$54,"-") -> - | R5: =IF(AND('Input system 2'!$E$7="Beton",'Input system 2'!$C$7=TRUE),'Mellemregning 2'!$U$54,0) -> 0 | S5: =IF(AND('Input system 2'!$E$7="Beton",'Input system 2'!$C$7=TRUE),'Mellemregning 2'!$V$54,"-") -> -
B6: Forfiltrering | C6: =IF(AND('Input system 2'!$C$8=TRUE,'Input system 2'!$C$11=TRUE), 'Mellemregning 2'!$D$87,"-") -> - | D6: =IF(AND('Input system 2'!$C$8=TRUE,'Input system 2'!$C$11=TRUE),'Mellemregning 2'!$G$87,"-") -> - | E6: =IF(AND('Input system 2'!$C$8=TRUE,'Input system 2'!$C$11=TRUE),'Mellemregning 2'!$H$87,"-") -> - | F6: =IF(AND('Input system 2'!$C$8=TRUE,'Input system 2'!$C$11=TRUE),'Mellemregning 2'!$I$87,"-") -> - | G6: =IF(AND('Input system 2'!$C$8=TRUE,'Input system 2'!$C$11=TRUE),'Mellemregning 2'!$E$87,"-") -> - | H6: =IF(AND('Input system 2'!$C$8=TRUE,'Input system 2'!$C$11=TRUE),'Mellemregning 2'!$F$87,"-") -> - | J6: - | K6: =IF(AND('Input system 2'!$C$8=TRUE,'Input system 2'!$C$11=TRUE),'Mellemregning 2'!$N$87,"-") -> - | L6: =IF(AND('Input system 2'!$C$8=TRUE,'Input system 2'!$C$11=TRUE),'Mellemregning 2'!$O$87,"-") -> - | M6: =IF(AND('Input system 2'!$C$8=TRUE,'Input system 2'!$C$11=TRUE),'Mellemregning 2'!$P$87,"-") -> - | N6: =IF(AND('Input system 2'!$C$8=TRUE,'Input system 2'!$C$11=TRUE),'Mellemregning 2'!$Q$87,"-") -> - | O6: =IF(AND('Input system 2'!$C$8=TRUE,'Input system 2'!$C$11=TRUE),'Mellemregning 2'!$R$87,"-") -> - | P6: =IF(AND('Input system 2'!$C$8=TRUE,'Input system 2'!$C$11=TRUE),'Mellemregning 2'!$S$87,"-") -> - | Q6: =IF(AND('Input system 2'!$C$8=TRUE,'Input system 2'!$C$11=TRUE),'Mellemregning 2'!$T$87,"-") -> - | R6: =IF(AND('Input system 2'!$C$8=TRUE,'Input system 2'!$C$11=TRUE),'Mellemregning 2'!$U$87,0) -> 0 | S6: =IF(AND('Input system 2'!$C$8=TRUE,'Input system 2'!$C$11=TRUE),'Mellemregning 2'!$V$87,"-") -> -
B7: Forklaringstank | C7: =IF(AND('Input system 2'!$C$9=TRUE,'Input system 2'!$C$12=TRUE), 'Mellemregning 2'!$D$108,"-") -> - | D7: =IF(AND('Input system 2'!$C$9=TRUE,'Input system 2'!$C$12=TRUE),'Mellemregning 2'!$G$108,"-") -> - | E7: =IF(AND('Input system 2'!$C$9=TRUE,'Input system 2'!$C$12=TRUE),'Mellemregning 2'!$H$108,"-") -> - | F7: =IF(AND('Input system 2'!$C$9=TRUE,'Input system 2'!$C$12=TRUE),'Mellemregning 2'!$I$108,"-") -> - | G7: =IF(AND('Input system 2'!$C$9=TRUE,'Input system 2'!$C$12=TRUE), 'Mellemregning 2'!$E$108,"-") -> - | H7: =IF(AND('Input system 2'!$C$9=TRUE,'Input system 2'!$C$12=TRUE), 'Mellemregning 2'!$F$108,"-") -> - | J7: - | K7: =IF(AND('Input system 2'!$C$9=TRUE,'Input system 2'!$C$12=TRUE), 'Mellemregning 2'!$N$108,"-") -> - | L7: =IF(AND('Input system 2'!$C$9=TRUE,'Input system 2'!$C$12=TRUE), 'Mellemregning 2'!$O$108,"-") -> - | M7: =IF(AND('Input system 2'!$C$9=TRUE,'Input system 2'!$C$12=TRUE), 'Mellemregning 2'!$P$108,"-") -> - | N7: =IF(AND('Input system 2'!$C$9=TRUE,'Input system 2'!$C$12=TRUE),'Mellemregning 2'!$Q$108,"-") -> - | O7: =IF(AND('Input system 2'!$C$9=TRUE,'Input system 2'!$C$12=TRUE),'Mellemregning 2'!$R$108,"-") -> - | P7: =IF(AND('Input system 2'!$C$9=TRUE,'Input system 2'!$C$12=TRUE),'Mellemregning 2'!$S$108,"-") -> - | Q7: =IF(AND('Input system 2'!$C$9=TRUE,'Input system 2'!$C$12=TRUE),'Mellemregning 2'!$T$108,"-") -> - | R7: =IF(AND('Input system 2'!$C$9=TRUE,'Input system 2'!$C$12=TRUE),'Mellemregning 2'!$U$108,0) -> 0 | S7: =IF(AND('Input system 2'!$C$9=TRUE,'Input system 2'!$C$12=TRUE),'Mellemregning 2'!$V$108,"-") -> -
B8: 0
B9: 0
B10: 0
B11: 0
B12: 0
B13: 0
B14: 0
B15: 0
B16: =CONCATENATE("Netto miljøpåvirkning: ",'Input system 2'!$B$3) -> Netto miljøpåvirkning: | C16: =SUM(C4:C7) -> 0 | D16: =AVERAGE(D4:D7) ->  | E16: =AVERAGE(E4:E7) ->  | F16: =AVERAGE(F4:F7) ->  | G16: =SUM(G4:G7) -> 0 | H16: =SUM(H4:H7) -> 0 | I16: =SUM(I4:I7) -> 0 | J16: 0 | K16: =AVERAGE(K4:K7) ->  | L16: =AVERAGE(L4:L7) ->  | M16: =AVERAGE(M4:M7) ->  | N16: =SUM(N4:N7) -> 0 | O16: 0 | P16: =CONCATENATE(" Stål tank: "&P4,CHAR(10)," Beton tank: "&P5, CHAR(10)," Forfiltrering: "&P6,CHAR(10)," Forklaringstank: "& P7) -> Stål tank: - Beton tank: - Forfiltrering: - Forklaringstank: - | Q16: =CONCATENATE(" Stål tank: "&Q4,CHAR(10)," Beton tank: "&Q5, CHAR(10)," Forfiltrering: "&Q6,CHAR(10)," Forklaringstank: "& Q7) -> Stål tank: - Beton tank: - Forfiltrering: - Forklaringstank: - | R16: =IF(AND(R4>0,R5=0),10*LOG(10*(SUM(10^($R$4/10),10^($R$6/10), 10^($R$7/10)))),10*LOG(10*(SUM(10^($R$4/10),10^($R$5/10),10^($R$6/10), 10^($R$7/10))))) -> 16.02059991 | S16: 0
C17: [kg CO2-ækv.] | D17: [% TN reduktion] | E17: [% TP reduktion] | F17: [% COD reduktion] | G17: [kg N-ækv.] | H17: [kg P-ækv.] | O17: Middelværdier: | P17: =IF(AND(P4="-",P5="-",P6="-",P7="-"),"-",AVERAGE(P4:P7)) -> - | Q17: =IF(AND(Q4="-",Q5="-",Q6="-",Q7="-"),"-",AVERAGE(Q4:Q7)) -> - | R17: Metode til beregning af det totale Støj potentiale fra Van schaik et al. 2021
B20: Økonomisk påvirkning | C20: 1) Totale udgifter | D20: 2) Tilbagebetalingsperiode | E20: OPEX (eksklusiv andre udgifter) | F20: CAPEX | G20: Omsætning | H20: 1) Afgifter: Udledningsafgifter | I20: 2) Afgifter: Deponeringsafgifter | J20: 3) Afgifter: Forbrændings afgifter | K20: ='Mellemregning 2'!AG3 -> 4) Karbon skat/afgift | L20: 1) Potentiale for ekstern finansiering og tilskud | M20: 2) Servicediversificeringspotentiale
C21: kr. yr-1 | D21: yr | E21: kr. yr-1 | F21: kr. yr-1 | G21: kr. yr-1 | H21: kr. yr-1 | I21: kr. yr-1 | J21: kr. yr-1 | K21: kr. yr-1 | L21: - | M21: -
B22: =B4 -> Slamlagertank: rustfri stål | C22: =IF(AND('Input system 2'!$E$7="Rustfri stål",'Input system 2'!$C$7=TRUE),'Mellemregning 2'!$Y$30,"-") -> - | D22: =IF(AND('Input system 2'!$E$7="Rustfri stål",'Input system 2'!$C$7=TRUE),'Mellemregning 2'!$Z$30,"-") -> - | E22: =IF(AND('Input system 2'!$E$7="Rustfri stål",'Input system 2'!$C$7=TRUE),'Mellemregning 2'!$AA$30,"-") -> - | F22: =IF(AND('Input system 2'!$E$7="Rustfri stål",'Input system 2'!$C$7=TRUE),'Mellemregning 2'!$AB$30,"-") -> - | G22: =IF(AND('Input system 2'!$E$7="Rustfri stål",'Input system 2'!$C$7=TRUE),'Mellemregning 2'!$AC$30,"-") -> - | H22: =IF(AND('Input system 2'!$E$7="Rustfri stål",'Input system 2'!$C$7=TRUE),'Mellemregning 2'!$AD$30,"-") -> - | I22: =IF(AND('Input system 2'!$E$7="Rustfri stål",'Input system 2'!$C$7=TRUE),'Mellemregning 2'!$AE$30,"-") -> - | J22: =IF(AND('Input system 2'!$E$7="Rustfri stål",'Input system 2'!$C$7=TRUE),'Mellemregning 2'!AF30,"-") -> - | K22: =IF(AND('Input system 2'!$E$7="Rustfri stål",'Input system 2'!$C$7=TRUE),'Mellemregning 2'!$AG$30,"-") -> - | L22: =IF(AND('Input system 2'!$E$7="Rustfri stål",'Input system 2'!$C$7=TRUE),'Mellemregning 2'!$AH$30,"-") -> - | M22: =IF(AND('Input system 2'!$E$7="Rustfri stål",'Input system 2'!$C$7=TRUE),'Mellemregning 2'!$AI$30,"-") -> -
B23: Slamlagertank: beton | C23: =IF(AND('Input system 2'!$E$7="Beton",'Input system 2'!C7=TRUE),'Mellemregning 2'!$Y$54,"-") -> - | D23: =IF(AND('Input system 2'!$E$7="Beton",'Input system 2'!C7=TRUE),'Mellemregning 2'!$Z$54,"-") -> - | E23: =IF(AND('Input system 2'!$E$7="Beton",'Input system 2'!C7=TRUE),'Mellemregning 2'!$AA$54,"-") -> - | F23: =IF(AND('Input system 2'!$E$7="Beton",'Input system 2'!C7=TRUE),'Mellemregning 2'!$AB$54,"-") -> - | G23: =IF(AND('Input system 2'!$E$7="Beton",'Input system 2'!C7=TRUE),'Mellemregning 2'!$AC$54,"-") -> - | H23: =IF(AND('Input system 2'!$E$7="Beton",'Input system 2'!C7=TRUE),'Mellemregning 2'!$AD$54,"-") -> - | I23: =IF(AND('Input system 2'!$E$7="Beton",'Input system 2'!$C$7=TRUE),'Mellemregning 2'!$AE$54,"-") -> - | J23: =IF(AND('Input system 2'!$E$7="Beton",'Input system 2'!C7=TRUE),'Mellemregning 2'!$AF$54,"-") -> - | K23: =IF(AND('Input system 2'!$E$7="Beton",'Input system 2'!$C$7=TRUE),'Mellemregning 2'!$AG$54,"-") -> - | L23: =IF(AND('Input system 2'!$E$7="Beton",'Input system 2'!C7=TRUE),'Mellemregning 2'!$AH$54,"-") -> - | M23: =IF(AND('Input system 2'!$E$7="Beton",'Input system 2'!C7=TRUE),'Mellemregning 2'!$AI$54,"-") -> -
B24: Forfiltrering | C24: =IF(AND('Input system 2'!$C$8=TRUE,'Input system 2'!$C$11=TRUE), 'Mellemregning 2'!$Y$87,"-") -> - | D24: =IF(AND('Input system 2'!$C$8=TRUE,'Input system 2'!$C$11=TRUE), 'Mellemregning 2'!$Z$87,"-") -> - | E24: =IF(AND('Input system 2'!$C$8=TRUE,'Input system 2'!$C$11=TRUE), 'Mellemregning 2'!$AA$87,"-") -> - | F24: =IF(AND('Input system 2'!$C$8=TRUE,'Input system 2'!$C$11=TRUE), 'Mellemregning 2'!$AB$87,"-") -> - | G24: =IF(AND('Input system 2'!$C$8=TRUE,'Input system 2'!$C$11=TRUE),'Mellemregning 2'!$AC$87,"-") -> - | H24: =IF(AND('Input system 2'!$C$8=TRUE,'Input system 2'!$C$11=TRUE), 'Mellemregning 2'!$AD$87,"-") -> - | I24: =IF(AND('Input system 2'!$C$8=TRUE,'Input system 2'!$C$11=TRUE), 'Mellemregning 2'!$AE$87,"-") -> - | J24: =IF(AND('Input system 2'!$C$8=TRUE,'Input system 2'!$C$11=TRUE), 'Mellemregning 2'!$AF$87,"-") -> - | K24: =IF(AND('Input system 2'!$C$8=TRUE,'Input system 2'!$C$11=TRUE),'Mellemregning 2'!$AG$87,"-") -> - | L24: =IF(AND('Input system 2'!$C$8=TRUE,'Input system 2'!$C$11=TRUE), 'Mellemregning 2'!$AH$87,"-") -> - | M24: =IF(AND('Input system 2'!$C$8=TRUE,'Input system 2'!$C$11=TRUE), 'Mellemregning 2'!$AI$87,"-") -> -
B25: Forklaringstank | C25: =IF(AND('Input system 2'!$C$9=TRUE,'Input system 2'!$C$12=TRUE), 'Mellemregning 2'!Y108,"-") -> - | D25: =IF(AND('Input system 2'!$C$9=TRUE,'Input system 2'!$C$12=TRUE), 'Mellemregning 2'!Z108,"-") -> - | E25: =IF(AND('Input system 2'!$C$9=TRUE,'Input system 2'!$C$12=TRUE), 'Mellemregning 2'!AA108,"-") -> - | F25: =IF(AND('Input system 2'!$C$9=TRUE,'Input system 2'!$C$12=TRUE), 'Mellemregning 2'!AB108,"-") -> - | G25: =IF(AND('Input system 2'!$C$9=TRUE,'Input system 2'!$C$12=TRUE), 'Mellemregning 2'!AC108,"-") -> - | H25: =IF(AND('Input system 2'!$C$9=TRUE,'Input system 2'!$C$12=TRUE), 'Mellemregning 2'!AD108,"-") -> - | I25: =IF(AND('Input system 2'!$C$9=TRUE,'Input system 2'!$C$12=TRUE), 'Mellemregning 2'!AE108,"-") -> - | J25: =IF(AND('Input system 2'!$C$9=TRUE,'Input system 2'!$C$12=TRUE), 'Mellemregning 2'!AF108,"-") -> - | K25: =IF(AND('Input system 2'!$C$9=TRUE,'Input system 2'!$C$12=TRUE), 'Mellemregning 2'!AG108,"-") -> - | L25: =IF(AND('Input system 2'!$C$9=TRUE,'Input system 2'!$C$12=TRUE), 'Mellemregning 2'!AH108,"-") -> - | M25: =IF(AND('Input system 2'!$C$9=TRUE,'Input system 2'!$C$12=TRUE), 'Mellemregning 2'!AI108,"-") -> -
B26: 0
B27: 0
B28: 0
B29: 0
B30: 0
B31: 0
B32: 0
B33: 0
B34: =CONCATENATE("Netto økonomisk påvirkning: ",'Input system 2'!$B$3) -> Netto økonomisk påvirkning: | C34: =SUM(C22:C33) -> 0 | D34: =AVERAGE(D22:D33) ->  | E34: =SUM(E22:E33) -> 0 | F34: =SUM(F22:F33) -> 0 | G34: =SUM(G22:G33) -> 0 | H34: 0 | I34: 0 | J34: 0 | K34: =SUM(K22:K33) -> 0 | L34: =SUM(L22:L33) -> 0 | M34: 0
B36: Sociale påvirkninger | C36: Antal nye fuldtidsjobs | D36: Antal undervisninger i skoler og universiteter | E36: Samarbejdspotentiale | F36: Forventet risici for uheld og infektioner | G36: Markedspotentiale | I36: Forventet risici for uheld og infektioner | J36: Markedspotentiale
I37: - | J37: -
B38: =B22 -> Slamlagertank: rustfri stål | C38: =IF(AND('Input system 2'!$E$7="Rustfri stål",'Input system 2'!$C$7=TRUE),'Mellemregning 2'!$AL$30,"-") -> - | D38: =IF(AND('Input system 2'!$E$7="Rustfri stål",'Input system 2'!$C$7=TRUE),'Mellemregning 2'!$AM$30,"-") -> - | E38: =IF(AND('Input system 2'!$E$7="Rustfri stål",'Input system 2'!$C$7=TRUE),'Mellemregning 2'!$AN$30,"-") -> - | F38: =IF(AND('Input system 2'!$E$7="Rustfri stål",'Input system 2'!$C$7=TRUE),'Mellemregning 2'!$AO$30,"-") -> - | G38: =IF(AND('Input system 2'!$E$7="Rustfri stål",'Input system 2'!$C$7=TRUE),'Mellemregning 2'!$AP$30,"-") -> - | I38: =IF($F$38="Ingen",1,IF($F$38="Høj",0,IF($F$38="Moderat",0.3,0.7))) -> 0.7 | J38: =IF($G$38="Ingen",0,IF($G$38="Høj",1,IF($G$38="Moderat",0.7,0.3))) -> 0.3
B39: Slamlagertank: beton | C39: =IF(AND('Input system 2'!$E$7="Beton",'Input system 2'!C7=TRUE),'Mellemregning 2'!$AL$54,"-") -> - | D39: =IF(AND('Input system 2'!$E$7="Beton",'Input system 2'!C7=TRUE),'Mellemregning 2'!$AM$54,"-") -> - | E39: =IF(AND('Input system 2'!$E$7="Beton",'Input system 2'!C7=TRUE),'Mellemregning 2'!$AN$54,"-") -> - | F39: =IF(AND('Input system 2'!$E$7="Beton",'Input system 2'!C7=TRUE),'Mellemregning 2'!$AO$54,"-") -> - | G39: =IF(AND('Input system 2'!$E$7="Beton",'Input system 2'!C7=TRUE),'Mellemregning 2'!$AP$54,"-") -> - | I39: =IF($F$39="Ingen",1,IF($F$39="Høj",0,IF($F$39="Moderat",0.3,0.7))) -> 0.7 | J39: =IF($G$39="Ingen",0,IF($G$39="Høj",1,IF($G$39="Moderat",0.7,0.3))) -> 0.3
B40: Forfiltrering | C40: =IF(AND('Input system 2'!$C$8=TRUE,'Input system 2'!$C$11=TRUE), 'Mellemregning 2'!$AL$87,"-") -> - | D40: =IF(AND('Input system 2'!$C$8=TRUE,'Input system 2'!$C$11=TRUE), 'Mellemregning 2'!$AM$87,"-") -> - | E40: =IF(AND('Input system 2'!$C$8=TRUE,'Input system 2'!$C$11=TRUE), 'Mellemregning 2'!$AN$87,"-") -> - | F40: =IF(AND('Input system 2'!$C$8=TRUE,'Input system 2'!$C$11=TRUE), 'Mellemregning 2'!$AO$87,"-") -> - | G40: =IF(AND('Input system 2'!$C$8=TRUE,'Input system 2'!$C$11=TRUE), 'Mellemregning 2'!$AP$87,"-") -> - | I40: =IF(Baggrundsdata!$J$180="Ingen",1,IF(Baggrundsdata!$J$180="Høj",0,IF(Baggrundsdata!$J$180="Moderat",0.3,0.7))) -> 1 | J40: =IF(Baggrundsdata!$J$181="Ingen",0,IF(Baggrundsdata!$J$181="Høj",1,IF(Baggrundsdata!$J$181="Moderat",0.7,0.3))) -> 0
B41: Forklaringstank | C41: =IF(AND('Input system 2'!$C$9=TRUE,'Input system 2'!$C$12=TRUE), 'Mellemregning 2'!AL108,"-") -> - | D41: =IF(AND('Input system 2'!$C$9=TRUE,'Input system 2'!$C$12=TRUE), 'Mellemregning 2'!AM108,"-") -> - | E41: =IF(AND('Input system 2'!$C$9=TRUE,'Input system 2'!$C$12=TRUE), 'Mellemregning 2'!AN108,"-") -> - | F41: =IF(AND('Input system 2'!$C$9=TRUE,'Input system 2'!$C$12=TRUE), 'Mellemregning 2'!AO108,"-") -> - | G41: =IF(AND('Input system 2'!$C$9=TRUE,'Input system 2'!$C$12=TRUE), 'Mellemregning 2'!AP108,"-") -> - | I41: =IF($F$41="Ingen",1,IF($F$41="Høj",0,IF($F$41="Moderat",0.3,0.7))) -> 0.7 | J41: =IF($G$41="Ingen",0,IF($G$41="Høj",1,IF($G$41="Moderat",0.7,0.3))) -> 0.3
B42: 0
B43: 0
B44: 0
B45: 0
B46: 0
B47: 0
B48: 0
B49: 0
B50: =CONCATENATE("Netto sociale påvirkninger: ",'Input system 2'!$B$3) -> Netto sociale påvirkninger: | C50: =SUM(C38:C49) -> 0 | D50: =SUM(D38:D49) -> 0 | E50: 0 | F50: =CONCATENATE(" Stål tank: "&F38,CHAR(10)," Beton tank: "&F39, CHAR(10)," Forfiltrering: "&F40,CHAR(10)," Forklaringstank: "& F41) -> Stål tank: - Beton tank: - Forfiltrering: - Forklaringstank: - | G50: =CONCATENATE(" Stål tank: "&G38,CHAR(10)," Beton tank: "&G39, CHAR(10)," Forfiltrering: "&G40,CHAR(10)," Forklaringstank: "& G41) -> Stål tank: - Beton tank: - Forfiltrering: - Forklaringstank: - | I50: =AVERAGE(I38:I41) -> 0.775 | J50: =AVERAGE(J38:J41) -> 0.225
B53: Teknisk påvirkning | C53: Overordnet pålidelighed | D53: Evne til at justerer systemet
B54: =B38 -> Slamlagertank: rustfri stål | C54: =IF(AND('Input system 2'!$E$7="Rustfri stål",'Input system 2'!$C$7=TRUE),'Mellemregning 2'!$AS$30,"-") -> - | D54: =IF(AND('Input system 2'!$E$7="Rustfri stål",'Input system 2'!$C$7=TRUE),'Mellemregning 2'!$AT$30,"-") -> -
B55: Slamlagertank: beton | C55: =IF(AND('Input system 2'!$E$7="Beton",'Input system 2'!$C$7=TRUE),'Mellemregning 2'!$AS$54,"-") -> - | D55: =IF(AND('Input system 2'!$E$7="Beton",'Input system 2'!C7=TRUE),'Mellemregning 2'!$AT$54,"-") -> -
B56: Forfiltrering | C56: =IF(AND('Input system 2'!$C$8=TRUE,'Input system 2'!$C$11=TRUE), 'Mellemregning 2'!$AS$87,"-") -> - | D56: =IF(AND('Input system 2'!$C$8=TRUE,'Input system 2'!$C$11=TRUE), 'Mellemregning 2'!$AT$87,"-") -> -
B57: Forklaringstank | C57: =IF(AND('Input system 2'!$C$9=TRUE,'Input system 2'!$C$12=TRUE), 'Mellemregning 2'!AS108,"-") -> - | D57: =IF(AND('Input system 2'!$C$9=TRUE,'Input system 2'!$C$12=TRUE), 'Mellemregning 2'!AT108,"-") -> -
B58: 0
B59: 0
B60: 0
B61: 0
B62: 0
B63: 0
B64: 0
B65: 0
B66: =CONCATENATE("Netto teknisk påvirkning: ",'Input system 2'!$B$3) -> Netto teknisk påvirkning: | C66: =AVERAGE(C54:C65) ->  | D66: =AVERAGE(D54:D65) -> 

Sheet Output system 1 og 2 - tabel
B1: Resultater - Tabeloversigt
H3: ='Input system 1'!B3 -> 0 | I3: ='Input system 2'!$B$3 -> 0
C4: Miljøpåvirkninger
C5: Kriterie | D5: Short name | E5: Indikatorer | F5: Semi-quantitative | G5: Enhed
C6: Eutrofieringspotentiale | D6: EUP | E6: Behandlingseffektivitet - Total Nitrogen | G6: % N reduktion | H6: =IFERROR('Output-Beregnede værdier 1'!$D$16,"NA") -> NA | I6: =IFERROR('Output-Beregnede værdier 2'!$D$16,"NA") -> NA
E7: Behandlingseffektivitet - Total Fosfor | G7: % P reduktion | H7: =IFERROR('Output-Beregnede værdier 1'!$E$16,"NA") -> NA | I7: =IFERROR('Output-Beregnede værdier 2'!$E$16,"NA") -> NA
E8: Behandlingseffektivitet - COD | G8: % COD reduktion | H8: =IFERROR('Output-Beregnede værdier 1'!$F$16,"NA") -> NA | I8: =IFERROR('Output-Beregnede værdier 2'!$F$16,"NA") -> NA
E9: Marin eutrofieringspotentiale | G9: kg N-ækv. år-1 | H9: ='Output-Beregnede værdier 1'!$G$16 -> 0 | I9: ='Output-Beregnede værdier 2'!$G$16 -> 0
E10: Ferskvands eutrofieringspotentiale | G10: kg P-ækv. år-1 | H10: ='Output-Beregnede værdier 1'!$H$16 -> 0 | I10: ='Output-Beregnede værdier 2'!$H$16 -> 0
E11: 6) ENEI (?) maybe it could be included
C12: Klimaforandringspotentiale | D12: CCP | E12: Karbon fodaftryk | G12: ton CO2-ækv. år-1 | H12: ='Output-Beregnede værdier 1'!$J$16*Faktorbibliotek!C38 -> 0 | I12: ='Output-Beregnede værdier 2'!$J$16*Faktorbibliotek!C38 -> 0
C13: Cirkularitet & ressource udvinding | D13: CIREMI | E13: P genindvinding | G13: % P genindvinding | H13: =IFERROR('Output-Beregnede værdier 1'!$K$16,"NA") -> NA | I13: =IFERROR('Output-Beregnede værdier 2'!$K$16,"NA") -> NA
E14: N genindvinding | G14: % N genindvinding | H14: =IFERROR('Output-Beregnede værdier 1'!$L$16,"NA") -> NA | I14: =IFERROR('Output-Beregnede værdier 2'!$L$16,"NA") -> NA
E15: C genindvinding | G15: % COD genindvinding | H15: =IFERROR('Output-Beregnede værdier 1'!$M$16,"NA") -> NA | I15: =IFERROR('Output-Beregnede værdier 2'!$M$16,"NA") -> NA
E16: Restaffald | G16: kg restaffald år-1 | H16: ='Output-Beregnede værdier 1'!$N$16 -> 0 | I16: ='Output-Beregnede værdier 2'!$N$16 -> 0
C17: Vand som ressource | D17: WARE | E17: Netto vand genindvinding | G17: m3 | H17: =IF('Output-Beregnede værdier 1'!$O$16=0,"0",'Output-Beregnede værdier 1'!$O$16) -> 0 | I17: =IF('Output-Beregnede værdier 2'!$O$16=0,"0",'Output-Beregnede værdier 2'!$O$16) -> 0
C18: Luftforurening | D18: AIP | E18: Øvrige direkte luftemissioner eksklusiv drivhusgasser | F18: x | G18: [-] | H18: ='Output-Beregnede værdier 1'!$P$16 -> Stål tank: - Beton tank: - Forfiltrering: - Forklaringstank: - | I18: ='Output-Beregnede værdier 2'!$P$16 -> Stål tank: - Beton tank: - Forfiltrering: - Forklaringstank: -
C19: Lugtforurening | D19: ODP | E19: Potentielle lugtgener | F19: x | G19: [-] | H19: ='Output-Beregnede værdier 1'!$Q$16 -> Stål tank: - Beton tank: - Forfiltrering: - Forklaringstank: - | I19: ='Output-Beregnede værdier 2'!$Q$16 -> Stål tank: - Beton tank: - Forfiltrering: - Forklaringstank: -
H20: =_xlfn.CONCAT("Middel værdi: " &'Output-Beregnede værdier 1'!Q17) -> Middel værdi: - | I20: =_xlfn.CONCAT("Middel værdi: " &'Output-Beregnede værdier 2'!Q17) -> Middel værdi: -
C21: Støjforurening | D21: NUP | E21: Støj potentiale | G21: dB | H21: ='Output-Beregnede værdier 1'!$R$16 -> 16.02059991 | I21: ='Output-Beregnede værdier 2'!$R$16 -> 16.02059991
C22: Grundareal | D22: AREF | E22: Areal | G22: m2 | H22: ='Output-Beregnede værdier 1'!$S$16 -> 0 | I22: ='Output-Beregnede værdier 2'!$S$16 -> 0
C24: Økonomisk påvirkning
C25: Kriterie | E25: Indikatorer | G25: Enhed
C26: 1) Rentabilitet | D26: PROF | E26: 1) Samlede omkostninger | G26: =CONCATENATE(Baggrundsdata!G14," / år") -> DKK / år | H26: =ROUND('Output-Beregnede værdier 1'!$C$34*Baggrundsdata!$G$15*Baggrundsdata!G13,-3) -> 0 | I26: =ROUND('Output-Beregnede værdier 2'!$C$34*Baggrundsdata!$J$15*Baggrundsdata!$J$13,-3) -> 0
E27: 2) Tilbagebetalingsperiode | G27: år | H27: =IFERROR('Output-Beregnede værdier 1'!$D$34,"NA") -> NA | I27: =IFERROR('Output-Beregnede værdier 2'!$D$34,"NA") -> NA
C28: 2) Drifts- og vedligeholdelsesomkostninger | D28: OX | E28: OPEX (uden øvrige omkostninger) | G28: =CONCATENATE(Baggrundsdata!G14," / år") -> DKK / år | H28: =ROUND('Output-Beregnede værdier 1'!$E$34*Baggrundsdata!$G$15*Baggrundsdata!$G$13,-3) -> 0 | I28: =ROUND('Output-Beregnede værdier 2'!$E$34*Baggrundsdata!$J$15*Baggrundsdata!$J$13,-3) -> 0
C29: 3) Kapitalomkostninger | D29: CX | E29: CAPEX | G29: =CONCATENATE(Baggrundsdata!G14," / år") -> DKK / år | H29: =ROUND('Output-Beregnede værdier 1'!$F$34*Baggrundsdata!$G$15*Baggrundsdata!$G$13,-3) -> 0 | I29: =ROUND('Output-Beregnede værdier 2'!$F$34*Baggrundsdata!$J$15*Baggrundsdata!$J$13,-3) -> 0
C30: 4) Omsætning | D30: INC | E30: Indtægter | G30: =CONCATENATE(Baggrundsdata!G14," / år") -> DKK / år | H30: =ROUND('Output-Beregnede værdier 1'!$G$34*Baggrundsdata!$G$15*Baggrundsdata!$G$13,-2) -> 0 | I30: =ROUND('Output-Beregnede værdier 2'!$G$34*Baggrundsdata!$J$15*Baggrundsdata!$J$13,-3) -> 0
C31: 5) Øvrige omkostninger | D31: OTC | E31: 1) Afgifter: Udledning | G31: =CONCATENATE(Baggrundsdata!G14," / år") -> DKK / år | H31: =ROUND('Output-Beregnede værdier 1'!$H$34*Baggrundsdata!$G$15*Baggrundsdata!$G$13,-2) -> 0 | I31: =ROUND('Output-Beregnede værdier 2'!$H$34*Baggrundsdata!$J$15*Baggrundsdata!$J$13,-2) -> 0
E32: 2) Afgifter: Deponering | G32: =CONCATENATE(Baggrundsdata!G14," / år") -> DKK / år | H32: =ROUND('Output-Beregnede værdier 1'!$I$34*Baggrundsdata!$G$15*Baggrundsdata!$G$13,-2) -> 0 | I32: =ROUND('Output-Beregnede værdier 2'!$I$34*Baggrundsdata!$J$15*Baggrundsdata!$J$13,-2) -> 0
E33: 3) Afgifter: Forbrænding | G33: =CONCATENATE(Baggrundsdata!G14," / år") -> DKK / år | H33: =ROUND('Output-Beregnede værdier 1'!$J$34*Baggrundsdata!$G$15*Baggrundsdata!$G$13,-2) -> 0 | I33: =ROUND('Output-Beregnede værdier 2'!$J$34*Baggrundsdata!$J$15*Baggrundsdata!$J$13,-2) -> 0
E34: 4) Afgiter: Kulstofafgift | G34: =CONCATENATE(Baggrundsdata!G14," / år") -> DKK / år | H34: =ROUND('Output-Beregnede værdier 1'!$K$34*Baggrundsdata!$G$15*Baggrundsdata!$G$13,-2) -> 0 | I34: =ROUND('Output-Beregnede værdier 2'!$K$34*Baggrundsdata!$J$15*Baggrundsdata!$J$13,-2) -> 0
C35: 6) Øvrige potentielle økonomikse merværdier | D35: OTV | E35: 1) Potentiale for extern finansiering og tilskud | G35: # af ansøgninger | H35: ='Output-Beregnede værdier 1'!$L$34 -> 0 | I35: ='Output-Beregnede værdier 2'!$L$34 -> 0
E36: 2) Servicediversificeringspotentiale | G36: # af yderligere tjenester | H36: ='Output-Beregnede værdier 1'!$M$34 -> 0 | I36: ='Output-Beregnede værdier 2'!$M$34 -> 0
C39: Samfundsrelateret påvirkning
C40: Kriterie | E40: Indikatorer | G40: Enhed
C41: 1) Potentiale for jobskabelse | D41: JCP | E41: Antal af nye fuldtidsjob | G41: # nye job | H41: ='Output-Beregnede værdier 1'!$C$50 -> 0 | I41: ='Output-Beregnede værdier 2'!$C$50 -> 0
C42: 2) Potentiale for offentlig udbredelse | D42: PPO | E42: Antal præsentationer/lektioner på skoler og universiteter | G42: # af præsentationer | H42: ='Output-Beregnede værdier 1'!$D$50 -> 0 | I42: ='Output-Beregnede værdier 2'!$D$50 -> 0
C43: 3) Potential for partnerskaber | D43: PFP | E43: Samarbejdspotentiale | G43: # nye partnere | H43: ='Output-Beregnede værdier 1'!$E$50 -> 0 | I43: ='Output-Beregnede værdier 2'!$E$50 -> 0
C44: 4) Sikkerhed på arbejdspladsen | D44: SWOP | E44: Risiko for ulykker eller infektioner | F44: x | G44: [-] | H44: ='Output-Beregnede værdier 1'!$F$50 -> Stål tank: - beton tank: - Forfiltrering: - Forklaringstank: - | I44: ='Output-Beregnede værdier 2'!$F$50 -> Stål tank: - Beton tank: - Forfiltrering: - Forklaringstank: -
C45: 5) Eksport af 'know-how' | D45: EKN | E45: Markedspotentiale | F45: x | G45: [-] | H45: ='Output-Beregnede værdier 1'!$G$50 -> Stål tank: - beton tank: - Forfiltrering: - Forklaringstank: - | I45: ='Output-Beregnede værdier 2'!$G$50 -> Stål tank: - Beton tank: - Forfiltrering: - Forklaringstank: -
C47: Teknisk aspekt
C48: Kriterie | E48: Indikatorer | G48: Enhed
C49: 1) Robusthed | D49: ROB | E49: Overordnet pålidelighed | F49: x | G49: % | H49: =IFERROR('Output-Beregnede værdier 1'!$C$66*Faktorbibliotek!C39,"NA") -> NA | I49: =IFERROR('Output-Beregnede værdier 2'!$C$66*Faktorbibliotek!C39,"NA") -> NA
C50: 2) Fleksibilitet | D50: FLEX | E50: Justerbarhed af systemet | F50: x | G50: % | H50: =IFERROR('Output-Beregnede værdier 1'!$D$66*Faktorbibliotek!C39,"NA") -> NA | I50: =IFERROR('Output-Beregnede værdier 2'!$D$66*Faktorbibliotek!C39,"NA") -> NA

Sheet Output mulige figurer
B2: Miljøpåvirkninger | O2: Klimapåvirkning | AC2: Økonomisk påvirkning
O6: Klimaforandringer | P6: ='Input system 1'!B3 -> 0 | V6: Klimaforandringer | X6: ='Input system 2'!B3 -> 0 | AC6: Økonomisk påvirkning | AR6: Input til økonomi-figurer
O7: Slamlagertank: Rustfri stål | P7: Slamlagertank: Beton | Q7: Forfiltrering: Salsnes filter | R7: Forklaringstank | S7: Total netto Klimapåvirkning: System 1 | V7: Slamlagertank: Rustfri stål | W7: Slamlagertank: Beton | X7: Forfiltrering: Salsnes filter | Y7: Forklaringstank | Z7: Total netto Klimapåvirkning: System 2 | AA7: . | AC7: ='Output system 1 og 2 - tabel'!C25 -> Kriterie | AE7: ='Output system 1 og 2 - tabel'!E25 -> Indikatorer | AG7: ='Output system 1 og 2 - tabel'!G25 -> Enhed | AH7: System 1 | AI7: System 2 | AK7: ='Output system 1 og 2 - tabel'!C25 -> Kriterie | AL7: ='Output system 1 og 2 - tabel'!D25 -> 0 | AM7: ='Output system 1 og 2 - tabel'!E25 -> Indikatorer | AN7: ='Output system 1 og 2 - tabel'!F25 -> 0 | AO7: ='Output system 1 og 2 - tabel'!G25 -> Enhed | AP7: ='Input system 1'!B3 -> 0 | AQ7: ='Input system 2'!B3 -> 0 | AR7: =_xlfn.CONCAT(AP7 & " ["& Baggrundsdata!G14 & " / år]") -> 0 [DKK / år] | AS7: =_xlfn.CONCAT(AQ7 & " ["& Baggrundsdata!G14 & " / år]") -> 0 [DKK / år]
N8: Materialegenerering | O8: =IF(AND('Input system 1'!$E$7="Stainless steel",'Input system 1'!$C$7=TRUE),'Mellemregning 1'!D6,0) -> 0 | P8: =IF(AND('Input system 1'!$E$7="Concrete",'Input system 1'!$C$7=TRUE),'Mellemregning 1'!D34,0) -> 0 | Q8: =IF(AND('Input system 1'!$C$8=TRUE,'Input system 1'!$C$11=TRUE),'Mellemregning 1'!D58,0) -> 0 | R8: =IF(AND('Input system 1'!$C$9=TRUE,'Input system 1'!$C$12=TRUE),'Mellemregning 1'!D90,0) -> 0 | S8: =SUM(O8:R8) -> 0 | U8: Materialegenerering | V8: =IF(AND('Input system 2'!$E$7="Stainless steel",'Input system 2'!$C$7=TRUE),'Mellemregning 2'!D6,0) -> 0 | W8: =IF(AND('Input system 2'!$E$7="Concrete",'Input system 2'!$C$7=TRUE),'Mellemregning 2'!D34,0) -> 0 | X8: =IF(AND('Input system 2'!$C$8=TRUE,'Input system 2'!$C$11=TRUE),'Mellemregning 2'!D58,0) -> 0 | Y8: =IF(AND('Input system 2'!$C$9=TRUE,'Input system 2'!$C$12=TRUE),'Mellemregning 2'!D90,0) -> 0 | Z8: =SUM(V8:Y8) -> 0 | AC8: ='Output system 1 og 2 - tabel'!C26 -> 1) Rentabilitet | AD8: ='Output system 1 og 2 - tabel'!D26 -> PROF | AE8: ='Output system 1 og 2 - tabel'!E26 -> 1) Samlede omkostninger | AF8: ='Output system 1 og 2 - tabel'!F26 -> 0 | AG8: ='Output system 1 og 2 - tabel'!G26 -> DKK / år | AH8: ='Output system 1 og 2 - tabel'!H26 -> 0 | AI8: ='Output system 1 og 2 - tabel'!I26 -> 0 | AK8: Profit | AL8: ='Output system 1 og 2 - tabel'!D26 -> PROF | AM8: ='Output system 1 og 2 - tabel'!E26 -> 1) Samlede omkostninger | AN8: ='Output system 1 og 2 - tabel'!F26 -> 0 | AO8: ='Output system 1 og 2 - tabel'!G26 -> DKK / år | AP8: ='Output system 1 og 2 - tabel'!H26 -> 0 | AQ8: ='Output system 1 og 2 - tabel'!I26 -> 0 | AR8: =IF(AP8=0,1,AP8) -> 1 | AS8: =IF(AQ8=0,1,AQ8) -> 1
C9: ='Input system 1'!B3 -> 0 | D9: Resten | E9: ='Input system 2'!B3 -> 0 | N9: Transport | O9: =IF(AND('Input system 1'!$E$7="Stainless steel",'Input system 1'!$C$7=TRUE),'Mellemregning 1'!D10,0) -> 0 | P9: =IF(AND('Input system 1'!$E$7="Concrete",'Input system 1'!$C$7=TRUE),'Mellemregning 1'!D38,0) -> 0 | Q9: =IF(AND('Input system 1'!$C$8=TRUE,'Input system 1'!$C$11=TRUE),'Mellemregning 1'!D62,0) -> 0 | R9: =IF(AND('Input system 1'!$C$9=TRUE,'Input system 1'!$C$12=TRUE),'Mellemregning 1'!D94) -> FALSE | S9: 0 | U9: Transport | V9: =IF(AND('Input system 2'!$E$7="Stainless steel",'Input system 2'!$C$7=TRUE),'Mellemregning 2'!D10,0) -> 0 | W9: =IF(AND('Input system 2'!$E$7="Concrete",'Input system 2'!$C$7=TRUE),'Mellemregning 2'!D38,0) -> 0 | X9: =IF(AND('Input system 2'!$C$8=TRUE,'Input system 2'!$C$11=TRUE),'Mellemregning 2'!D62,0) -> 0 | Y9: =IF(AND('Input system 2'!$C$9=TRUE,'Input system 2'!$C$12=TRUE),'Mellemregning 2'!D94) -> FALSE | Z9: 0 | AE9: ='Output system 1 og 2 - tabel'!E27 -> 2) Tilbagebetalingsperiode | AF9: ='Output system 1 og 2 - tabel'!F27 -> 0 | AG9: ='Output system 1 og 2 - tabel'!G27 -> år | AH9: ='Output system 1 og 2 - tabel'!H27 -> NA | AI9: ='Output system 1 og 2 - tabel'!I27 -> NA | AK9: Drift- og vedligeholdelsesomkostninger | AL9: ='Output system 1 og 2 - tabel'!D28 -> OX | AM9: ='Output system 1 og 2 - tabel'!E28 -> OPEX (uden øvrige omkostninger) | AN9: ='Output system 1 og 2 - tabel'!F28 -> 0 | AO9: ='Output system 1 og 2 - tabel'!G28 -> DKK / år | AP9: ='Output system 1 og 2 - tabel'!H28 -> 0 | AQ9: ='Output system 1 og 2 - tabel'!I28 -> 0 | AR9: =IF(AP9=0,1,AP9) -> 1 | AS9: =IF(AQ9=0,1,AQ9) -> 1
B10: Behandlings-effektivitet total N | C10: ='Output-Beregnede værdier 1'!D16 ->  | D10: =1-C10 ->  | E10: ='Output-Beregnede værdier 2'!D16 ->  | F10: =1-E10 ->  | I10: ='Input system 1'!B3 -> 0 | J10: ='Input system 2'!B3 -> 0 | N10: Konstruktion | O10: =IF(AND('Input system 1'!$E$7="Stainless steel",'Input system 1'!$C$7=TRUE),'Mellemregning 1'!D13,0) -> 0 | P10: =IF(AND('Input system 1'!$E$7="Concrete",'Input system 1'!$C$7=TRUE),'Mellemregning 1'!D41,0) -> 0 | Q10: =IF(AND('Input system 1'!$C$8=TRUE,'Input system 1'!$C$11=TRUE),'Mellemregning 1'!D65,0) -> 0 | R10: =IF(AND('Input system 1'!$C$9=TRUE,'Input system 1'!$C$12=TRUE),'Mellemregning 1'!D97,0) -> 0 | S10: 0 | U10: Konstruktion | V10: =IF(AND('Input system 2'!$E$7="Stainless steel",'Input system 2'!$C$7=TRUE),'Mellemregning 2'!D13,0) -> 0 | W10: =IF(AND('Input system 2'!$E$7="Concrete",'Input system 2'!$C$7=TRUE),'Mellemregning 2'!D41,0) -> 0 | X10: =IF(AND('Input system 2'!$C$8=TRUE,'Input system 2'!$C$11=TRUE),'Mellemregning 2'!D65,0) -> 0 | Y10: =IF(AND('Input system 2'!$C$9=TRUE,'Input system 2'!$C$12=TRUE),'Mellemregning 2'!D97,0) -> 0 | Z10: 0 | AC10: ='Output system 1 og 2 - tabel'!C28 -> 2) Drifts- og vedligeholdelsesomkostninger | AD10: ='Output system 1 og 2 - tabel'!D28 -> OX | AE10: ='Output system 1 og 2 - tabel'!E28 -> OPEX (uden øvrige omkostninger) | AF10: ='Output system 1 og 2 - tabel'!F28 -> 0 | AG10: ='Output system 1 og 2 - tabel'!G28 -> DKK / år | AH10: ='Output system 1 og 2 - tabel'!H28 -> 0 | AI10: ='Output system 1 og 2 - tabel'!I28 -> 0 | AK10: kapitalomkostning (Skatter og afgifter - Total) | AL10: ='Output system 1 og 2 - tabel'!D29 -> CX | AM10: ='Output system 1 og 2 - tabel'!E29 -> CAPEX | AN10: ='Output system 1 og 2 - tabel'!F29 -> 0 | AO10: ='Output system 1 og 2 - tabel'!G29 -> DKK / år | AP10: ='Output system 1 og 2 - tabel'!H29 -> 0 | AQ10: ='Output system 1 og 2 - tabel'!I29 -> 0 | AR10: 1 | AS10: 1
B11: Behandlings-effektivitet total P | C11: ='Output-Beregnede værdier 1'!E16 ->  | D11: =1-C11 ->  | E11: ='Output-Beregnede værdier 2'!E16 ->  | H11: [ton CO2-ækv./år] | I11: ='Output-Beregnede værdier 1'!C16/1000 -> 0 | J11: ='Output-Beregnede værdier 2'!C16/1000 -> 0 | N11: Drift | O11: =IF(AND('Input system 1'!$E$7="Stainless steel",'Input system 1'!$C$7=TRUE),'Mellemregning 1'!D14,"0") -> 0 | P11: =IF(AND('Input system 1'!$E$7="Concrete",'Input system 1'!$C$7=TRUE),'Mellemregning 1'!D42,0) -> 0 | Q11: =IF(AND('Input system 1'!$C$8=TRUE,'Input system 1'!$C$11=TRUE),'Mellemregning 1'!D66,0) -> 0 | R11: =IF(AND('Input system 1'!$C$9=TRUE,'Input system 1'!$C$12=TRUE),'Mellemregning 1'!D99,0) -> 0 | S11: 0 | U11: Drift | V11: =IF(AND('Input system 2'!$E$7="Stainless steel",'Input system 2'!$C$7=TRUE),'Mellemregning 2'!D14,"0") -> 0 | W11: =IF(AND('Input system 2'!$E$7="Concrete",'Input system 2'!$C$7=TRUE),'Mellemregning 2'!D42,0) -> 0 | X11: =IF(AND('Input system 2'!$C$8=TRUE,'Input system 2'!$C$11=TRUE),'Mellemregning 2'!D66,0) -> 0 | Y11: =IF(AND('Input system 2'!$C$9=TRUE,'Input system 2'!$C$12=TRUE),'Mellemregning 2'!D99,0) -> 0 | Z11: 0 | AC11: ='Output system 1 og 2 - tabel'!C29 -> 3) Kapitalomkostninger | AD11: ='Output system 1 og 2 - tabel'!D29 -> CX | AE11: ='Output system 1 og 2 - tabel'!E29 -> CAPEX | AF11: ='Output system 1 og 2 - tabel'!F29 -> 0 | AG11: ='Output system 1 og 2 - tabel'!G29 -> DKK / år | AH11: ='Output system 1 og 2 - tabel'!H29 -> 0 | AI11: ='Output system 1 og 2 - tabel'!I29 -> 0 | AK11: Indtjening | AL11: ='Output system 1 og 2 - tabel'!D30 -> INC | AM11: ='Output system 1 og 2 - tabel'!E30 -> Indtægter | AN11: ='Output system 1 og 2 - tabel'!F30 -> 0 | AO11: ='Output system 1 og 2 - tabel'!G30 -> DKK / år | AP11: ='Output system 1 og 2 - tabel'!H30 -> 0 | AQ11: ='Output system 1 og 2 - tabel'!I30 -> 0 | AR11: 1 | AS11: 1
B12: Behandlings-effektivitet COD | C12: ='Output-Beregnede værdier 1'!F16 ->  | E12: ='Output-Beregnede værdier 2'!F16 ->  | H12: [kg N-ækv./år] | I12: ='Output-Beregnede værdier 1'!G16 -> 0 | J12: ='Output-Beregnede værdier 2'!G16 -> 0 | N12: Bortskaffelse/Nedrivning | O12: =IF(AND('Input system 1'!$E$7="Stainless steel",'Input system 1'!$C$7=TRUE),'Mellemregning 1'!D15,0) -> 0 | P12: =IF(AND('Input system 1'!$E$7="Concrete",'Input system 1'!$C$7=TRUE),'Mellemregning 1'!D43,0) -> 0 | Q12: =IF(AND('Input system 1'!$C$8=TRUE,'Input system 1'!$C$11=TRUE),'Mellemregning 1'!D67,0) -> 0 | R12: =IF(AND('Input system 1'!$C$9=TRUE,'Input system 1'!$C$12=TRUE),'Mellemregning 1'!D100,0) -> 0 | S12: 0 | U12: Bortskaffelse/Nedrivning | V12: =IF(AND('Input system 2'!$E$7="Stainless steel",'Input system 2'!$C$7=TRUE),'Mellemregning 2'!D15,0) -> 0 | W12: =IF(AND('Input system 2'!$E$7="Concrete",'Input system 2'!$C$7=TRUE),'Mellemregning 2'!D43,0) -> 0 | X12: =IF(AND('Input system 2'!$C$8=TRUE,'Input system 2'!$C$11=TRUE),'Mellemregning 2'!D67,0) -> 0 | Y12: =IF(AND('Input system 2'!$C$9=TRUE,'Input system 2'!$C$12=TRUE),'Mellemregning 2'!D100,0) -> 0 | Z12: 0 | AC12: ='Output system 1 og 2 - tabel'!C30 -> 4) Omsætning | AD12: ='Output system 1 og 2 - tabel'!D30 -> INC | AE12: ='Output system 1 og 2 - tabel'!E30 -> Indtægter | AF12: ='Output system 1 og 2 - tabel'!F30 -> 0 | AG12: ='Output system 1 og 2 - tabel'!G30 -> DKK / år | AH12: ='Output system 1 og 2 - tabel'!H30 -> 0 | AI12: ='Output system 1 og 2 - tabel'!I30 -> 0 | AK12: Andre omkostninger | AL12: ='Output system 1 og 2 - tabel'!D31 -> OTC | AM12: Taxes Total | AN12: ='Output system 1 og 2 - tabel'!F31 -> 0 | AO12: ='Output system 1 og 2 - tabel'!G31 -> DKK / år | AP12: =SUM(AH13:AH16) -> 0 | AQ12: =SUM(AI13:AI16) -> 0 | AR12: 1 | AS12: 1
B13: P gen-indvundet | C13: ='Output-Beregnede værdier 1'!K16 ->  | E13: ='Output-Beregnede værdier 2'!K16 ->  | H13: [kg P-ækv./år] | I13: ='Output-Beregnede værdier 1'!H16 -> 0 | J13: ='Output-Beregnede værdier 2'!H16 -> 0 | N13: Netto påvirkning | O13: =IF(AND('Input system 1'!$E$7="Stainless steel",'Input system 1'!$C$7=TRUE),'Mellemregning 1'!D30,0) -> 0 | P13: =IF(AND('Input system 1'!$E$7="Concrete",'Input system 1'!$C$7=TRUE),'Mellemregning 1'!D54,0) -> 0 | Q13: =IF(AND('Input system 1'!$C$8=TRUE,'Input system 1'!$C$11=TRUE),'Mellemregning 1'!D87,0) -> 0 | R13: =IF(AND('Input system 1'!$C$9=TRUE,'Input system 1'!$C$12=TRUE),'Mellemregning 1'!D108,0) -> 0 | S13: 0 | U13: Netto påvirkning | V13: =IF(AND('Input system 2'!$E$7="Stainless steel",'Input system 2'!$C$7=TRUE),'Mellemregning 2'!D30,0) -> 0 | W13: =IF(AND('Input system 2'!$E$7="Concrete",'Input system 2'!$C$7=TRUE),'Mellemregning 2'!D54,0) -> 0 | X13: =IF(AND('Input system 2'!$C$8=TRUE,'Input system 2'!$C$11=TRUE),'Mellemregning 2'!D87,0) -> 0 | Y13: =IF(AND('Input system 2'!$C$9=TRUE,'Input system 2'!$C$12=TRUE),'Mellemregning 2'!D108,0) -> 0 | Z13: 0 | AC13: ='Output system 1 og 2 - tabel'!C31 -> 5) Øvrige omkostninger | AD13: ='Output system 1 og 2 - tabel'!D31 -> OTC | AE13: ='Output system 1 og 2 - tabel'!E31 -> 1) Afgifter: Udledning | AF13: ='Output system 1 og 2 - tabel'!F31 -> 0 | AG13: ='Output system 1 og 2 - tabel'!G31 -> DKK / år | AH13: ='Output system 1 og 2 - tabel'!H31 -> 0 | AI13: ='Output system 1 og 2 - tabel'!I31 -> 0 | AK13: Andre potentielle ekstra økonomiske værdier | AL13: ='Output system 1 og 2 - tabel'!D35 -> OTV | AM13: ='Output system 1 og 2 - tabel'!E35 -> 1) Potentiale for extern finansiering og tilskud | AN13: ='Output system 1 og 2 - tabel'!F35 -> 0 | AO13: ='Output system 1 og 2 - tabel'!G35 -> # af ansøgninger | AP13: ='Output system 1 og 2 - tabel'!H35 -> 0 | AQ13: ='Output system 1 og 2 - tabel'!I35 -> 0
B14: N gen-indvundet | C14: ='Output-Beregnede værdier 1'!L16 ->  | E14: ='Output-Beregnede værdier 2'!L16 ->  | H14: Areal Fodaftryk [m2] | I14: ='Output-Beregnede værdier 1'!S16 -> 0 | J14: ='Output-Beregnede værdier 2'!S16 -> 0 | AE14: ='Output system 1 og 2 - tabel'!E32 -> 2) Afgifter: Deponering | AF14: ='Output system 1 og 2 - tabel'!F32 -> 0 | AG14: ='Output system 1 og 2 - tabel'!G32 -> DKK / år | AH14: ='Output system 1 og 2 - tabel'!H32 -> 0 | AI14: ='Output system 1 og 2 - tabel'!I32 -> 0 | AK14: ='Output system 1 og 2 - tabel'!C36 -> 0 | AL14: ='Output system 1 og 2 - tabel'!D36 -> 0 | AM14: ='Output system 1 og 2 - tabel'!E36 -> 2) Servicediversificeringspotentiale | AN14: ='Output system 1 og 2 - tabel'!F36 -> 0 | AO14: ='Output system 1 og 2 - tabel'!G36 -> # af yderligere tjenester | AP14: ='Output system 1 og 2 - tabel'!H36 -> 0 | AQ14: ='Output system 1 og 2 - tabel'!I36 -> 0
B15: C gen-indvundet | C15: ='Output-Beregnede værdier 1'!M16 ->  | E15: ='Output-Beregnede værdier 2'!M16 ->  | H15: Støjforurening [dB] | I15: ='Output-Beregnede værdier 1'!R16 -> 16.02059991 | J15: ='Output-Beregnede værdier 2'!R16 -> 16.02059991 | O15: Slamlagertank: Rustfri stål | P15: Slamlagertank: Beton | Q15: Forfiltrering: Salsnes filter | R15: Forklaringstank | S15: Total netto Klimapåvirkning: System 1 | V15: Slamlagertank: Rustfri stål | W15: Slamlagertank: Beton | X15: Forfiltrering: Salsnes filter | Y15: Forklaringstank | Z15: Total netto Klimapåvirkning: System 2 | AA15: . | AE15: ='Output system 1 og 2 - tabel'!E33 -> 3) Afgifter: Forbrænding | AF15: ='Output system 1 og 2 - tabel'!F33 -> 0 | AG15: ='Output system 1 og 2 - tabel'!G33 -> DKK / år | AH15: ='Output system 1 og 2 - tabel'!H33 -> 0 | AI15: ='Output system 1 og 2 - tabel'!I33 -> 0
N16: Materialegenerering | O16: =O8*$P$26 -> 0 | P16: =P8*$P$26 -> 0 | Q16: 0 | R16: 0 | S16: 0 | U16: Materialegenerering | V16: =V8*$P$26 -> 0 | W16: 0 | X16: 0 | Y16: 0 | Z16: =Z8*$P$26 -> 0 | AE16: ='Output system 1 og 2 - tabel'!E34 -> 4) Afgiter: Kulstofafgift | AF16: ='Output system 1 og 2 - tabel'!F34 -> 0 | AG16: ='Output system 1 og 2 - tabel'!G34 -> DKK / år | AH16: ='Output system 1 og 2 - tabel'!H34 -> 0 | AI16: ='Output system 1 og 2 - tabel'!I34 -> 0
N17: Transport | O17: =O9*$P$26 -> 0 | P17: 0 | Q17: 0 | R17: 0 | S17: 0 | U17: Transport | V17: 0 | W17: 0 | X17: 0 | Y17: 0 | Z17: =Z9*$P$26 -> 0 | AC17: ='Output system 1 og 2 - tabel'!C35 -> 6) Øvrige potentielle økonomikse merværdier | AD17: ='Output system 1 og 2 - tabel'!D35 -> OTV | AE17: ='Output system 1 og 2 - tabel'!E35 -> 1) Potentiale for extern finansiering og tilskud | AF17: ='Output system 1 og 2 - tabel'!F35 -> 0 | AG17: ='Output system 1 og 2 - tabel'!G35 -> # af ansøgninger | AH17: ='Output system 1 og 2 - tabel'!H35 -> 0 | AI17: ='Output system 1 og 2 - tabel'!I35 -> 0
N18: Konstruktion | O18: 0 | P18: 0 | Q18: 0 | R18: 0 | S18: 0 | U18: Konstruktion | V18: 0 | W18: 0 | X18: 0 | Y18: 0 | Z18: 0 | AE18: ='Output system 1 og 2 - tabel'!E36 -> 2) Servicediversificeringspotentiale | AF18: ='Output system 1 og 2 - tabel'!F36 -> 0 | AG18: ='Output system 1 og 2 - tabel'!G36 -> # af yderligere tjenester | AH18: ='Output system 1 og 2 - tabel'!H36 -> 0 | AI18: ='Output system 1 og 2 - tabel'!I36 -> 0
B19: =C9 -> 0 | D19: =E9 -> 0 | N19: Drift | O19: 0 | P19: 0 | Q19: 0 | R19: 0 | S19: 0 | U19: Drift | V19: 0 | W19: 0 | X19: 0 | Y19: 0 | Z19: 0
N20: Bortskaffelse/Nedrivning | O20: 0 | P20: 0 | Q20: 0 | R20: 0 | S20: 0 | U20: Bortskaffelse/Nedrivning | V20: 0 | W20: 0 | X20: 0 | Y20: 0 | Z20: 0 | AD20: Navn til drop-down for valg af output i Output Figurer
N21: Netto påvirkning | O21: 0 | P21: 0 | Q21: 0 | R21: 0 | S21: 0 | U21: Netto påvirkning | V21: 0 | W21: 0 | X21: 0 | Y21: 0 | Z21: 0 | AD21: ='Input system 1'!B3 -> 0
AD22: ='Input system 2'!B3 -> 0
T23: Navn til drop-down for valg af output i Output Figurer | AD23: Begge Systemer
T24: ='Input system 1'!B3 -> 0
O25: Regnefaktor | T25: ='Input system 2'!B3 -> 0
O26: Fra kg til ton | P26: =1/1000 -> 0.001 | Q26: ton/kg | T26: Begge Systemer
O27: Fra decimal til % | P27: 100

Sheet Output Figurer
B1: Resultater - Figurer
B3: Klimapåvirkning | P3: Økonomisk påvirkning
E7: Function showing the right figure | I7: 3
R8: Function showing the right figure | V8: 2
B21: Miljøpåvirkninger
B25: ='Input system 1'!B3 -> 0 | E25: ='Input system 2'!B3 -> 0 | I25: ='Input system 1'!B3 -> 0 | L25: ='Input system 2'!B3 -> 0

Sheet Drop-down lister (hidden)
B1: https://support.microsoft.com/en-us/office/create-a-drop-down-list-7693307a-59ef-400a-b769-c5402dce407b
A2: Lås celler | B2: https://www.youtube.com/watch?v=VMaoPtVcPhk
B4: Drop-down lister
L5: PVF*: Service diversificering
B6: Materiale valg | D6: Scores | K6: y-akse - scores | M6: # af potentiel øget services sammenlignet med baseline (konventionel behandling)
B7: Beton | D7: 0 | E7: Ubetydelig | K7: =(L7/4) -> 0 | L7: 0 | M7: 0
B8: Rustfri stål | D8: 0.5 | E8: Lidt væsentlig | K8: =(L8/4) -> 0.5 | L8: 2 | M8: 1
D9: 1 | E9: Meget væsentlig | K9: 0.75 | L9: 3 | M9: 3
B10: Bortskaffelsesmuligheder | E10: LikertScaleExamplesforSurveys.pdf (iastate.edu) | K10: 1 | L10: 4 | M10: 9
B11: Genanvendelse | C11: Genanvendelse | D11: Scores | E11: Andre emissioner til luft end drivhusgasser
B12: Forbrænding | C12: Deponering | D12: 1 | E12: Ikke sandsynligt
B13: Deponering | C13: Ingen | D13: 0.5 | E13: Noget sandsynligt
B14: Ingen | D14: 0 | E14: Meget sandsynligt | L14: PVF*: Service diversificering
L15: Scores | M15: # af potentiel øget services sammenlignet med baseline (konventionel behandling)
B16: Type modtager | L16: 0 | M16: 0
B17: Marin | L17: 2 | M17: 1
B18: Ferskvand | L18: 3 | M18: 3
L19: 4 | M19: 9
B20: Ja
B21: Nej | L21: *Partial Value Function
B24: Scores | C24: Markedspotentiale indikator
B25: 1 | C25: Høj | D25: 1
B26: 0.7 | C26: Moderat | D26: 2
B27: 0.3 | C27: Lav | D27: 3
B28: 0 | C28: Ingen | D28: 4
B31: Scores | C31: Risiko for ulykker
B32: 1 | C32: Ingen | D32: 1
B33: 0.7 | C33: Lav | D33: 2
B34: 0.3 | C34: Moderat | D34: 3
B35: 0 | C35: Høj | D35: 4
B38: Skala | C38: Lugtgene potentialer | D38: Scores | E38: Mathematically formulated key performance indicators for design and evaluation of treatment trains for resource recovery from urban wastewater - ScienceDirect
B39: 1 | C39: 1.Fysisk proces | D39: 1 | E39: =(B39-MIN($B$39:$B$42))/(MAX($B$39:$B$42)-MIN($B$39:$B$42)) -> 0 | F39: 0 | G39: 1
B40: 2 | C40: 2.Kemisk proces | D40: 0.3 | E40: =(B40-MIN($B$39:$B$42))/(MAX($B$39:$B$42)-MIN($B$39:$B$42)) -> 0.3333333333 | F40: 0.3333333333 | G40: 0.3
B41: 3 | C41: 3.Biologisk proces | D41: 0.7 | E41: 0.6666666667 | F41: 0.6666666667 | G41: 0.7
B42: 4 | C42: 4.Thermisk proces | D42: 0 | E42: 1 | F42: 1 | G42: 0
C43: Baseret på Maria O.van Schaik 2021, men uden at linke det til COD
C52: Støj Niveau
C53: Noise Levels from Different Sources | The Geography of Transport Systems (transportgeography.org)
B54: Svagt | C54: 0 | D54: =1-$C$54/$C$66 -> 1
B55: Svagt | C55: 10 | D55: =1-C55/$C$66 -> 0.9166666667
B56: Svagt | C56: 20 | D56: =1-C56/$C$66 -> 0.8333333333
B57: Svagt | C57: 30 | D57: 0.75
B58: Svagt | C58: 40 | D58: 0.6666666667
B59: Moderate | C59: 50 | D59: =1-C59/$C$66 -> 0.5833333333
C60: 60 | D60: 0.5
B61: Højt | C61: 70 | D61: 0.4166666667
B62: Meget højt | C62: 80 | D62: 0.3333333333
C63: 90 | D63: 0.25
C64: 100 | D64: 0.1666666667
B65: Ekstremt højt | C65: 110 | D65: 0.08333333333
C66: 120 | D66: 0
B68: LN | C68: 10 | D68: 0 | E68: 63 | F68: =E68+D68+C68 -> 73 | G68: =F68/3 -> 24.33333333
C69: =10^(C68/10) -> 10 | D69: =10^(D68/10) -> 1 | E69: =10^(E68/10) -> 1995262.315
B70: Sum | C70: =SUM(C69:E69) -> 1995273.315
C71: =10*LOG(10*C70) -> 73.00002394
C73: Mathematically formulated key performance indicators for design and evaluation of treatment trains for resource recovery from urban wastewater | Elsevier Enhanced Reader
C75: 10
C76: 0
C77: 63

Sheet Prioriteringsliste -indikatorer (hidden)
B2: Prioritetsliste | C2: Default | D2: Scorer | E2: Bruger input
B4: Miljø | C4: 1 | D4: =1/C4/4 -> 0.25 | G4: Kan vi prioritere indikatorer baseret på stakeholdergruppernes præference?
B5: Økonomi | C5: 3 | D5: =1/C5/4 -> 0.08333333333
B6: Samfund | C6: 2 | D6: 0.125
B7: Teknsike aspekter | C7: 4 | D7: 0.0625

Sheet Værdier - Påvirkningskategorier (hidden)
B1: Denne side er som udgangspunkt ikke oversat til dansk, da navnene er engelske, og kan være vigtige at have i original form for at efterse dataens oprindelse.
B3: Steel recycling- EASETECH | C3: ILCD2011, Climate change w/o LT; midpoint; GWP100; IPPC2007 | D3: IPCC 2013, climate change, GWP 100a with LT_no ccfb | E3: ILCD2011, Ozone depletion w/o LT, ODP w/o LT | F3: ILCD2011, Human toxicity, cancer effects, w/o LT, USEtox | G3: ILCD2011, Human toxicity, non-cancer effects w/o LT, USEtox | H3: ILCD2011, Particulate matter w/o LT, from Humbert 2009, PM | I3: ILCD2011, Ionising radiation human health w/o LT, IRP100 w/o LT, ReCiPe 1.05 midpoint (H) | J3: ILCD2011, Photochemical ozone formation, human health w/o LT, POCP | K3: ILCD2011, Terrestrial acidification, Accumulated Exceedance | L3: ILCD2011, Eutrophication Terrestrial, Accumulated Exceedance | M3: ILCD2011, Eutrophication Freshwater, FEP ReCiPe 1.05 midpoint (H) | N3: ILCD2011, Eutrophication Marine w/o LT, ReCiPe2008 1.05 | O3: ILCD2011, Ecotoxicity freshwater w/o LT, USEtox | P3: CML 2001, Depletion of abiotic resources, fossil - updated 2016 | Q3: CML 2001, Depletion of abiotic resources, elements (reserve base) - updated 2016 | R3: CML 2001, Depletion of abiotic resources, elements (ultimate reserve) - updated 2016 | S3: CML 2001, Depletion of abiotic resources, elements (economic reserve) - updated 2016 | T3: RD, reserve base, P-only | U3: Net Economic Value Added | V3: ReCiPe2016 - Marine eutrophication - midpoint_without LT_H_Data from Anders | W3: ReCiPe2016 - Freshwater eutrophication - midpoint_with LT_data from Anders
B4: Enhed | C4: kg CO2-ækv. | D4: kg CO2-ækv. | E4: kg CFC-11 ækv. | F4: CTUh | G4: CTUh | H4: kgPM2.5-ækv. | I4: kBq U235 ækv. | J4: kg NMVOC | K4: mol H+ ækv. | L4: mol N ækv. | M4: kg P ækv. | N4: kg N ækv. | O4: CTUe | P4: MJ | Q4: kg antimony-ækv. | R4: kg antimony-ækv. | S4: kg antimony-ækv. | T4: kg Antimony | U4: EUR | V4: kg N ækv. | W4: kg P ækv.
B5: Sum | C5: 0.1076695555 | D5: 0.1212442896 | E5: 4.157941163e-09 | F5: 2.853667747e-08 | G5: 3.885689005e-06 | H5: 0.0001851495494 | I5: 0.00453763178 | J5: 0.0005738746478 | K5: 0.0005197957589 | L5: 0.001887207926 | M5: 1.844227999e-06 | N5: 0.0001630003554 | O5: 0.6060747813 | P5: 1.293961374 | Q5: 1.398505628e-06 | R5: 1.290438133e-07 | S5: 3.463501969e-06 | T5: 1.949322956e-11 | U5: 0 | V5: 0.000162190543 | W5: 1.838433392e-06
B6: Marginal Electricity Process | C6: 0.1076695555 | D6: 0.1119007696 | E6: 4.157941163e-09 | F6: 8.725400651e-10 | G6: 3.848822114e-09 | H6: 1.41947394e-05 | I6: 0.00453763178 | J6: 0.0002818805478 | K6: 0.0002857257589 | L6: 0.001120407926 | M6: 1.844227999e-06 | N6: 9.298035542e-05 | O6: 0.01562125224 | P6: 1.293961374 | Q6: 1.398505628e-06 | R6: 1.290438133e-07 | S6: 3.463501969e-06 | T6: 1.949322956e-11 | U6: 0 | V6: 9.217054297e-05 | W6: 1.838433392e-06
B7: Process-specifikke emissioner | C7: 0 | D7: 0.00934352 | E7: 0 | F7: 2.76641374e-08 | G7: 3.881840183e-06 | H7: 0.00017095481 | I7: 0 | J7: 0.0002919941 | K7: 0.00023407 | L7: 0.0007668 | M7: 0 | N7: 7.002e-05 | O7: 0.5904535291 | P7: 0 | Q7: 0 | R7: 0 | S7: 0 | T7: 0 | U7: 0 | V7: 7.002e-05 | W7: 0
B8: Input-specifikke emissioner | C8: 0 | D8: 0 | E8: 0 | F8: 0 | G8: 0 | H8: 0 | I8: 0 | J8: 0 | K8: 0 | L8: 0 | M8: 0 | N8: 0 | O8: 0 | P8: 0 | Q8: 0 | R8: 0 | S8: 0 | T8: 0 | U8: 0 | V8: 0 | W8: 0
B10: Landfill of ferro metals, incl. leachate treatment, 2006, EU-27, ELCD
B11: Navn | C11: ILCD2011, Climate change w/o LT; midpoint; GWP100; IPPC2007 | D11: IPCC 2013, climate change, GWP 100a with LT_no ccfb | E11: ILCD2011, Ozone depletion w/o LT, ODP w/o LT | F11: ILCD2011, Human toxicity, cancer effects, w/o LT, USEtox | G11: ILCD2011, Human toxicity, non-cancer effects w/o LT, USEtox | H11: ILCD2011, Particulate matter w/o LT, from Humbert 2009, PM | I11: ILCD2011, Ionising radiation human health w/o LT, IRP100 w/o LT, ReCiPe 1.05 midpoint (H) | J11: ILCD2011, Photochemical ozone formation, human health w/o LT, POCP | K11: ILCD2011, Terrestrial acidification, Accumulated Exceedance | L11: ILCD2011, Eutrophication Terrestrial, Accumulated Exceedance | M11: ILCD2011, Eutrophication Freshwater, FEP ReCiPe 1.05 midpoint (H) | N11: ILCD2011, Eutrophication Marine w/o LT, ReCiPe2008 1.05 | O11: ILCD2011, Ecotoxicity freshwater w/o LT, USEtox | P11: CML 2001, Depletion of abiotic resources, fossil - updated 2016 | Q11: CML 2001, Depletion of abiotic resources, elements (reserve base) - updated 2016 | R11: CML 2001, Depletion of abiotic resources, elements (ultimate reserve) - updated 2016 | S11: CML 2001, Depletion of abiotic resources, elements (economic reserve) - updated 2016 | T11: RD, reserve base, P-only | U11: Net Economic Value Added | V11: ReCiPe2016 - Marine eutrophication - midpoint_without LT_H_Data from Anders | W11: ReCiPe2016 - Freshwater eutrophication - midpoint_with LT_data from Anders
B12: Enhed | C12: kg CO2-ækv. | D12: kg CO2-ækv. | E12: kg CFC-11 ækv. | F12: CTUh | G12: CTUh | H12: kgPM2.5-ækv. | I12: kBq U235 ækv. | J12: kg NMVOC | K12: mol H+ ækv. | L12: mol N ækv. | M12: kg P ækv. | N12: kg N ækv. | O12: CTUe | P12: MJ | Q12: kg antimony-ækv. | R12: kg antimony-ækv. | S12: kg antimony-ækv. | T12: kg Antimony | U12: EUR | V12: kg N ækv. | W12: kg P ækv.
B13: Sum | C13: 0.0144828311 | D13: 0.01527465545 | E13: 3.09920505e-10 | F13: 3.530181997e-09 | G13: 2.688592183e-09 | H13: 1.094911831e-05 | I13: 0.0003749213803 | J13: 7.039601474e-05 | K13: 6.463824379e-05 | L13: 0.0002554706715 | M13: 4.33929144e-08 | N13: 4.367479675e-05 | O13: 0.1456793663 | P13: 0.1589163505 | Q13: 3.149416286e-09 | R13: 7.04299803e-10 | S13: 4.226384805e-09 | T13: 8.29984234e-17 | U13: 0 | V13: 2.933249856e-05 | W13: 2.7900444e-09
B14: Landfill of ferro metals, incl. leachate treatment, 2006, EU-27, ELCD | C14: 0.0144828311 | D14: 0.01527465545 | E14: 3.09920505e-10 | F14: 3.530181997e-09 | G14: 2.688592183e-09 | H14: 1.094911831e-05 | I14: 0.0003749213803 | J14: 7.039601474e-05 | K14: 6.463824379e-05 | L14: 0.0002554706715 | M14: 4.33929144e-08 | N14: 4.367479675e-05 | O14: 0.1456793663 | P14: 0.1589163505 | Q14: 3.149416286e-09 | R14: 7.04299803e-10 | S14: 4.226384805e-09 | T14: 8.29984234e-17 | U14: 0 | V14: 2.933249856e-05 | W14: 2.7900444e-09
B15: Process-specifikke emissioner | C15: 0 | D15: 0 | E15: 0 | F15: 0 | G15: 0 | H15: 0 | I15: 0 | J15: 0 | K15: 0 | L15: 0 | M15: 0 | N15: 0 | O15: 0 | P15: 0 | Q15: 0 | R15: 0 | S15: 0 | T15: 0 | U15: 0 | V15: 0 | W15: 0
B16: Input-specifikke emissioner | C16: 0 | D16: 0 | E16: 0 | F16: 0 | G16: 0 | H16: 0 | I16: 0 | J16: 0 | K16: 0 | L16: 0 | M16: 0 | N16: 0 | O16: 0 | P16: 0 | Q16: 0 | R16: 0 | S16: 0 | T16: 0 | U16: 0 | V16: 0 | W16: 0
B19: Substitution steel recycling | C19: ILCD2011, Climate change w/o LT; midpoint; GWP100; IPPC2007 | D19: IPCC 2013, climate change, GWP 100a with LT_no ccfb | E19: ILCD2011, Ozone depletion w/o LT, ODP w/o LT | F19: ILCD2011, Human toxicity, cancer effects, w/o LT, USEtox | G19: ILCD2011, Human toxicity, non-cancer effects w/o LT, USEtox | H19: ILCD2011, Particulate matter w/o LT, from Humbert 2009, PM | I19: ILCD2011, Ionising radiation human health w/o LT, IRP100 w/o LT, ReCiPe 1.05 midpoint (H) | J19: ILCD2011, Photochemical ozone formation, human health w/o LT, POCP | K19: ILCD2011, Terrestrial acidification, Accumulated Exceedance | L19: ILCD2011, Eutrophication Terrestrial, Accumulated Exceedance | M19: ILCD2011, Eutrophication Freshwater, FEP ReCiPe 1.05 midpoint (H) | N19: ILCD2011, Eutrophication Marine w/o LT, ReCiPe2008 1.05 | O19: ILCD2011, Ecotoxicity freshwater w/o LT, USEtox | P19: CML 2001, Depletion of abiotic resources, fossil - updated 2016 | Q19: CML 2001, Depletion of abiotic resources, elements (reserve base) - updated 2016 | R19: CML 2001, Depletion of abiotic resources, elements (ultimate reserve) - updated 2016 | S19: CML 2001, Depletion of abiotic resources, elements (economic reserve) - updated 2016 | T19: RD, reserve base, P-only | U19: Net Economic Value Added | V19: ReCiPe2016 - Marine eutrophication - midpoint_without LT_H_Data from Anders | W19: ReCiPe2016 - Freshwater eutrophication - midpoint_with LT_data from Anders
B20: Unit | C20: kg CO2-ækv. | D20: kg CO2-ækv. | E20: kg CFC-11 ækv. | F20: CTUh | G20: CTUh | H20: kgPM2.5-ækv. | I20: kBq U235 ækv. | J20: kg NMVOC | K20: mol H+ ækv. | L20: mol N ækv. | M20: kg P ækv. | N20: kg N ækv. | O20: CTUe | P20: MJ | Q20: kg antimony-ækv. | R20: kg antimony-ækv. | S20: kg antimony-ækv. | T20: kg Antimony | U20: EUR | V20: kg N ækv. | W20: kg P ækv.
B21: Sum | C21: -2.161027128 | D21: -2.299313633 | E21: -1.063811828e-07 | F21: -3.16303033e-07 | G21: -7.632796667e-07 | H21: -0.002221327319 | I21: -0.04650465023 | J21: -0.008820260793 | K21: -0.009091721641 | L21: -0.02048182598 | M21: -9.246256741e-05 | N21: -0.001980984769 | O21: -4.19081017 | P21: -24.98451568 | Q21: -2.126384446e-07 | R21: -5.086636388e-09 | S21: -1.549909222e-07 | T21: -3.386156073e-09 | U21: 0 | V21: -0.00181185586 | W21: -9.168307315e-05
B22: Steel Sheets (97.75% primary), Sweden, 2008 | C22: 0 | D22: 0 | E22: 0 | F22: 0 | G22: 0 | H22: 0 | I22: 0 | J22: 0 | K22: 0 | L22: 0 | M22: 0 | N22: 0 | O22: 0 | P22: 0 | Q22: 0 | R22: 0 | S22: 0 | T22: 0 | U22: 0 | V22: 0 | W22: 0
B23: steel production, chromium steel 18/8, hot rolled | C23: 0 | D23: 0 | E23: 0 | F23: 0 | G23: 0 | H23: 0 | I23: 0 | J23: 0 | K23: 0 | L23: 0 | M23: 0 | N23: 0 | O23: 0 | P23: 0 | Q23: 0 | R23: 0 | S23: 0 | T23: 0 | U23: 0 | V23: 0 | W23: 0
B24: steel production, chromium steel 18/8, hot rolled; RER-THESIS | C24: 0 | D24: 0 | E24: 0 | F24: 0 | G24: 0 | H24: 0 | I24: 0 | J24: 0 | K24: 0 | L24: 0 | M24: 0 | N24: 0 | O24: 0 | P24: 0 | Q24: 0 | R24: 0 | S24: 0 | T24: 0 | U24: 0 | V24: 0 | W24: 0
B25: steel, chromium steel 18/8, hot rolled,steel production, chromium steel 18/8, hot rolled,RER - Imported copy | C25: 0 | D25: 0 | E25: 0 | F25: 0 | G25: 0 | H25: 0 | I25: 0 | J25: 0 | K25: 0 | L25: 0 | M25: 0 | N25: 0 | O25: 0 | P25: 0 | Q25: 0 | R25: 0 | S25: 0 | T25: 0 | U25: 0 | V25: 0 | W25: 0
B26: reinforcing steel,reinforcing steel production,RER | C26: -2.161027128 | D26: -2.299313633 | E26: -1.063811828e-07 | F26: -3.16303033e-07 | G26: -7.632796667e-07 | H26: -0.002221327319 | I26: -0.04650465023 | J26: -0.008820260793 | K26: -0.009091721641 | L26: -0.02048182598 | M26: -9.246256741e-05 | N26: -0.001980984769 | O26: -4.19081017 | P26: -24.98451568 | Q26: -2.126384446e-07 | R26: -5.086636388e-09 | S26: -1.549909222e-07 | T26: -3.386156073e-09 | U26: 0 | V26: -0.00181185586 | W26: -9.168307315e-05
B27: Process-specifikke emissioner | C27: 0 | D27: 0 | E27: 0 | F27: 0 | G27: 0 | H27: 0 | I27: 0 | J27: 0 | K27: 0 | L27: 0 | M27: 0 | N27: 0 | O27: 0 | P27: 0 | Q27: 0 | R27: 0 | S27: 0 | T27: 0 | U27: 0 | V27: 0 | W27: 0
B28: Input-specifikke emissioner | C28: 0 | D28: 0 | E28: 0 | F28: 0 | G28: 0 | H28: 0 | I28: 0 | J28: 0 | K28: 0 | L28: 0 | M28: 0 | N28: 0 | O28: 0 | P28: 0 | Q28: 0 | R28: 0 | S28: 0 | T28: 0 | U28: 0 | V28: 0 | W28: 0
B30: Navn | C30: ILCD2011, Climate change w/o LT; midpoint; GWP100; IPPC2007 | D30: IPCC 2013, climate change, GWP 100a with LT_no ccfb | E30: ILCD2011, Ozone depletion w/o LT, ODP w/o LT | F30: ILCD2011, Human toxicity, cancer effects, w/o LT, USEtox | G30: ILCD2011, Human toxicity, non-cancer effects w/o LT, USEtox | H30: ILCD2011, Particulate matter w/o LT, from Humbert 2009, PM | I30: ILCD2011, Ionising radiation human health w/o LT, IRP100 w/o LT, ReCiPe 1.05 midpoint (H) | J30: ILCD2011, Photochemical ozone formation, human health w/o LT, POCP | K30: ILCD2011, Terrestrial acidification, Accumulated Exceedance | L30: ILCD2011, Eutrophication Terrestrial, Accumulated Exceedance | M30: ILCD2011, Eutrophication Freshwater, FEP ReCiPe 1.05 midpoint (H) | N30: ILCD2011, Eutrophication Marine w/o LT, ReCiPe2008 1.05 | O30: ILCD2011, Ecotoxicity freshwater w/o LT, USEtox | P30: CML 2001, Depletion of abiotic resources, fossil - updated 2016 | Q30: CML 2001, Depletion of abiotic resources, elements (reserve base) - updated 2016 | R30: CML 2001, Depletion of abiotic resources, elements (ultimate reserve) - updated 2016 | S30: CML 2001, Depletion of abiotic resources, elements (economic reserve) - updated 2016 | T30: RD, reserve base, P-only | U30: Net Economic Value Added | V30: ReCiPe2016 - Marine eutrophication - midpoint_without LT_H_Data from Anders | W30: ReCiPe2016 - Freshwater eutrophication - midpoint_with LT_data from Anders
B31: Enhed | C31: kg CO2-ækv. | D31: kg CO2-ækv. | E31: kg CFC-11 ækv. | F31: CTUh | G31: CTUh | H31: kgPM2.5-ækv. | I31: kBq U235 ækv. | J31: kg NMVOC | K31: mol H+ ækv. | L31: mol N ækv. | M31: kg P ækv. | N31: kg N ækv. | O31: CTUe | P31: MJ | Q31: kg antimony-ækv. | R31: kg antimony-ækv. | S31: kg antimony-ækv. | T31: kg Antimony | U31: EUR | V31: kg N ækv. | W31: kg P ækv.
B32: Sum | C32: -1.727031079 | D32: -1.8308811 | E32: -8.621957615e-08 | F32: -2.397913733e-07 | G32: 3.237304578e-06 | H32: -0.001701336304 | I32: -0.03493508271 | J32: -0.006912787624 | K32: -0.007198471899 | L32: -0.01548402355 | M32: -7.674244536e-05 | N32: -0.001514285479 | O32: -2.934261959 | P32: -19.9190395 | Q32: 1.218235363e-06 | R32: 1.248258174e-07 | S32: 3.332393643e-06 | T32: -2.85873942e-09 | U32: 0 | V32: -0.001373487063 | W32: -7.609176027e-05
B33: Steel recycling, Europe based on Rigamonti | C33: 0.1076695555 | D33: 0.1212442896 | E33: 4.157941163e-09 | F33: 2.853667747e-08 | G33: 3.885689005e-06 | H33: 0.0001851495494 | I33: 0.00453763178 | J33: 0.0005738746478 | K33: 0.0005197957589 | L33: 0.001887207926 | M33: 1.844227999e-06 | N33: 0.0001630003554 | O33: 0.6060747813 | P33: 1.293961374 | Q33: 1.398505628e-06 | R33: 1.290438133e-07 | S33: 3.463501969e-06 | T33: 1.949322956e-11 | U33: 0 | V33: 0.000162190543 | W33: 1.838433392e-06
B34: Waste treatment_landfill of metals | C34: 0.002172424665 | D34: 0.002291198317 | E34: 4.648807575e-11 | F34: 5.295272996e-10 | G34: 4.032888274e-10 | H34: 1.642367747e-06 | I34: 5.623820704e-05 | J34: 1.055940221e-05 | K34: 9.695736568e-06 | L34: 3.832060073e-05 | M34: 6.50893716e-09 | N34: 6.551219513e-06 | O34: 0.02185190495 | P34: 0.02383745258 | Q34: 4.724124429e-10 | R34: 1.056449705e-10 | S34: 6.339577208e-10 | T34: 1.244976351e-17 | U34: 0 | V34: 4.399874783e-06 | W34: 4.1850666e-10
B35: Substitution steel, market ratio 100% | C35: -1.836873059 | D35: -1.954416588 | E35: -9.042400538e-08 | F35: -2.68857578e-07 | G35: -6.487877167e-07 | H35: -0.001888128221 | I35: -0.03952895269 | J35: -0.007497221674 | K35: -0.007727963395 | L35: -0.01740955208 | M35: -7.85931823e-05 | N35: -0.001683837053 | O35: -3.562188645 | P35: -21.23683832 | Q35: -1.807426779e-07 | R35: -4.32364093e-09 | S35: -1.317422839e-07 | T35: -2.878232662e-09 | U35: 0 | V35: -0.001540077481 | W35: -7.793061217e-05
B37: stainless steel | C37: ILCD2011, Climate change w/o LT; midpoint; GWP100; IPPC2007 | D37: IPCC 2013, climate change, GWP 100a with LT_no ccfb | E37: ILCD2011, Ozone depletion w/o LT, ODP w/o LT | F37: ILCD2011, Human toxicity, cancer effects, w/o LT, USEtox | G37: ILCD2011, Human toxicity, non-cancer effects w/o LT, USEtox | H37: ILCD2011, Particulate matter w/o LT, from Humbert 2009, PM | I37: ILCD2011, Ionising radiation human health w/o LT, IRP100 w/o LT, ReCiPe 1.05 midpoint (H) | J37: ILCD2011, Photochemical ozone formation, human health w/o LT, POCP | K37: ILCD2011, Terrestrial acidification, Accumulated Exceedance | L37: ILCD2011, Eutrophication Terrestrial, Accumulated Exceedance | M37: ILCD2011, Eutrophication Freshwater, FEP ReCiPe 1.05 midpoint (H) | N37: ILCD2011, Eutrophication Marine w/o LT, ReCiPe2008 1.05 | O37: ILCD2011, Ecotoxicity freshwater w/o LT, USEtox | P37: CML 2001, Depletion of abiotic resources, fossil - updated 2016 | Q37: CML 2001, Depletion of abiotic resources, elements (reserve base) - updated 2016 | R37: CML 2001, Depletion of abiotic resources, elements (ultimate reserve) - updated 2016 | S37: CML 2001, Depletion of abiotic resources, elements (economic reserve) - updated 2016 | T37: RD, reserve base, P-only | U37: Net Economic Value Added | V37: ReCiPe2016 - Marine eutrophication - midpoint_without LT_H_Data from Anders | W37: ReCiPe2016 - Freshwater eutrophication - midpoint_with LT_data from Anders
B38: Unit | C38: kg CO2-ækv. | D38: kg CO2-ækv. | E38: kg CFC-11 ækv. | F38: CTUh | G38: CTUh | H38: kgPM2.5-ækv. | I38: kBq U235 ækv. | J38: kg NMVOC | K38: mol H+ ækv. | L38: mol N ækv. | M38: kg P ækv. | N38: kg N ækv. | O38: CTUe | P38: MJ | Q38: kg antimony-ækv. | R38: kg antimony-ækv. | S38: kg antimony-ækv. | T38: kg Antimony | U38: EUR | V38: kg N ækv. | W38: kg P ækv.
B39: Sum | C39: 4.834113389 | D39: 4.977851491 | E39: 2.550611888e-07 | F39: 2.273027957e-06 | G39: 2.694794469e-06 | H39: 0.008596405722 | I39: 0.1383642382 | J39: 0.01845480944 | K39: 0.03061871845 | L39: 0.05904697465 | M39: 0.0002591104458 | N39: 0.005122794944 | O39: 26.6448437 | P39: 67.54096556 | Q39: 0.0006903820775 | R39: 0.000124136516 | S39: 0.002561187269 | T39: 4.146887987e-09 | U39: 0 | V39: 0.005093473357 | W39: 0.0002548473304
B40: steel, chromium steel 18/8, hot rolled,steel production, chromium steel 18/8, hot rolled,RER | C40: 4.834113389 | D40: 4.977851491 | E40: 2.550611888e-07 | F40: 2.273027957e-06 | G40: 2.694794469e-06 | H40: 0.008596405722 | I40: 0.1383642382 | J40: 0.01845480944 | K40: 0.03061871845 | L40: 0.05904697465 | M40: 0.0002591104458 | N40: 0.005122794944 | O40: 26.6448437 | P40: 67.54096556 | Q40: 0.0006903820775 | R40: 0.000124136516 | S40: 0.002561187269 | T40: 4.146887987e-09 | U40: 0 | V40: 0.005093473357 | W40: 0.0002548473304
B41: Process-specifikke emissioner | C41: 0 | D41: 0 | E41: 0 | F41: 0 | G41: 0 | H41: 0 | I41: 0 | J41: 0 | K41: 0 | L41: 0 | M41: 0 | N41: 0 | O41: 0 | P41: 0 | Q41: 0 | R41: 0 | S41: 0 | T41: 0 | U41: 0 | V41: 0 | W41: 0
B42: Input-specifikke emissioner | C42: 0 | D42: 0 | E42: 0 | F42: 0 | G42: 0 | H42: 0 | I42: 0 | J42: 0 | K42: 0 | L42: 0 | M42: 0 | N42: 0 | O42: 0 | P42: 0 | Q42: 0 | R42: 0 | S42: 0 | T42: 0 | U42: 0 | V42: 0 | W42: 0
B44: Navn | C44: ILCD2011, Climate change w/o LT; midpoint; GWP100; IPPC2007 | D44: IPCC 2013, climate change, GWP 100a with LT_no ccfb | E44: ILCD2011, Ozone depletion w/o LT, ODP w/o LT | F44: ILCD2011, Human toxicity, cancer effects, w/o LT, USEtox | G44: ILCD2011, Human toxicity, non-cancer effects w/o LT, USEtox | H44: ILCD2011, Particulate matter w/o LT, from Humbert 2009, PM | I44: ILCD2011, Ionising radiation human health w/o LT, IRP100 w/o LT, ReCiPe 1.05 midpoint (H) | J44: ILCD2011, Photochemical ozone formation, human health w/o LT, POCP | K44: ILCD2011, Terrestrial acidification, Accumulated Exceedance | L44: ILCD2011, Eutrophication Terrestrial, Accumulated Exceedance | M44: ILCD2011, Eutrophication Freshwater, FEP ReCiPe 1.05 midpoint (H) | N44: ILCD2011, Eutrophication Marine w/o LT, ReCiPe2008 1.05 | O44: ILCD2011, Ecotoxicity freshwater w/o LT, USEtox | P44: CML 2001, Depletion of abiotic resources, fossil - updated 2016 | Q44: CML 2001, Depletion of abiotic resources, elements (reserve base) - updated 2016 | R44: CML 2001, Depletion of abiotic resources, elements (ultimate reserve) - updated 2016 | S44: CML 2001, Depletion of abiotic resources, elements (economic reserve) - updated 2016 | T44: RD, reserve base, P-only | U44: Net Economic Value Added | V44: ReCiPe2016 - Marine eutrophication - midpoint_without LT_H_Data from Anders | W44: ReCiPe2016 - Freshwater eutrophication - midpoint_with LT_data from Anders
B45: Enhed | C45: kg CO2-ækv. | D45: kg CO2-ækv. | E45: kg CFC-11 ækv. | F45: CTUh | G45: CTUh | H45: kgPM2.5-ækv. | I45: kBq U235 ækv. | J45: kg NMVOC | K45: mol H+ ækv. | L45: mol N ækv. | M45: kg P ækv. | N45: kg N ækv. | O45: CTUe | P45: MJ | Q45: kg antimony-ækv. | R45: kg antimony-ækv. | S45: kg antimony-ækv. | T45: kg Antimony | U45: EUR | V45: kg N ækv. | W45: kg P ækv.
B46: Sum | C46: 0.0004200446542 | D46: 0.0004014239344 | E46: 2.817339094e-10 | F46: 6.235681378e-10 | G46: -1.331324947e-09 | H46: 1.384640727e-06 | I46: -0.001952443805 | J46: 2.216033088e-05 | K46: 1.36037024e-05 | L46: 6.034721645e-05 | M46: -2.55032244e-07 | N46: 7.572478217e-06 | O46: 0.007333196013 | P46: 0.001665019 | Q46: -1.569187e-07 | R46: -1.866016948e-08 | S46: -3.944068577e-07 | T46: -5.849155e-13 | U46: 0 | V46: 7.590646201e-06 | W46: -2.54887354e-07
B47: Truck, 28t-32t, Euro6, urban traffic | C47: 0 | D47: 0 | E47: 0 | F47: 0 | G47: 0 | H47: 0 | I47: 0 | J47: 0 | K47: 0 | L47: 0 | M47: 0 | N47: 0 | O47: 0 | P47: 0 | Q47: 0 | R47: 0 | S47: 0 | T47: 0 | U47: 0 | V47: 0 | W47: 0
B48: Concrete reuse | C48: 0.0004200446542 | D48: 0.0004014239344 | E48: 2.817339094e-10 | F48: 6.235681378e-10 | G48: -1.331324947e-09 | H48: 1.384640727e-06 | I48: -0.001952443805 | J48: 2.216033088e-05 | K48: 1.36037024e-05 | L48: 6.034721645e-05 | M48: -2.55032244e-07 | N48: 7.572478217e-06 | O48: 0.007333196013 | P48: 0.001665019 | Q48: -1.569187e-07 | R48: -1.866016948e-08 | S48: -3.944068577e-07 | T48: -5.849155e-13 | U48: 0 | V48: 7.590646201e-06 | W48: -2.54887354e-07
B49: Process-specifikke emissioner | C49: 0 | D49: 0 | E49: 0 | F49: 0 | G49: 0 | H49: 0 | I49: 0 | J49: 0 | K49: 0 | L49: 0 | M49: 0 | N49: 0 | O49: 0 | P49: 0 | Q49: 0 | R49: 0 | S49: 0 | T49: 0 | U49: 0 | V49: 0 | W49: 0
B50: Input-specifikke emissioner | C50: 0 | D50: 0 | E50: 0 | F50: 0 | G50: 0 | H50: 0 | I50: 0 | J50: 0 | K50: 0 | L50: 0 | M50: 0 | N50: 0 | O50: 0 | P50: 0 | Q50: 0 | R50: 0 | S50: 0 | T50: 0 | U50: 0 | V50: 0 | W50: 0
B52: Navn | C52: ILCD2011, Climate change w/o LT; midpoint; GWP100; IPPC2007 | D52: IPCC 2013, climate change, GWP 100a with LT_no ccfb | E52: ILCD2011, Ozone depletion w/o LT, ODP w/o LT | F52: ILCD2011, Human toxicity, cancer effects, w/o LT, USEtox | G52: ILCD2011, Human toxicity, non-cancer effects w/o LT, USEtox | H52: ILCD2011, Particulate matter w/o LT, from Humbert 2009, PM | I52: ILCD2011, Ionising radiation human health w/o LT, IRP100 w/o LT, ReCiPe 1.05 midpoint (H) | J52: ILCD2011, Photochemical ozone formation, human health w/o LT, POCP | K52: ILCD2011, Terrestrial acidification, Accumulated Exceedance | L52: ILCD2011, Eutrophication Terrestrial, Accumulated Exceedance | M52: ILCD2011, Eutrophication Freshwater, FEP ReCiPe 1.05 midpoint (H) | N52: ILCD2011, Eutrophication Marine w/o LT, ReCiPe2008 1.05 | O52: ILCD2011, Ecotoxicity freshwater w/o LT, USEtox | P52: CML 2001, Depletion of abiotic resources, fossil - updated 2016 | Q52: CML 2001, Depletion of abiotic resources, elements (reserve base) - updated 2016 | R52: CML 2001, Depletion of abiotic resources, elements (ultimate reserve) - updated 2016 | S52: CML 2001, Depletion of abiotic resources, elements (economic reserve) - updated 2016 | T52: RD, reserve base, P-only | U52: Net Economic Value Added | V52: ReCiPe2016 - Marine eutrophication - midpoint_without LT_H_Data from Anders | W52: ReCiPe2016 - Freshwater eutrophication - midpoint_with LT_data from Anders
B53: Enhed | C53: kg CO2-ækv. | D53: kg CO2-ækv. | E53: kg CFC-11 ækv. | F53: CTUh | G53: CTUh | H53: kgPM2.5-ækv. | I53: kBq U235 ækv. | J53: kg NMVOC | K53: mol H+ ækv. | L53: mol N ækv. | M53: kg P ækv. | N53: kg N ækv. | O53: CTUe | P53: MJ | Q53: kg antimony-ækv. | R53: kg antimony-ækv. | S53: kg antimony-ækv. | T53: kg Antimony | U53: EUR | V53: kg N ækv. | W53: kg P ækv.
B54: Sum | C54: 4.694584825 | D54: 4.835544802 | E54: 2.329740755e-07 | F54: 2.276221801e-06 | G54: 2.779495896e-06 | H54: 0.008560023 | I54: 0.1289989286 | J54: 0.01813484788 | K54: 0.02985028372 | L54: 0.05783955516 | M54: 0.000186572444 | N54: 0.005152753928 | O54: 26.87262449 | P54: 64.33123764 | Q54: 8.40112195e-07 | R54: 1.28918776e-08 | S54: 5.941044516e-07 | T54: 6.237886428e-09 | U54: 0 | V54: 0.005037189492 | W54: 0.0001820979356
B55: steel, chromium steel 18/8, hot rolled,steel production, chromium steel 18/8, hot rolled,RER - Imported copy | C55: 4.694584825 | D55: 4.835544802 | E55: 2.329740755e-07 | F55: 2.276221801e-06 | G55: 2.779495896e-06 | H55: 0.008560023 | I55: 0.1289989286 | J55: 0.01813484788 | K55: 0.02985028372 | L55: 0.05783955516 | M55: 0.000186572444 | N55: 0.005152753928 | O55: 26.87262449 | P55: 64.33123764 | Q55: 8.40112195e-07 | R55: 1.28918776e-08 | S55: 5.941044516e-07 | T55: 6.237886428e-09 | U55: 0 | V55: 0.005037189492 | W55: 0.0001820979356
B56: Process-specifikke emissioner | C56: 0 | D56: 0 | E56: 0 | F56: 0 | G56: 0 | H56: 0 | I56: 0 | J56: 0 | K56: 0 | L56: 0 | M56: 0 | N56: 0 | O56: 0 | P56: 0 | Q56: 0 | R56: 0 | S56: 0 | T56: 0 | U56: 0 | V56: 0 | W56: 0
B57: Input-specifikke emissioner | C57: 0 | D57: 0 | E57: 0 | F57: 0 | G57: 0 | H57: 0 | I57: 0 | J57: 0 | K57: 0 | L57: 0 | M57: 0 | N57: 0 | O57: 0 | P57: 0 | Q57: 0 | R57: 0 | S57: 0 | T57: 0 | U57: 0 | V57: 0 | W57: 0
